Workbook

Sheet Menu
F2: This file contains the excel tables of the rates contained in the published Schedule fo Standard Prices for Eskom tariffs.
F4: 2019/20 SCHEDULE OF STANDARD PRICES FOR ESKOM TARIFFS 1 April 2019 to 31 March 2020 for Non-Local Authority supplies, and 1 July 2019 to 30 June 2020 for Local Authority supplies.
H6: Click on the arrow to select the tariff
H7: Non-local authority (NLA) | J7: Local Authority (Munic)
G8: WEPS | H8: u | J8: u
F9: ê | G9: Megaflex | H9: u | J9: u
F10: ê | G10: Nightsave Large Urban | H10: u | J10: u
F11: ê | G11: Miniflex | H11: u | J11: u
F12: ê | G12: Nightsave Small Urban | H12: u | J12: u
F13: ê | G13: Businessrate | H13: u | J13: u
F14: ê | G14: Public lighting | H14: u | J14: u
F15: ê | G15: Ruraflex | H15: u | J15: u
F16: ê | G16: Nightsave Rural | H16: u | J16: u
F17: ê | G17: Landrate tariffs | H17: u | J17: u
F18: ê | G18: Homepower tariffs | H18: u | J18: u
F19: ê | G19: Homelight tariffs | H19: u | J19: n/a
F20: ê | G20: Excess NCC charges | H20: u | J20: u
F21: ê | G21: Loss factors | H21: u | J21: u
F22: ê | G22: Transmission use of system charges | H22: u | J22: n/a
F23: ê | G23: Distribution use of system charges | H23: u | J23: n/a
F24: ê | G24: Megaflex Gen | H24: u | J24: n/a
F25: ê | G25: Ruraflex Gen | H25: u | J25: n/a
F26: ê | G26: Muniflex Urban | H26: n/a | J26: u
F27: ê | G27: Muniflex Rural | H27: n/a | J27: u

Sheet WEPS NLA
G1: Back to menu
A2: Non-municipal | G2: WEPS – Non-local Authority
J4: Active energy charge [c/kWh] | V4: Transmission network charges [R/kVA/m]
H5: Transmission zone | J5: High demand season [Jun - Aug] | P5: Low demand season [Sep - May]
I6: Voltage | J6: Peak | L6: Standard | N6: Off Peak | P6: Peak | R6: Standard | T6: Off Peak
A7: Tariff | B7: Tariff nameBillcode | C7: Tx zone | D7: Voltage | E7: Billcode | K7: VAT incl | M7: VAT incl | O7: VAT incl | Q7: VAT incl | S7: VAT incl | U7: VAT incl | W7: VAT incl
A8: WEPS | B8: We | C8: 0 | D8: 1 | E8: We01N | H8: ≤ 300km | I8: < 500V | J8: 333.51 | K8: 383.54 | L8: 101.47 | M8: 116.69 | N8: 55.41 | O8: 63.72 | P8: 109.21 | Q8: 125.59 | R8: 75.36 | S8: 86.66 | T8: 48.04 | U8: 55.25 | V8: 9.54 | W8: 10.97
A9: WEPS | B9: We | C9: 0 | D9: 2 | E9: We02N | I9: ≥ 500V & < 66kV | J9: 328.28 | K9: 377.52 | L9: 99.45 | M9: 114.37 | N9: 54.01 | O9: 62.11 | P9: 107.07 | Q9: 123.13 | R9: 73.71 | S9: 84.77 | T9: 46.76 | U9: 53.77 | V9: 8.72 | W9: 10.03
A10: WEPS | B10: We | C10: 0 | D10: 3 | E10: We03N | I10: ≥ 66kV & ≤ 132kV | J10: 317.88 | K10: 365.56 | L10: 96.29 | M10: 110.73 | N10: 52.3 | O10: 60.15 | P10: 103.71 | Q10: 119.27 | R10: 71.36 | S10: 82.06 | T10: 45.29 | U10: 52.08 | V10: 8.49 | W10: 9.76
A11: WEPS | B11: We | C11: 0 | D11: 4 | E11: We04N | I11: > 132kV* | J11: 299.6 | K11: 344.54 | L11: 90.75 | M11: 104.36 | N11: 49.29 | O11: 56.68 | P11: 97.76 | Q11: 112.42 | R11: 67.26 | S11: 77.35 | T11: 42.68 | U11: 49.08 | V11: 10.73 | W11: 12.34
A12: WEPS | B12: We | C12: 1 | D12: 1 | E12: We11N | H12: > 300km and ≤ 600km | I12: < 500V | J12: 336.24 | K12: 386.68 | L12: 101.88 | M12: 117.16 | N12: 55.31 | O12: 63.61 | P12: 109.69 | Q12: 126.14 | R12: 75.52 | S12: 86.85 | T12: 47.91 | U12: 55.1 | V12: 9.61 | W12: 11.05
A13: WEPS | B13: We | C13: 1 | D13: 2 | E13: We12N | I13: ≥ 500V & < 66kV | J13: 331.56 | K13: 381.29 | L13: 100.43 | M13: 115.49 | N13: 54.54 | O13: 62.72 | P13: 108.17 | Q13: 124.4 | R13: 74.44 | S13: 85.61 | T13: 47.22 | U13: 54.3 | V13: 8.8 | W13: 10.12
A14: WEPS | B14: We | C14: 1 | D14: 3 | E14: We13N | I14: ≥ 66kV & ≤ 132kV | J14: 321.01 | K14: 369.16 | L14: 97.23 | M14: 111.81 | N14: 52.79 | O14: 60.71 | P14: 104.71 | Q14: 120.42 | R14: 72.07 | S14: 82.88 | T14: 45.72 | U14: 52.58 | V14: 8.55 | W14: 9.83
A15: WEPS | B15: We | C15: 1 | D15: 4 | E15: We14N | I15: > 132kV* | J15: 302.6 | K15: 347.99 | L15: 91.68 | M15: 105.43 | N15: 49.75 | O15: 57.21 | P15: 98.69 | Q15: 113.49 | R15: 67.92 | S15: 78.11 | T15: 43.08 | U15: 49.54 | V15: 10.83 | W15: 12.45
A16: WEPS | B16: We | C16: 2 | D16: 1 | E16: We21N | H16: > 600km and ≤ 900km | I16: < 500V | J16: 339.58 | K16: 390.52 | L16: 102.87 | M16: 118.3 | N16: 55.84 | O16: 64.22 | P16: 110.78 | Q16: 127.4 | R16: 76.25 | S16: 87.69 | T16: 48.35 | U16: 55.6 | V16: 9.72 | W16: 11.18
A17: WEPS | B17: We | C17: 2 | D17: 2 | E17: We22N | I17: ≥ 500V & < 66kV | J17: 334.89 | K17: 385.12 | L17: 101.46 | M17: 116.68 | N17: 55.09 | O17: 63.35 | P17: 109.24 | Q17: 125.63 | R17: 75.19 | S17: 86.47 | T17: 47.7 | U17: 54.86 | V17: 8.88 | W17: 10.21
A18: WEPS | B18: We | C18: 2 | D18: 3 | E18: We23N | I18: ≥ 66kV & ≤ 132kV | J18: 324.28 | K18: 372.92 | L18: 98.24 | M18: 112.98 | N18: 53.34 | O18: 61.34 | P18: 105.77 | Q18: 121.64 | R18: 72.81 | S18: 83.73 | T18: 46.19 | U18: 53.12 | V18: 8.61 | W18: 9.9
A19: WEPS | B19: We | C19: 2 | D19: 4 | E19: We24N | I19: > 132kV* | J19: 305.65 | K19: 351.5 | L19: 92.58 | M19: 106.47 | N19: 50.3 | O19: 57.85 | P19: 99.7 | Q19: 114.66 | R19: 68.61 | S19: 78.9 | T19: 43.54 | U19: 50.07 | V19: 10.99 | W19: 12.64
A20: WEPS | B20: We | C20: 3 | D20: 1 | E20: We31N | H20: > 900km | I20: < 500V | J20: 343 | K20: 394.45 | L20: 103.94 | M20: 119.53 | N20: 56.42 | O20: 64.88 | P20: 111.9 | Q20: 128.69 | R20: 77 | S20: 88.55 | T20: 48.87 | U20: 56.2 | V20: 9.78 | W20: 11.25
A21: WEPS | B21: We | C21: 3 | D21: 2 | E21: We32N | I21: ≥ 500V & < 66kV | J21: 338.22 | K21: 388.95 | L21: 102.45 | M21: 117.82 | N21: 55.61 | O21: 63.95 | P21: 110.31 | Q21: 126.86 | R21: 75.91 | S21: 87.3 | T21: 48.17 | U21: 55.4 | V21: 8.98 | W21: 10.33
A22: WEPS | B22: We | C22: 3 | D22: 3 | E22: We33N | I22: ≥ 66kV & ≤ 132kV | J22: 327.54 | K22: 376.67 | L22: 99.21 | M22: 114.09 | N22: 53.87 | O22: 61.95 | P22: 106.83 | Q22: 122.85 | R22: 73.54 | S22: 84.57 | T22: 46.65 | U22: 53.65 | V22: 8.69 | W22: 9.99
A23: WEPS | B23: We | C23: 3 | D23: 4 | E23: We34N | I23: > 132kV* | J23: 308.62 | K23: 354.91 | L23: 93.53 | M23: 107.56 | N23: 50.82 | O23: 58.44 | P23: 100.74 | Q23: 115.85 | R23: 69.36 | S23: 79.76 | T23: 44.02 | U23: 50.62 | V23: 11.07 | W23: 12.73
I24: * 132 kV or Transmission connected
H25: Distribution network charges
H26: Voltage | J26: Network capacity charge [R/kVA/m] | L26: Network demand charge [R/kVA/m] | N26: Urban low voltage subsidy charge [R/kVA/m]
Q27: Voltage | S27: Ancillary service charge [c/kWh]
A28: Tariff | B28: Tariff nameBillcode | C28: Tx zone | D28: Voltage | E28: Billcode | K28: VAT incl | M28: VAT incl | O28: VAT incl | T28: VAT incl
A29: WEPS | B29: We | C29: 0 | D29: 1 | E29: We01N | H29: < 500V | J29: 18.96 | K29: 21.8 | L29: 35.95 | M29: 41.34 | N29: 0 | O29: 0 | Q29: < 500V | S29: 0.44 | T29: 0.51
A30: WEPS | B30: We | C30: 0 | D30: 2 | E30: We02N | H30: ≥ 500V & < 66kV | J30: 17.39 | K30: 20 | L30: 32.98 | M30: 37.93 | N30: 0 | O30: 0 | Q30: ≥ 500V & < 66kV | S30: 0.43 | T30: 0.49
A31: WEPS | B31: We | C31: 0 | D31: 3 | E31: We03N | H31: ≥ 66kV & ≤ 132kV | J31: 6.21 | K31: 7.14 | L31: 11.5 | M31: 13.23 | N31: 15.32 | O31: 17.62 | Q31: ≥ 66kV & ≤ 132kV | S31: 0.41 | T31: 0.47
A32: WEPS | B32: We | C32: 0 | D32: 4 | E32: We04N | H32: > 132kV* | J32: 0 | K32: 0 | L32: 0 | M32: 0 | N32: 15.32 | O32: 17.62 | Q32: > 132kV* | S32: 0.39 | T32: 0.45
H33: * 132 kV or Transmission connected | Q33: * 132 kV or Transmission connected
H35: Customer categories | J35: Service charge [R/account/day] | L35: Administration charge [R/POD/day] | Q35: Reactive energy charge [c/kVArh]
A37: Tariff | B37: Tariff nameBillcode | C37: Tx zone | D37: Voltage | E37: Billcode | K37: VAT incl | M37: VAT incl | Q37: High season | S37: Low season
A38: WEPS | B38: We | C38: 0 | D38: 1 | E38: We01N | H38: ≤ 100 kVA | J38: 15.49 | K38: 17.81 | L38: 3.4 | M38: 3.91 | R38: VAT incl | T38: VAT incl
A39: WEPS | B39: We | C39: 0 | D39: 1 | E39: We01N | H39: > 100 kVA & ≤ 500 kVA | J39: 70.74 | K39: 81.35 | L39: 19.84 | M39: 22.82 | Q39: 15.34 | R39: 17.64 | S39: 0 | T39: 0
A40: WEPS | B40: We | C40: 0 | D40: 1 | E40: We01N | H40: > 500 kVA & ≤ 1 MVA | J40: 217.67 | K40: 250.32 | L40: 39.4 | M40: 45.31
A41: WEPS | B41: We | C41: 0 | D41: 1 | E41: We01N | H41: > 1 MVA | J41: 217.67 | K41: 250.32 | L41: 98.1 | M41: 112.82
A42: WEPS | B42: We | C42: 0 | D42: 1 | E42: We01N | H42: Key customers | J42: 4265.54 | K42: 4905.37 | L42: 136.23 | M42: 156.66
H45: Electrification and rural network subsidy charge [c/kWh] | J45: Affordability subsidy charge [c/kWh] Only payable by non-local authority tariffs
A48: Tariff | B48: Tariff nameBillcode | C48: Tx zone | D48: Voltage | E48: Billcode | I48: VAT incl | K48: VAT incl
A49: WEPS | B49: We | C49: 0 | D49: 1 | E49: We01N | H49: 8.48 | I49: 9.75 | J49: 3.82 | K49: 4.39
H52: Active energy charge excluding losses [c/kWh]
H53: High demand season [Jun - Aug] | N53: Low demand season [Sep - May]
H54: Peak | J54: Standard | L54: Off Peak | N54: Peak | P54: Standard | R54: Off Peak
A55: Tariff | B55: Tariff nameBillcode | C55: Tx zone | D55: Voltage | E55: Billcode | I55: VAT incl | K55: VAT incl | M55: VAT incl | O55: VAT incl | Q55: VAT incl | S55: VAT incl
A56: WEPS | B56: We | C56: 0 | D56: 1 | E56: We01N | H56: 296.43 | I56: 340.89 | J56: 89.79 | K56: 103.26 | L56: 48.77 | M56: 56.09 | N56: 96.73 | O56: 111.24 | P56: 66.55 | Q56: 76.53 | R56: 42.23 | S56: 48.56
H58: Active energy charge excluding losses and enviromental levy [c/kWh]
H59: High demand season [Jun - Aug] | N59: Low demand season [Sep - May]
H60: Peak | J60: Standard | L60: Off Peak | N60: Peak | P60: Standard | R60: Off Peak
A61: Tariff | B61: Tariff nameBillcode | C61: Tx zone | D61: Voltage | E61: Billcode | I61: VAT incl | K61: VAT incl | M61: VAT incl | O61: VAT incl | Q61: VAT incl | S61: VAT incl
A62: WEPS | B62: We | C62: 0 | D62: 1 | E62: We01N | H62: 292.94 | I62: 336.88 | J62: 86.3 | K62: 99.25 | L62: 45.28 | M62: 52.07 | N62: 93.24 | O62: 107.23 | P62: 63.06 | Q62: 72.52 | R62: 38.74 | S62: 44.55

Sheet WEPS Munic
G1: Back to menu
A2: Municiple | G2: WEPS – Local Authority
J4: Active energy charge [c/kWh] | V4: Transmission network charges [R/kVA/m]
H5: Transmission zone | J5: High demand season [Jun - Aug] | P5: Low demand season [Sep - May]
I6: Voltage | J6: Peak | L6: Standard | N6: Off Peak | P6: Peak | R6: Standard | T6: Off Peak
A7: Tariff | B7: Tariff nameBillcode | C7: Tx zone | D7: Voltage | E7: Billcode | K7: VAT incl | M7: VAT incl | O7: VAT incl | Q7: VAT incl | S7: VAT incl | U7: VAT incl | W7: VAT incl
A8: WEPS | B8: We | C8: 0 | D8: 1 | E8: We01Y | H8: ≤ 300km | I8: < 500V | J8: 347.1 | K8: 399.17 | L8: 105.62 | M8: 121.46 | N8: 57.63 | O8: 66.27 | P8: 113.64 | Q8: 130.69 | R8: 78.43 | S8: 90.19 | T8: 49.99 | U8: 57.49 | V8: 9.67 | W8: 11.12
A9: WEPS | B9: We | C9: 0 | D9: 2 | E9: We02Y | I9: ≥ 500V & < 66kV | J9: 341.63 | K9: 392.87 | L9: 103.51 | M9: 119.04 | N9: 56.21 | O9: 64.64 | P9: 111.44 | Q9: 128.16 | R9: 76.7 | S9: 88.21 | T9: 48.67 | U9: 55.97 | V9: 8.82 | W9: 10.14
A10: WEPS | B10: We | C10: 0 | D10: 3 | E10: We03Y | I10: ≥ 66kV & ≤ 132kV | J10: 330.85 | K10: 380.48 | L10: 100.22 | M10: 115.25 | N10: 54.43 | O10: 62.59 | P10: 107.93 | Q10: 124.12 | R10: 74.29 | S10: 85.43 | T10: 47.12 | U10: 54.19 | V10: 8.59 | W10: 9.88
A11: WEPS | B11: We | C11: 0 | D11: 4 | E11: We04Y | I11: > 132kV* | J11: 311.81 | K11: 358.58 | L11: 94.46 | M11: 108.63 | N11: 51.29 | O11: 58.98 | P11: 101.71 | Q11: 116.97 | R11: 70 | S11: 80.5 | T11: 44.41 | U11: 51.07 | V11: 10.87 | W11: 12.5
A12: WEPS | B12: We | C12: 1 | D12: 1 | E12: We11Y | H12: > 300km and ≤ 600km | I12: < 500V | J12: 349.93 | K12: 402.42 | L12: 106.01 | M12: 121.91 | N12: 57.56 | O12: 66.19 | P12: 114.15 | Q12: 131.27 | R12: 78.59 | S12: 90.38 | T12: 49.85 | U12: 57.33 | V12: 9.71 | W12: 11.17
A13: WEPS | B13: We | C13: 1 | D13: 2 | E13: We12Y | I13: ≥ 500V & < 66kV | J13: 345.04 | K13: 396.8 | L13: 104.53 | M13: 120.21 | N13: 56.76 | O13: 65.27 | P13: 112.57 | Q13: 129.46 | R13: 77.47 | S13: 89.09 | T13: 49.14 | U13: 56.51 | V13: 8.92 | W13: 10.26
A14: WEPS | B14: We | C14: 1 | D14: 3 | E14: We13Y | I14: ≥ 66kV & ≤ 132kV | J14: 334.09 | K14: 384.2 | L14: 101.2 | M14: 116.38 | N14: 54.95 | O14: 63.19 | P14: 108.98 | Q14: 125.33 | R14: 75 | S14: 86.25 | T14: 47.57 | U14: 54.71 | V14: 8.65 | W14: 9.95
A15: WEPS | B15: We | C15: 1 | D15: 4 | E15: We14Y | I15: > 132kV* | J15: 314.92 | K15: 362.16 | L15: 95.42 | M15: 109.73 | N15: 51.8 | O15: 59.57 | P15: 102.71 | Q15: 118.12 | R15: 70.71 | S15: 81.32 | T15: 44.85 | U15: 51.58 | V15: 10.97 | W15: 12.62
A16: WEPS | B16: We | C16: 2 | D16: 1 | E16: We21Y | H16: > 600km and ≤ 900km | I16: < 500V | J16: 353.42 | K16: 406.43 | L16: 107.07 | M16: 123.13 | N16: 58.13 | O16: 66.85 | P16: 115.28 | Q16: 132.57 | R16: 79.36 | S16: 91.26 | T16: 50.35 | U16: 57.9 | V16: 9.84 | W16: 11.32
A17: WEPS | B17: We | C17: 2 | D17: 2 | E17: We22Y | I17: ≥ 500V & < 66kV | J17: 348.52 | K17: 400.8 | L17: 105.57 | M17: 121.41 | N17: 57.33 | O17: 65.93 | P17: 113.71 | Q17: 130.77 | R17: 78.21 | S17: 89.94 | T17: 49.64 | U17: 57.09 | V17: 8.98 | W17: 10.33
A18: WEPS | B18: We | C18: 2 | D18: 3 | E18: We23Y | I18: ≥ 66kV & ≤ 132kV | J18: 337.49 | K18: 388.11 | L18: 102.22 | M18: 117.55 | N18: 55.5 | O18: 63.83 | P18: 110.06 | Q18: 126.57 | R18: 75.75 | S18: 87.11 | T18: 48.04 | U18: 55.25 | V18: 8.72 | W18: 10.03
A19: WEPS | B19: We | C19: 2 | D19: 4 | E19: We24Y | I19: > 132kV* | J19: 318.07 | K19: 365.78 | L19: 96.37 | M19: 110.83 | N19: 52.32 | O19: 60.17 | P19: 103.77 | Q19: 119.34 | R19: 71.41 | S19: 82.12 | T19: 45.3 | U19: 52.1 | V19: 11.12 | W19: 12.79
A20: WEPS | B20: We | C20: 3 | D20: 1 | E20: We31Y | H20: > 900km | I20: < 500V | J20: 356.97 | K20: 410.52 | L20: 108.15 | M20: 124.37 | N20: 58.73 | O20: 67.54 | P20: 116.45 | Q20: 133.92 | R20: 80.14 | S20: 92.16 | T20: 50.85 | U20: 58.48 | V20: 9.89 | W20: 11.37
A21: WEPS | B21: We | C21: 3 | D21: 2 | E21: We32Y | I21: ≥ 500V & < 66kV | J21: 352 | K21: 404.8 | L21: 106.62 | M21: 122.61 | N21: 57.91 | O21: 66.6 | P21: 114.81 | Q21: 132.03 | R21: 79.02 | S21: 90.87 | T21: 50.11 | U21: 57.63 | V21: 9.08 | W21: 10.44
A22: WEPS | B22: We | C22: 3 | D22: 3 | E22: We33Y | I22: ≥ 66kV & ≤ 132kV | J22: 340.89 | K22: 392.02 | L22: 103.27 | M22: 118.76 | N22: 56.08 | O22: 64.49 | P22: 111.19 | Q22: 127.87 | R22: 76.51 | S22: 87.99 | T22: 48.54 | U22: 55.82 | V22: 8.79 | W22: 10.11
A23: WEPS | B23: We | C23: 3 | D23: 4 | E23: We34Y | I23: > 132kV* | J23: 321.21 | K23: 369.39 | L23: 97.35 | M23: 111.95 | N23: 52.9 | O23: 60.84 | P23: 104.83 | Q23: 120.55 | R23: 72.16 | S23: 82.98 | T23: 45.8 | U23: 52.67 | V23: 11.2 | W23: 12.88
I24: * 132 kV or Transmission connected
H25: Distribution network charges
H26: Voltage | J26: Network capacity charge [R/kVA/m] | L26: Network demand charge [R/kVA/m] | N26: Urban low voltage subsidy charge [R/kVA/m]
Q27: Voltage | S27: Ancillary service charge [c/kWh]
A28: Tariff | B28: Tariff nameBillcode | C28: Tx zone | D28: Voltage | E28: Billcode | K28: VAT incl | M28: VAT incl | O28: VAT incl | T28: VAT incl
A29: WEPS | B29: We | C29: 0 | D29: 1 | E29: We01Y | H29: < 500V | J29: 19.29 | K29: 22.18 | L29: 36.55 | M29: 42.03 | N29: 0 | O29: 0 | Q29: < 500V | S29: 0.45 | T29: 0.52
A30: WEPS | B30: We | C30: 0 | D30: 2 | E30: We02Y | H30: ≥ 500V & < 66kV | J30: 17.68 | K30: 20.33 | L30: 33.52 | M30: 38.55 | N30: 0 | O30: 0 | Q30: ≥ 500V & < 66kV | S30: 0.44 | T30: 0.51
A31: WEPS | B31: We | C31: 0 | D31: 3 | E31: We03Y | H31: ≥ 66kV & ≤ 132kV | J31: 6.32 | K31: 7.27 | L31: 11.69 | M31: 13.44 | N31: 15.48 | O31: 17.8 | Q31: ≥ 66kV & ≤ 132kV | S31: 0.4 | T31: 0.46
A32: WEPS | B32: We | C32: 0 | D32: 4 | E32: We04Y | H32: > 132kV* | J32: 0 | K32: 0 | L32: 0 | M32: 0 | N32: 15.48 | O32: 17.8 | Q32: > 132kV* | S32: 0.38 | T32: 0.44
H33: * 132 kV or Transmission connected | Q33: * 132 kV or Transmission connected
H35: Customer categories | J35: Service charge [R/account/day] | L35: Administration charge [R/POD/day] | Q35: Reactive energy charge [c/kVArh]
A37: Tariff | B37: Tariff nameBillcode | C37: Tx zone | D37: Voltage | E37: Billcode | K37: VAT incl | M37: VAT incl | Q37: High season | S37: Low season
A38: WEPS | B38: We | C38: 0 | D38: 1 | E38: We01Y | H38: ≤ 100 kVA | J38: 15.66 | K38: 18.01 | L38: 3.43 | M38: 3.94 | R38: VAT incl | T38: VAT incl
A39: WEPS | B39: We | C39: 0 | D39: 1 | E39: We01Y | H39: > 100 kVA & ≤ 500 kVA | J39: 71.56 | K39: 82.29 | L39: 20.05 | M39: 23.06 | Q39: 15.49 | R39: 17.81 | S39: 0 | T39: 0
A40: WEPS | B40: We | C40: 0 | D40: 1 | E40: We01Y | H40: > 500 kVA & ≤ 1 MVA | J40: 220.24 | K40: 253.28 | L40: 39.87 | M40: 45.85
A41: WEPS | B41: We | C41: 0 | D41: 1 | E41: We01Y | H41: > 1 MVA | J41: 220.24 | K41: 253.28 | L41: 99.28 | M41: 114.17
A42: WEPS | B42: We | C42: 0 | D42: 1 | E42: We01Y | H42: Key customers | J42: 4315.89 | K42: 4963.27 | L42: 137.83 | M42: 158.5
H45: Electrification and rural network subsidy charge [c/kWh]
A48: Tariff | B48: Tariff nameBillcode | C48: Tx zone | D48: Voltage | E48: Billcode | I48: VAT incl
A49: WEPS | B49: We | C49: 0 | D49: 1 | E49: We01Y | H49: 8.58 | I49: 9.87
H52: Active energy charge excluding losses [c/kWh]
H53: High demand season [Jun - Aug] | N53: Low demand season [Sep - May]
H54: Peak | J54: Standard | L54: Off Peak | N54: Peak | P54: Standard | R54: Off Peak
A55: Tariff | B55: Tariff nameBillcode | C55: Tx zone | D55: Voltage | E55: Billcode | I55: VAT incl | K55: VAT incl | M55: VAT incl | O55: VAT incl | Q55: VAT incl | S55: VAT incl
A56: WEPS | B56: We | C56: 0 | D56: 1 | E56: We01Y | H56: 308.51 | I56: 354.79 | J56: 93.46 | K56: 107.48 | L56: 50.75 | M56: 58.36 | N56: 100.63 | O56: 115.72 | P56: 69.26 | Q56: 79.65 | R56: 43.94 | S56: 50.53
H58: Active energy charge excluding losses and enviromental levy [c/kWh]
H59: High demand season [Jun - Aug] | N59: Low demand season [Sep - May]
H60: Peak | J60: Standard | L60: Off Peak | N60: Peak | P60: Standard | R60: Off Peak
A61: Tariff | B61: Tariff nameBillcode | C61: Tx zone | D61: Voltage | E61: Billcode | I61: VAT incl | K61: VAT incl | M61: VAT incl | O61: VAT incl | Q61: VAT incl | S61: VAT incl
A62: WEPS | B62: We | C62: 0 | D62: 1 | E62: We01Y | H62: 305.02 | I62: 350.77 | J62: 89.97 | K62: 103.47 | L62: 47.26 | M62: 54.35 | N62: 97.14 | O62: 111.71 | P62: 65.77 | Q62: 75.64 | R62: 40.45 | S62: 46.52

Sheet Nightsave Large NLA
H1: Back to menu
A2: Non-municipal | G2: Nightsave Urban Large – Non-local Authority | AG2: check value
J4: Active energy charge [c/kWh] | N4: Energy demand charge [R/kVA/m] | R4: Transmission network charges [R/kVA/m]
H5: Transmission zone | J5: High demand season [Jun - Aug] | L5: Low demand season [Sep - May] | N5: High demand season [Jun - Aug] | P5: Low demand season [Sep - May]
I6: Voltage
A7: Tariff | B7: Tariff nameBillcode | C7: Tx zone | D7: Voltage | E7: Billcode | K7: VAT incl | M7: VAT incl | O7: VAT incl | Q7: VAT incl | S7: VAT incl
A8: Nightsave Large | B8: NL | C8: 0 | D8: 1 | E8: NL01N | H8: ≤ 300km | I8: < 500V | J8: 82.37 | K8: 94.73 | L8: 64.03 | M8: 73.63 | N8: 250.64 | O8: 288.24 | P8: 35.03 | Q8: 40.28 | R8: 9.54 | S8: 10.97
A9: Nightsave Large | B9: NL | C9: 0 | D9: 2 | E9: NL02N | I9: ≥ 500V & < 66kV | J9: 78 | K9: 89.7 | L9: 60.89 | M9: 70.02 | N9: 242.59 | O9: 278.98 | P9: 33.91 | Q9: 39 | R9: 8.72 | S9: 10.03
A10: Nightsave Large | B10: NL | C10: 0 | D10: 3 | E10: NL03N | I10: ≥ 66kV & ≤ 132kV | J10: 77.43 | K10: 89.04 | L10: 60.16 | M10: 69.18 | N10: 233.75 | O10: 268.81 | P10: 32.68 | Q10: 37.58 | R10: 8.49 | S10: 9.76
A11: Nightsave Large | B11: NL | C11: 0 | D11: 4 | E11: NL04N | I11: > 132kV* | J11: 72.43 | K11: 83.29 | L11: 56.32 | M11: 64.77 | N11: 225.49 | O11: 259.31 | P11: 31.52 | Q11: 36.25 | R11: 10.73 | S11: 12.34
A12: Nightsave Large | B12: NL | C12: 1 | D12: 1 | E12: NL11N | H12: > 300km and ≤ 600km | I12: < 500V | J12: 83.48 | K12: 96 | L12: 64.74 | M12: 74.45 | N12: 253.22 | O12: 291.2 | P12: 35.37 | Q12: 40.68 | R12: 9.61 | S12: 11.05
A13: Nightsave Large | B13: NL | C13: 1 | D13: 2 | E13: NL12N | I13: ≥ 500V & < 66kV | J13: 79.64 | K13: 91.59 | L13: 62.13 | M13: 71.45 | N13: 245.05 | O13: 281.81 | P13: 34.21 | Q13: 39.34 | R13: 8.8 | S13: 10.12
A14: Nightsave Large | B14: NL | C14: 1 | D14: 3 | E14: NL13N | I14: ≥ 66kV & ≤ 132kV | J14: 79.05 | K14: 90.91 | L14: 61.38 | M14: 70.59 | N14: 236.06 | O14: 271.47 | P14: 32.98 | Q14: 37.93 | R14: 8.55 | S14: 9.83
A15: Nightsave Large | B15: NL | C15: 1 | D15: 4 | E15: NL14N | I15: > 132kV* | J15: 73.96 | K15: 85.05 | L15: 57.47 | M15: 66.09 | N15: 227.79 | O15: 261.96 | P15: 31.8 | Q15: 36.57 | R15: 10.83 | S15: 12.45
A16: Nightsave Large | B16: NL | C16: 2 | D16: 1 | E16: NL21N | H16: > 600km and ≤ 900km | I16: < 500V | J16: 84.25 | K16: 96.89 | L16: 65.36 | M16: 75.16 | N16: 255.82 | O16: 294.19 | P16: 35.73 | Q16: 41.09 | R16: 9.72 | S16: 11.18
A17: Nightsave Large | B17: NL | C17: 2 | D17: 2 | E17: NL22N | I17: ≥ 500V & < 66kV | J17: 80.43 | K17: 92.49 | L17: 62.77 | M17: 72.19 | N17: 247.51 | O17: 284.64 | P17: 34.59 | Q17: 39.78 | R17: 8.88 | S17: 10.21
A18: Nightsave Large | B18: NL | C18: 2 | D18: 3 | E18: NL23N | I18: ≥ 66kV & ≤ 132kV | J18: 79.82 | K18: 91.79 | L18: 61.99 | M18: 71.29 | N18: 238.44 | O18: 274.21 | P18: 33.31 | Q18: 38.31 | R18: 8.61 | S18: 9.9
A19: Nightsave Large | B19: NL | C19: 2 | D19: 4 | E19: NL24N | I19: > 132kV* | J19: 74.68 | K19: 85.88 | L19: 58.05 | M19: 66.76 | N19: 230.06 | O19: 264.57 | P19: 32.12 | Q19: 36.94 | R19: 10.99 | S19: 12.64
A20: Nightsave Large | B20: NL | C20: 3 | D20: 1 | E20: NL31N | H20: > 900km | I20: < 500V | J20: 85.15 | K20: 97.92 | L20: 66.03 | M20: 75.93 | N20: 258.29 | O20: 297.03 | P20: 36.07 | Q20: 41.48 | R20: 9.78 | S20: 11.25
A21: Nightsave Large | B21: NL | C21: 3 | D21: 2 | E21: NL32N | I21: ≥ 500V & < 66kV | J21: 81.21 | K21: 93.39 | L21: 63.38 | M21: 72.89 | N21: 249.99 | O21: 287.49 | P21: 34.89 | Q21: 40.12 | R21: 8.98 | S21: 10.33
A22: Nightsave Large | B22: NL | C22: 3 | D22: 3 | E22: NL33N | I22: ≥ 66kV & ≤ 132kV | J22: 80.65 | K22: 92.75 | L22: 62.59 | M22: 71.98 | N22: 240.88 | O22: 277.01 | P22: 33.65 | Q22: 38.7 | R22: 8.69 | S22: 9.99
A23: Nightsave Large | B23: NL | C23: 3 | D23: 4 | E23: NL34N | I23: > 132kV* | J23: 75.47 | K23: 86.79 | L23: 58.69 | M23: 67.49 | N23: 232.39 | O23: 267.25 | P23: 32.45 | Q23: 37.32 | R23: 11.07 | S23: 12.73
I24: * 132 kV or Transmission connected
H26: Distribution network charges
H27: Voltage | J27: Network capacity charge [R/kVA/m] | L27: Network demand charge [R/kVA/m] | N27: Urban low voltage subsidy charge [R/kVA/m]
Q28: Voltage | R28: Ancillary service charge [c/kWh]
A29: Tariff | B29: Tariff nameBillcode | C29: Tx zone | D29: Voltage | E29: Billcode | K29: VAT incl | M29: VAT incl | O29: VAT incl | S29: VAT incl
A30: Nightsave Large | B30: NL | C30: 0 | D30: 1 | E30: NL01N | H30: < 500V | J30: 18.96 | K30: 21.8 | L30: 35.95 | M30: 41.34 | N30: 0 | O30: 0 | Q30: < 500V | R30: 0.44 | S30: 0.51
A31: Nightsave Large | B31: NL | C31: 0 | D31: 2 | E31: NL02N | H31: ≥ 500V & < 66kV | J31: 17.39 | K31: 20 | L31: 32.98 | M31: 37.93 | N31: 0 | O31: 0 | Q31: ≥ 500V & < 66kV | R31: 0.43 | S31: 0.49
A32: Nightsave Large | B32: NL | C32: 0 | D32: 3 | E32: NL03N | H32: ≥ 66kV & ≤ 132kV | J32: 6.21 | K32: 7.14 | L32: 11.5 | M32: 13.23 | N32: 15.32 | O32: 17.62 | Q32: ≥ 66kV & ≤ 132kV | R32: 0.41 | S32: 0.47
A33: Nightsave Large | B33: NL | C33: 0 | D33: 4 | E33: NL04N | H33: > 132kV / Transmission connected | J33: 0 | K33: 0 | L33: 0 | M33: 0 | N33: 15.32 | O33: 17.62 | Q33: > 132kV* | R33: 0.39 | S33: 0.45
Q34: * 132 kV or Transmission connected
H36: Customer categories | I36: Service charge [R/account/day] | K36: Administration charge [R/POD/day] | N36: Electrification and rural network subsidy charge [c/kWh] | P36: Affordability subsidy charge [c/kWh] Only payable by non-local authority tariffs
A38: Tariff | B38: Tariff nameBillcode | C38: Tx zone | D38: Voltage | E38: Billcode | J38: VAT incl | L38: VAT incl
A39: Nightsave Large | B39: NL | C39: 0 | D39: 1 | E39: NL01N | H39: >1 MVA | I39: 217.67 | J39: 250.32 | K39: 98.1 | L39: 112.82 | O39: VAT incl | Q39: VAT incl
A40: Nightsave Large | B40: NL | C40: 0 | D40: 1 | E40: NL01N | H40: Key customers | I40: 4265.54 | J40: 4905.37 | K40: 136.23 | L40: 156.66 | N40: 8.48 | O40: 9.75 | P40: 3.82 | Q40: 4.39
A46: Tariff | B46: Tariff nameBillcode | C46: Tx zone | D46: Voltage | E46: Billcode
A47: Nightsave Large | B47: NL | C47: 0 | D47: 1 | E47: NL01N

Sheet Nightsave Large Munic
H1: Back to menu
A2: Municiple | G2: Nightsave Urban Large – Local Authority | AG2: check value
J4: Active energy charge [c/kWh] | N4: Energy demand charge [R/kVA/m] | R4: Transmission network charges [R/kVA/m]
H5: Transmission zone | J5: High demand season [Jun - Aug] | L5: Low demand season [Sep - May] | N5: High demand season [Jun - Aug] | P5: Low demand season [Sep - May]
I6: Voltage
A7: Tariff | B7: Tariff nameBillcode | C7: Tx zone | D7: Voltage | E7: Billcode | K7: VAT incl | M7: VAT incl | O7: VAT incl | Q7: VAT incl | S7: VAT incl
A8: Nightsave Large | B8: NL | C8: 0 | D8: 1 | E8: NL01Y | H8: ≤ 300km | I8: < 500V | J8: 85.73 | K8: 98.59 | L8: 66.66 | M8: 76.66 | N8: 255.96 | O8: 294.35 | P8: 35.76 | Q8: 41.12 | R8: 9.67 | S8: 11.12
A9: Nightsave Large | B9: NL | C9: 0 | D9: 2 | E9: NL02Y | I9: ≥ 500V & < 66kV | J9: 81.18 | K9: 93.36 | L9: 63.37 | M9: 72.88 | N9: 247.74 | O9: 284.9 | P9: 34.64 | Q9: 39.84 | R9: 8.82 | S9: 10.14
A10: Nightsave Large | B10: NL | C10: 0 | D10: 3 | E10: NL03Y | I10: ≥ 66kV & ≤ 132kV | J10: 80.58 | K10: 92.67 | L10: 62.58 | M10: 71.97 | N10: 238.72 | O10: 274.53 | P10: 33.36 | Q10: 38.36 | R10: 8.59 | S10: 9.88
A11: Nightsave Large | B11: NL | C11: 0 | D11: 4 | E11: NL04Y | I11: > 132kV* | J11: 75.39 | K11: 86.7 | L11: 58.62 | M11: 67.41 | N11: 230.28 | O11: 264.82 | P11: 32.17 | Q11: 37 | R11: 10.87 | S11: 12.5
A12: Nightsave Large | B12: NL | C12: 1 | D12: 1 | E12: NL11Y | H12: > 300km and ≤ 600km | I12: < 500V | J12: 86.85 | K12: 99.88 | L12: 67.38 | M12: 77.49 | N12: 258.61 | O12: 297.4 | P12: 36.11 | Q12: 41.53 | R12: 9.71 | S12: 11.17
A13: Nightsave Large | B13: NL | C13: 1 | D13: 2 | E13: NL12Y | I13: ≥ 500V & < 66kV | J13: 82.87 | K13: 95.3 | L13: 64.64 | M13: 74.34 | N13: 250.23 | O13: 287.76 | P13: 34.94 | Q13: 40.18 | R13: 8.92 | S13: 10.26
A14: Nightsave Large | B14: NL | C14: 1 | D14: 3 | E14: NL13Y | I14: ≥ 66kV & ≤ 132kV | J14: 82.26 | K14: 94.6 | L14: 63.89 | M14: 73.47 | N14: 241.09 | O14: 277.25 | P14: 33.69 | Q14: 38.74 | R14: 8.65 | S14: 9.95
A15: Nightsave Large | B15: NL | C15: 1 | D15: 4 | E15: NL14Y | I15: > 132kV* | J15: 76.94 | K15: 88.48 | L15: 59.82 | M15: 68.79 | N15: 232.62 | O15: 267.51 | P15: 32.49 | Q15: 37.36 | R15: 10.97 | S15: 12.62
A16: Nightsave Large | B16: NL | C16: 2 | D16: 1 | E16: NL21Y | H16: > 600km and ≤ 900km | I16: < 500V | J16: 87.68 | K16: 100.83 | L16: 68.02 | M16: 78.22 | N16: 261.23 | O16: 300.41 | P16: 36.49 | Q16: 41.96 | R16: 9.84 | S16: 11.32
A17: Nightsave Large | B17: NL | C17: 2 | D17: 2 | E17: NL22Y | I17: ≥ 500V & < 66kV | J17: 83.7 | K17: 96.26 | L17: 65.31 | M17: 75.11 | N17: 252.78 | O17: 290.7 | P17: 35.32 | Q17: 40.62 | R17: 8.98 | S17: 10.33
A18: Nightsave Large | B18: NL | C18: 2 | D18: 3 | E18: NL23Y | I18: ≥ 66kV & ≤ 132kV | J18: 83.08 | K18: 95.54 | L18: 64.53 | M18: 74.21 | N18: 243.52 | O18: 280.05 | P18: 34.01 | Q18: 39.11 | R18: 8.72 | S18: 10.03
A19: Nightsave Large | B19: NL | C19: 2 | D19: 4 | E19: NL24Y | I19: > 132kV* | J19: 77.71 | K19: 89.37 | L19: 60.42 | M19: 69.48 | N19: 234.97 | O19: 270.22 | P19: 32.83 | Q19: 37.75 | R19: 11.12 | S19: 12.79
A20: Nightsave Large | B20: NL | C20: 3 | D20: 1 | E20: NL31Y | H20: > 900km | I20: < 500V | J20: 88.62 | K20: 101.91 | L20: 68.71 | M20: 79.02 | N20: 263.8 | O20: 303.37 | P20: 36.85 | Q20: 42.38 | R20: 9.89 | S20: 11.37
A21: Nightsave Large | B21: NL | C21: 3 | D21: 2 | E21: NL32Y | I21: ≥ 500V & < 66kV | J21: 84.54 | K21: 97.22 | L21: 65.94 | M21: 75.83 | N21: 255.3 | O21: 293.6 | P21: 35.64 | Q21: 40.99 | R21: 9.08 | S21: 10.44
A22: Nightsave Large | B22: NL | C22: 3 | D22: 3 | E22: NL33Y | I22: ≥ 66kV & ≤ 132kV | J22: 83.91 | K22: 96.5 | L22: 65.15 | M22: 74.92 | N22: 245.98 | O22: 282.88 | P22: 34.38 | Q22: 39.54 | R22: 8.79 | S22: 10.11
A23: Nightsave Large | B23: NL | C23: 3 | D23: 4 | E23: NL34Y | I23: > 132kV* | J23: 78.56 | K23: 90.34 | L23: 61.09 | M23: 70.25 | N23: 237.33 | O23: 272.93 | P23: 33.13 | Q23: 38.1 | R23: 11.2 | S23: 12.88
I24: * 132 kV or Transmission connected
H26: Distribution network charges
H27: Voltage | J27: Network capacity charge [R/kVA/m] | L27: Network demand charge [R/kVA/m] | N27: Urban low voltage subsidy charge [R/kVA/m]
Q28: Voltage | R28: Ancillary service charge [c/kWh]
A29: Tariff | B29: Tariff nameBillcode | C29: Tx zone | D29: Voltage | E29: Billcode | K29: VAT incl | M29: VAT incl | O29: VAT incl | S29: VAT incl
A30: Nightsave Large | B30: NL | C30: 0 | D30: 1 | E30: NL01Y | H30: < 500V | J30: 19.29 | K30: 22.18 | L30: 36.55 | M30: 42.03 | N30: 0 | O30: 0 | Q30: < 500V | R30: 0.45 | S30: 0.52
A31: Nightsave Large | B31: NL | C31: 0 | D31: 2 | E31: NL02Y | H31: ≥ 500V & < 66kV | J31: 17.68 | K31: 20.33 | L31: 33.52 | M31: 38.55 | N31: 0 | O31: 0 | Q31: ≥ 500V & < 66kV | R31: 0.44 | S31: 0.51
A32: Nightsave Large | B32: NL | C32: 0 | D32: 3 | E32: NL03Y | H32: ≥ 66kV & ≤ 132kV | J32: 6.32 | K32: 7.27 | L32: 11.69 | M32: 13.44 | N32: 15.48 | O32: 17.8 | Q32: ≥ 66kV & ≤ 132kV | R32: 0.4 | S32: 0.46
A33: Nightsave Large | B33: NL | C33: 0 | D33: 4 | E33: NL04Y | H33: > 132kV / Transmission connected | J33: 0 | K33: 0 | L33: 0 | M33: 0 | N33: 15.48 | O33: 17.8 | Q33: > 132kV* | R33: 0.38 | S33: 0.44
Q34: * 132 kV or Transmission connected
H36: Customer categories | I36: Service charge [R/account/day] | K36: Administration charge [R/POD/day] | N36: Electrification and rural network subsidy charge [c/kWh]
A38: Tariff | B38: Tariff nameBillcode | C38: Tx zone | D38: Voltage | E38: Billcode | J38: VAT incl | L38: VAT incl
A39: Nightsave Large | B39: NL | C39: 0 | D39: 1 | E39: NL01Y | H39: >1 MVA | I39: 220.24 | J39: 253.28 | K39: 99.28 | L39: 114.17 | O39: VAT incl
A40: Nightsave Large | B40: NL | C40: 0 | D40: 1 | E40: NL01Y | H40: Key customers | I40: 4315.89 | J40: 4963.27 | K40: 137.83 | L40: 158.5 | N40: 8.58 | O40: 9.87
A46: Tariff | B46: Tariff nameBillcode | C46: Tx zone | D46: Voltage | E46: Billcode
A47: Nightsave Large | B47: NL | C47: 0 | D47: 1 | E47: NL01Y

Sheet Nightsave Small NLA
G1: Back to menu
A2: Non-municipal | G2: Nightsave Urban Small – Non-local Authority | AG2: check value
J4: Active energy charge [c/kWh] | N4: Energy demand charge [R/kVA/m] | R4: Transmission network charges [R/kVA/m]
H5: Transmission zone | J5: High demand season [Jun - Aug] | L5: Low demand season [Sep - May] | N5: High demand season [Jun - Aug] | P5: Low demand season [Sep - May]
I6: Voltage
A7: Tariff | B7: Tariff nameBillcode | C7: Tx zone | D7: Voltage | E7: Billcode | K7: VAT incl | M7: VAT incl | O7: VAT incl | Q7: VAT incl | S7: VAT incl
A8: Nightsave Small | B8: NS | C8: 0 | D8: 1 | E8: NS01N | H8: ≤ 300km | I8: < 500V | J8: 82.37 | K8: 94.73 | L8: 64.03 | M8: 73.63 | N8: 176.02 | O8: 202.42 | P8: 22.68 | Q8: 26.08 | R8: 9.54 | S8: 10.97
A9: Nightsave Small | B9: NS | C9: 0 | D9: 2 | E9: NS02N | I9: ≥ 500V & < 66kV | J9: 78 | K9: 89.7 | L9: 60.89 | M9: 70.02 | N9: 170.36 | O9: 195.91 | P9: 21.92 | Q9: 25.21 | R9: 8.72 | S9: 10.03
A10: Nightsave Small | B10: NS | C10: 0 | D10: 3 | E10: NS03N | I10: ≥ 66kV & ≤ 132kV | J10: 77.43 | K10: 89.04 | L10: 60.16 | M10: 69.18 | N10: 164.09 | O10: 188.7 | P10: 21.1 | Q10: 24.27 | R10: 8.49 | S10: 9.76
A11: Nightsave Small | B11: NS | C11: 0 | D11: 4 | E11: NS04N | I11: > 132kV* | J11: 72.43 | K11: 83.29 | L11: 56.32 | M11: 64.77 | N11: 158.35 | O11: 182.1 | P11: 20.37 | Q11: 23.43 | R11: 10.73 | S11: 12.34
A12: Nightsave Small | B12: NS | C12: 1 | D12: 1 | E12: NS11N | H12: > 300km and ≤ 600km | I12: < 500V | J12: 83.48 | K12: 96 | L12: 64.74 | M12: 74.45 | N12: 177.82 | O12: 204.49 | P12: 22.87 | Q12: 26.3 | R12: 9.61 | S12: 11.05
A13: Nightsave Small | B13: NS | C13: 1 | D13: 2 | E13: NS12N | I13: ≥ 500V & < 66kV | J13: 79.64 | K13: 91.59 | L13: 62.13 | M13: 71.45 | N13: 172.07 | O13: 197.88 | P13: 22.14 | Q13: 25.46 | R13: 8.8 | S13: 10.12
A14: Nightsave Small | B14: NS | C14: 1 | D14: 3 | E14: NS13N | I14: ≥ 66kV & ≤ 132kV | J14: 79.05 | K14: 90.91 | L14: 61.38 | M14: 70.59 | N14: 165.78 | O14: 190.65 | P14: 21.33 | Q14: 24.53 | R14: 8.55 | S14: 9.83
A15: Nightsave Small | B15: NS | C15: 1 | D15: 4 | E15: NS14N | I15: > 132kV* | J15: 73.96 | K15: 85.05 | L15: 57.47 | M15: 66.09 | N15: 159.93 | O15: 183.92 | P15: 20.58 | Q15: 23.67 | R15: 10.83 | S15: 12.45
A16: Nightsave Small | B16: NS | C16: 2 | D16: 1 | E16: NS21N | H16: > 600km and ≤ 900km | I16: < 500V | J16: 84.25 | K16: 96.89 | L16: 65.36 | M16: 75.16 | N16: 179.57 | O16: 206.51 | P16: 23.08 | Q16: 26.54 | R16: 9.72 | S16: 11.18
A17: Nightsave Small | B17: NS | C17: 2 | D17: 2 | E17: NS22N | I17: ≥ 500V & < 66kV | J17: 80.43 | K17: 92.49 | L17: 62.77 | M17: 72.19 | N17: 173.83 | O17: 199.9 | P17: 22.36 | Q17: 25.71 | R17: 8.88 | S17: 10.21
A18: Nightsave Small | B18: NS | C18: 2 | D18: 3 | E18: NS23N | I18: ≥ 66kV & ≤ 132kV | J18: 79.82 | K18: 91.79 | L18: 61.99 | M18: 71.29 | N18: 167.45 | O18: 192.57 | P18: 21.54 | Q18: 24.77 | R18: 8.61 | S18: 9.9
A19: Nightsave Small | B19: NS | C19: 2 | D19: 4 | E19: NS24N | I19: > 132kV* | J19: 74.68 | K19: 85.88 | L19: 58.05 | M19: 66.76 | N19: 161.51 | O19: 185.74 | P19: 20.78 | Q19: 23.9 | R19: 10.99 | S19: 12.64
A20: Nightsave Small | B20: NS | C20: 3 | D20: 1 | E20: NS31N | H20: > 900km | I20: < 500V | J20: 85.15 | K20: 97.92 | L20: 66.03 | M20: 75.93 | N20: 181.41 | O20: 208.62 | P20: 23.33 | Q20: 26.83 | R20: 9.78 | S20: 11.25
A21: Nightsave Small | B21: NS | C21: 3 | D21: 2 | E21: NS32N | I21: ≥ 500V & < 66kV | J21: 81.21 | K21: 93.39 | L21: 63.38 | M21: 72.89 | N21: 175.53 | O21: 201.86 | P21: 22.59 | Q21: 25.98 | R21: 8.98 | S21: 10.33
A22: Nightsave Small | B22: NS | C22: 3 | D22: 3 | E22: NS33N | I22: ≥ 66kV & ≤ 132kV | J22: 80.65 | K22: 92.75 | L22: 62.59 | M22: 71.98 | N22: 169.15 | O22: 194.52 | P22: 21.77 | Q22: 25.04 | R22: 8.69 | S22: 9.99
A23: Nightsave Small | B23: NS | C23: 3 | D23: 4 | E23: NS34N | I23: > 132kV* | J23: 75.47 | K23: 86.79 | L23: 58.69 | M23: 67.49 | N23: 163.2 | O23: 187.68 | P23: 21.02 | Q23: 24.17 | R23: 11.07 | S23: 12.73
I24: * 132 kV or Transmission connected
H26: Distribution network charges
J27: Network capacity charge [R/kVA/m] | L27: Network demand charge [R/kVA/m] | N27: Urban low voltage subsidy charge [R/kVA/m]
H28: Voltage | Q28: Voltage | R28: Ancillary service charge [c/kWh]
A29: Tariff | B29: Tariff nameBillcode | C29: Tx zone | D29: Voltage | E29: Billcode | K29: VAT incl | M29: VAT incl | O29: VAT incl | S29: VAT incl
A30: Nightsave Small | B30: NS | C30: 0 | D30: 1 | E30: NS01N | H30: < 500V | J30: 18.96 | K30: 21.8 | L30: 35.95 | M30: 41.34 | N30: 0 | O30: 0 | Q30: < 500V | R30: 0.44 | S30: 0.51
A31: Nightsave Small | B31: NS | C31: 0 | D31: 2 | E31: NS02N | H31: ≥ 500V & < 66kV | J31: 17.39 | K31: 20 | L31: 32.98 | M31: 37.93 | N31: 0 | O31: 0 | Q31: ≥ 500V & < 66kV | R31: 0.43 | S31: 0.49
A32: Nightsave Small | B32: NS | C32: 0 | D32: 3 | E32: NS03N | H32: ≥ 66kV & ≤ 132kV | J32: 6.21 | K32: 7.14 | L32: 11.5 | M32: 13.23 | N32: 15.32 | O32: 17.62 | Q32: ≥ 66kV & ≤ 132kV | R32: 0.41 | S32: 0.47
A33: Nightsave Small | B33: NS | C33: 0 | D33: 4 | E33: NS04N | H33: > 132kV / Transmission connected | J33: 0 | K33: 0 | L33: 0 | M33: 0 | N33: 15.32 | O33: 17.62 | Q33: > 132kV* | R33: 0.39 | S33: 0.45
Q34: * 132 kV or Transmission connected
H36: Customer categories | I36: Service charge [R/account/day] | K36: Administration charge [R/POD/day] | N36: Electrification and rural network subsidy charge [c/kWh] | P36: Affordability subsidy charge [c/kWh] Only payable by non-local authority tariffs
A38: Tariff | B38: Tariff nameBillcode | C38: Tx zone | D38: Voltage | E38: Billcode | J38: VAT incl | L38: VAT incl
A39: Nightsave Small | B39: NS | C39: 0 | D39: 1 | E39: NS01N | H39: ≤ 100 kVA | I39: 15.49 | J39: 17.81 | K39: 3.4 | L39: 3.91 | O39: VAT incl | Q39: VAT incl
A40: Nightsave Small | B40: NS | C40: 0 | D40: 1 | E40: NS01N | H40: > 100 kVA & ≤ 500 kVA | I40: 70.74 | J40: 81.35 | K40: 19.84 | L40: 22.82 | N40: 8.48 | O40: 9.75 | P40: 3.82 | Q40: 4.39
A41: Nightsave Small | B41: NS | C41: 0 | D41: 1 | E41: NS01N | H41: > 500 kVA & ≤ 1 MVA | I41: 217.67 | J41: 250.32 | K41: 39.4 | L41: 45.31
A42: Nightsave Small | B42: NS | C42: 0 | D42: 1 | E42: NS01N | H42: Key customers | I42: 4265.54 | J42: 4905.37 | K42: 136.23 | L42: 156.66
A47: Tariff | B47: Tariff nameBillcode | C47: Tx zone | D47: Voltage | E47: Billcode
A48: Nightsave Small | B48: NS | C48: 0 | D48: 1 | E48: NS01N

Sheet Nightsave Small Munic
G1: Back to menu
A2: Municiple | G2: Nightsave Urban Small – Local Authority | AG2: check value
J4: Active energy charge [c/kWh] | N4: Energy demand charge [R/kVA/m] | R4: Transmission network charges [R/kVA/m]
H5: Transmission zone | J5: High demand season [Jun - Aug] | L5: Low demand season [Sep - May] | N5: High demand season [Jun - Aug] | P5: Low demand season [Sep - May]
I6: Voltage
A7: Tariff | B7: Tariff nameBillcode | C7: Tx zone | D7: Voltage | E7: Billcode | K7: VAT incl | M7: VAT incl | O7: VAT incl | Q7: VAT incl | S7: VAT incl
A8: Nightsave Small | B8: NS | C8: 0 | D8: 1 | E8: NS01Y | H8: ≤ 300km | I8: < 500V | J8: 85.73 | K8: 98.59 | L8: 66.66 | M8: 76.66 | N8: 179.75 | O8: 206.71 | P8: 23.18 | Q8: 26.66 | R8: 9.67 | S8: 11.12
A9: Nightsave Small | B9: NS | C9: 0 | D9: 2 | E9: NS02Y | I9: ≥ 500V & < 66kV | J9: 81.18 | K9: 93.36 | L9: 63.37 | M9: 72.88 | N9: 173.96 | O9: 200.05 | P9: 22.39 | Q9: 25.75 | R9: 8.82 | S9: 10.14
A10: Nightsave Small | B10: NS | C10: 0 | D10: 3 | E10: NS03Y | I10: ≥ 66kV & ≤ 132kV | J10: 80.58 | K10: 92.67 | L10: 62.58 | M10: 71.97 | N10: 167.59 | O10: 192.73 | P10: 21.54 | Q10: 24.77 | R10: 8.59 | S10: 9.88
A11: Nightsave Small | B11: NS | C11: 0 | D11: 4 | E11: NS04Y | I11: > 132kV* | J11: 75.39 | K11: 86.7 | L11: 58.62 | M11: 67.41 | N11: 161.71 | O11: 185.97 | P11: 20.8 | Q11: 23.92 | R11: 10.87 | S11: 12.5
A12: Nightsave Small | B12: NS | C12: 1 | D12: 1 | E12: NS11Y | H12: > 300km and ≤ 600km | I12: < 500V | J12: 86.85 | K12: 99.88 | L12: 67.38 | M12: 77.49 | N12: 181.6 | O12: 208.84 | P12: 23.37 | Q12: 26.88 | R12: 9.71 | S12: 11.17
A13: Nightsave Small | B13: NS | C13: 1 | D13: 2 | E13: NS12Y | I13: ≥ 500V & < 66kV | J13: 82.87 | K13: 95.3 | L13: 64.64 | M13: 74.34 | N13: 175.76 | O13: 202.12 | P13: 22.59 | Q13: 25.98 | R13: 8.92 | S13: 10.26
A14: Nightsave Small | B14: NS | C14: 1 | D14: 3 | E14: NS13Y | I14: ≥ 66kV & ≤ 132kV | J14: 82.26 | K14: 94.6 | L14: 63.89 | M14: 73.47 | N14: 169.32 | O14: 194.72 | P14: 21.76 | Q14: 25.02 | R14: 8.65 | S14: 9.95
A15: Nightsave Small | B15: NS | C15: 1 | D15: 4 | E15: NS14Y | I15: > 132kV* | J15: 76.94 | K15: 88.48 | L15: 59.82 | M15: 68.79 | N15: 163.33 | O15: 187.83 | P15: 21.01 | Q15: 24.16 | R15: 10.97 | S15: 12.62
A16: Nightsave Small | B16: NS | C16: 2 | D16: 1 | E16: NS21Y | H16: > 600km and ≤ 900km | I16: < 500V | J16: 87.68 | K16: 100.83 | L16: 68.02 | M16: 78.22 | N16: 183.41 | O16: 210.92 | P16: 23.58 | Q16: 27.12 | R16: 9.84 | S16: 11.32
A17: Nightsave Small | B17: NS | C17: 2 | D17: 2 | E17: NS22Y | I17: ≥ 500V & < 66kV | J17: 83.7 | K17: 96.26 | L17: 65.31 | M17: 75.11 | N17: 177.5 | O17: 204.13 | P17: 22.84 | Q17: 26.27 | R17: 8.98 | S17: 10.33
A18: Nightsave Small | B18: NS | C18: 2 | D18: 3 | E18: NS23Y | I18: ≥ 66kV & ≤ 132kV | J18: 83.08 | K18: 95.54 | L18: 64.53 | M18: 74.21 | N18: 171.02 | O18: 196.67 | P18: 21.99 | Q18: 25.29 | R18: 8.72 | S18: 10.03
A19: Nightsave Small | B19: NS | C19: 2 | D19: 4 | E19: NS24Y | I19: > 132kV* | J19: 77.71 | K19: 89.37 | L19: 60.42 | M19: 69.48 | N19: 164.95 | O19: 189.69 | P19: 21.21 | Q19: 24.39 | R19: 11.12 | S19: 12.79
A20: Nightsave Small | B20: NS | C20: 3 | D20: 1 | E20: NS31Y | H20: > 900km | I20: < 500V | J20: 88.62 | K20: 101.91 | L20: 68.71 | M20: 79.02 | N20: 185.26 | O20: 213.05 | P20: 23.81 | Q20: 27.38 | R20: 9.89 | S20: 11.37
A21: Nightsave Small | B21: NS | C21: 3 | D21: 2 | E21: NS32Y | I21: ≥ 500V & < 66kV | J21: 84.54 | K21: 97.22 | L21: 65.94 | M21: 75.83 | N21: 179.26 | O21: 206.15 | P21: 23.06 | Q21: 26.52 | R21: 9.08 | S21: 10.44
A22: Nightsave Small | B22: NS | C22: 3 | D22: 3 | E22: NS33Y | I22: ≥ 66kV & ≤ 132kV | J22: 83.91 | K22: 96.5 | L22: 65.15 | M22: 74.92 | N22: 172.74 | O22: 198.65 | P22: 22.22 | Q22: 25.55 | R22: 8.79 | S22: 10.11
A23: Nightsave Small | B23: NS | C23: 3 | D23: 4 | E23: NS34Y | I23: > 132kV* | J23: 78.56 | K23: 90.34 | L23: 61.09 | M23: 70.25 | N23: 166.68 | O23: 191.68 | P23: 21.46 | Q23: 24.68 | R23: 11.2 | S23: 12.88
I24: * 132 kV or Transmission connected
H26: Distribution network charges
J27: Network capacity charge [R/kVA/m] | L27: Network demand charge [R/kVA/m] | N27: Urban low voltage subsidy charge [R/kVA/m]
H28: Voltage | Q28: Voltage | R28: Ancillary service charge [c/kWh]
A29: Tariff | B29: Tariff nameBillcode | C29: Tx zone | D29: Voltage | E29: Billcode | K29: VAT incl | M29: VAT incl | O29: VAT incl | S29: VAT incl
A30: Nightsave Small | B30: NS | C30: 0 | D30: 1 | E30: NS01Y | H30: < 500V | J30: 19.29 | K30: 22.18 | L30: 36.55 | M30: 42.03 | N30: 0 | O30: 0 | Q30: < 500V | R30: 0.45 | S30: 0.52
A31: Nightsave Small | B31: NS | C31: 0 | D31: 2 | E31: NS02Y | H31: ≥ 500V & < 66kV | J31: 17.68 | K31: 20.33 | L31: 33.52 | M31: 38.55 | N31: 0 | O31: 0 | Q31: ≥ 500V & < 66kV | R31: 0.44 | S31: 0.51
A32: Nightsave Small | B32: NS | C32: 0 | D32: 3 | E32: NS03Y | H32: ≥ 66kV & ≤ 132kV | J32: 6.32 | K32: 7.27 | L32: 11.69 | M32: 13.44 | N32: 15.48 | O32: 17.8 | Q32: ≥ 66kV & ≤ 132kV | R32: 0.4 | S32: 0.46
A33: Nightsave Small | B33: NS | C33: 0 | D33: 4 | E33: NS04Y | H33: > 132kV / Transmission connected | J33: 0 | K33: 0 | L33: 0 | M33: 0 | N33: 15.48 | O33: 17.8 | Q33: > 132kV* | R33: 0.38 | S33: 0.44
Q34: * 132 kV or Transmission connected
H36: Customer categories | I36: Service charge [R/account/day] | K36: Administration charge [R/POD/day] | N36: Electrification and rural network subsidy charge [c/kWh]
A38: Tariff | B38: Tariff nameBillcode | C38: Tx zone | D38: Voltage | E38: Billcode | J38: VAT incl | L38: VAT incl
A39: Nightsave Small | B39: NS | C39: 0 | D39: 1 | E39: NS01Y | H39: ≤ 100 kVA | I39: 15.66 | J39: 18.01 | K39: 3.43 | L39: 3.94 | O39: VAT incl
A40: Nightsave Small | B40: NS | C40: 0 | D40: 1 | E40: NS01Y | H40: > 100 kVA & ≤ 500 kVA | I40: 71.56 | J40: 82.29 | K40: 20.05 | L40: 23.06 | N40: 8.58 | O40: 9.87
A41: Nightsave Small | B41: NS | C41: 0 | D41: 1 | E41: NS01Y | H41: > 500 kVA & ≤ 1 MVA | I41: 220.24 | J41: 253.28 | K41: 39.87 | L41: 45.85
A42: Nightsave Small | B42: NS | C42: 0 | D42: 1 | E42: NS01Y | H42: Key customers | I42: 4315.89 | J42: 4963.27 | K42: 137.83 | L42: 158.5
A47: Tariff | B47: Tariff nameBillcode | C47: Tx zone | D47: Voltage | E47: Billcode
A48: Nightsave Small | B48: NS | C48: 0 | D48: 1 | E48: NS01Y

Sheet Megaflex NLA
G1: Back to menu
A2: Non-municipal | G2: Megaflex – Non-local Authority | AG2: check value
J4: Active energy charge [c/kWh] | V4: Transmission network charges [R/kVA/m]
H5: Transmission zone | J5: High demand season [Jun - Aug] | P5: Low demand season [Sep - May]
I6: Voltage | J6: Peak | L6: Standard | N6: Off Peak | P6: Peak | R6: Standard | T6: Off Peak
A7: Tariff | B7: Tariff nameBillcode | C7: Tx zone | D7: Voltage | E7: Billcode | K7: VAT incl | M7: VAT incl | O7: VAT incl | Q7: VAT incl | S7: VAT incl | U7: VAT incl | W7: VAT incl
A8: Megaflex | B8: Me | C8: 0 | D8: 1 | E8: Me01N | H8: ≤ 300km | I8: < 500V | J8: 333.51 | K8: 383.54 | L8: 101.47 | M8: 116.69 | N8: 55.41 | O8: 63.72 | P8: 109.21 | Q8: 125.59 | R8: 75.36 | S8: 86.66 | T8: 48.04 | U8: 55.25 | V8: 9.54 | W8: 10.97
A9: Megaflex | B9: Me | C9: 0 | D9: 2 | E9: Me02N | I9: ≥ 500V & < 66kV | J9: 328.28 | K9: 377.52 | L9: 99.45 | M9: 114.37 | N9: 54.01 | O9: 62.11 | P9: 107.07 | Q9: 123.13 | R9: 73.71 | S9: 84.77 | T9: 46.76 | U9: 53.77 | V9: 8.72 | W9: 10.03
A10: Megaflex | B10: Me | C10: 0 | D10: 3 | E10: Me03N | I10: ≥ 66kV & ≤ 132kV | J10: 317.88 | K10: 365.56 | L10: 96.29 | M10: 110.73 | N10: 52.3 | O10: 60.15 | P10: 103.71 | Q10: 119.27 | R10: 71.36 | S10: 82.06 | T10: 45.29 | U10: 52.08 | V10: 8.49 | W10: 9.76
A11: Megaflex | B11: Me | C11: 0 | D11: 4 | E11: Me04N | I11: > 132kV* | J11: 299.6 | K11: 344.54 | L11: 90.75 | M11: 104.36 | N11: 49.29 | O11: 56.68 | P11: 97.76 | Q11: 112.42 | R11: 67.26 | S11: 77.35 | T11: 42.68 | U11: 49.08 | V11: 10.73 | W11: 12.34
A12: Megaflex | B12: Me | C12: 1 | D12: 1 | E12: Me11N | H12: > 300km and ≤ 600km | I12: < 500V | J12: 336.24 | K12: 386.68 | L12: 101.88 | M12: 117.16 | N12: 55.31 | O12: 63.61 | P12: 109.69 | Q12: 126.14 | R12: 75.52 | S12: 86.85 | T12: 47.91 | U12: 55.1 | V12: 9.61 | W12: 11.05
A13: Megaflex | B13: Me | C13: 1 | D13: 2 | E13: Me12N | I13: ≥ 500V & < 66kV | J13: 331.56 | K13: 381.29 | L13: 100.43 | M13: 115.49 | N13: 54.54 | O13: 62.72 | P13: 108.17 | Q13: 124.4 | R13: 74.44 | S13: 85.61 | T13: 47.22 | U13: 54.3 | V13: 8.8 | W13: 10.12
A14: Megaflex | B14: Me | C14: 1 | D14: 3 | E14: Me13N | I14: ≥ 66kV & ≤ 132kV | J14: 321.01 | K14: 369.16 | L14: 97.23 | M14: 111.81 | N14: 52.79 | O14: 60.71 | P14: 104.71 | Q14: 120.42 | R14: 72.07 | S14: 82.88 | T14: 45.72 | U14: 52.58 | V14: 8.55 | W14: 9.83
A15: Megaflex | B15: Me | C15: 1 | D15: 4 | E15: Me14N | I15: > 132kV* | J15: 302.6 | K15: 347.99 | L15: 91.68 | M15: 105.43 | N15: 49.75 | O15: 57.21 | P15: 98.69 | Q15: 113.49 | R15: 67.92 | S15: 78.11 | T15: 43.08 | U15: 49.54 | V15: 10.83 | W15: 12.45
A16: Megaflex | B16: Me | C16: 2 | D16: 1 | E16: Me21N | H16: > 600km and ≤ 900km | I16: < 500V | J16: 339.58 | K16: 390.52 | L16: 102.87 | M16: 118.3 | N16: 55.84 | O16: 64.22 | P16: 110.78 | Q16: 127.4 | R16: 76.25 | S16: 87.69 | T16: 48.35 | U16: 55.6 | V16: 9.72 | W16: 11.18
A17: Megaflex | B17: Me | C17: 2 | D17: 2 | E17: Me22N | I17: ≥ 500V & < 66kV | J17: 334.89 | K17: 385.12 | L17: 101.46 | M17: 116.68 | N17: 55.09 | O17: 63.35 | P17: 109.24 | Q17: 125.63 | R17: 75.19 | S17: 86.47 | T17: 47.7 | U17: 54.86 | V17: 8.88 | W17: 10.21
A18: Megaflex | B18: Me | C18: 2 | D18: 3 | E18: Me23N | I18: ≥ 66kV & ≤ 132kV | J18: 324.28 | K18: 372.92 | L18: 98.24 | M18: 112.98 | N18: 53.34 | O18: 61.34 | P18: 105.77 | Q18: 121.64 | R18: 72.81 | S18: 83.73 | T18: 46.19 | U18: 53.12 | V18: 8.61 | W18: 9.9
A19: Megaflex | B19: Me | C19: 2 | D19: 4 | E19: Me24N | I19: > 132kV* | J19: 305.65 | K19: 351.5 | L19: 92.58 | M19: 106.47 | N19: 50.3 | O19: 57.85 | P19: 99.7 | Q19: 114.66 | R19: 68.61 | S19: 78.9 | T19: 43.54 | U19: 50.07 | V19: 10.99 | W19: 12.64
A20: Megaflex | B20: Me | C20: 3 | D20: 1 | E20: Me31N | H20: > 900km | I20: < 500V | J20: 343 | K20: 394.45 | L20: 103.94 | M20: 119.53 | N20: 56.42 | O20: 64.88 | P20: 111.9 | Q20: 128.69 | R20: 77 | S20: 88.55 | T20: 48.87 | U20: 56.2 | V20: 9.78 | W20: 11.25
A21: Megaflex | B21: Me | C21: 3 | D21: 2 | E21: Me32N | I21: ≥ 500V & < 66kV | J21: 338.22 | K21: 388.95 | L21: 102.45 | M21: 117.82 | N21: 55.61 | O21: 63.95 | P21: 110.31 | Q21: 126.86 | R21: 75.91 | S21: 87.3 | T21: 48.17 | U21: 55.4 | V21: 8.98 | W21: 10.33
A22: Megaflex | B22: Me | C22: 3 | D22: 3 | E22: Me33N | I22: ≥ 66kV & ≤ 132kV | J22: 327.54 | K22: 376.67 | L22: 99.21 | M22: 114.09 | N22: 53.87 | O22: 61.95 | P22: 106.83 | Q22: 122.85 | R22: 73.54 | S22: 84.57 | T22: 46.65 | U22: 53.65 | V22: 8.69 | W22: 9.99
A23: Megaflex | B23: Me | C23: 3 | D23: 4 | E23: Me34N | I23: > 132kV* | J23: 308.62 | K23: 354.91 | L23: 93.53 | M23: 107.56 | N23: 50.82 | O23: 58.44 | P23: 100.74 | Q23: 115.85 | R23: 69.36 | S23: 79.76 | T23: 44.02 | U23: 50.62 | V23: 11.07 | W23: 12.73
I24: * 132 kV or Transmission connected
H26: Distribution network charges
J27: Network capacity charge [R/kVA/m] | L27: Network demand charge [R/kVA/m] | N27: Urban low voltage subsidy charge [R/kVA/m]
H28: Voltage | Q28: Voltage | S28: Ancillary service charge [c/kWh]
A29: Tariff | B29: Tariff nameBillcode | C29: Tx zone | D29: Voltage | E29: Billcode | K29: VAT incl | M29: VAT incl | O29: VAT incl | T29: VAT incl
A30: Megaflex | B30: Me | C30: 0 | D30: 1 | E30: Me01N | H30: < 500V | J30: 18.96 | K30: 21.8 | L30: 35.95 | M30: 41.34 | N30: 0 | O30: 0 | Q30: < 500V | S30: 0.44 | T30: 0.51
A31: Megaflex | B31: Me | C31: 0 | D31: 2 | E31: Me02N | H31: ≥ 500V & < 66kV | J31: 17.39 | K31: 20 | L31: 32.98 | M31: 37.93 | N31: 0 | O31: 0 | Q31: ≥ 500V & < 66kV | S31: 0.43 | T31: 0.49
A32: Megaflex | B32: Me | C32: 0 | D32: 3 | E32: Me03N | H32: ≥ 66kV & ≤ 132kV | J32: 6.21 | K32: 7.14 | L32: 11.5 | M32: 13.23 | N32: 15.32 | O32: 17.62 | Q32: ≥ 66kV & ≤ 132kV | S32: 0.41 | T32: 0.47
A33: Megaflex | B33: Me | C33: 0 | D33: 4 | E33: Me04N | H33: > 132kV* | J33: 0 | K33: 0 | L33: 0 | M33: 0 | N33: 15.32 | O33: 17.62 | Q33: > 132kV* | S33: 0.39 | T33: 0.45
H34: * 132 kV or Transmission connected | Q34: * 132 kV or Transmission connected
H36: Customer categories | J36: Service charge [R/account/day] | L36: Administration charge [R/POD/day] | Q36: Reactive energy charge [c/kVArh]
Q37: High season | S37: Low season
A38: Tariff | B38: Tariff nameBillcode | C38: Tx zone | D38: Voltage | E38: Billcode | K38: VAT incl | M38: VAT incl | R38: VAT incl | T38: VAT incl
A39: Megaflex | B39: Me | C39: 0 | D39: 1 | E39: Me01N | H39: > 1 MVA | J39: 217.67 | K39: 250.32 | L39: 98.1 | M39: 112.82 | Q39: 15.34 | R39: 17.64 | S39: 0 | T39: 0
A40: Megaflex | B40: Me | C40: 0 | D40: 1 | E40: Me01N | H40: Key customers | J40: 4265.54 | K40: 4905.37 | L40: 136.23 | M40: 156.66
H42: Electrification and rural network subsidy charge [c/kWh] | J42: Affordability subsidy charge [c/kWh] Only payable by non-local authority tariffs
A45: Tariff | B45: Tariff nameBillcode | C45: Tx zone | D45: Voltage | E45: Billcode | I45: VAT incl | K45: VAT incl
A46: Megaflex | B46: Me | C46: 0 | D46: 1 | E46: Me01N | H46: 8.48 | I46: 9.75 | J46: 3.82 | K46: 4.39

Sheet Megaflex Munic
G1: Back to menu
A2: Municiple | G2: Megaflex – Local Authority | AG2: check value
J4: Active energy charge [c/kWh] | V4: Transmission network charges [R/kVA/m]
H5: Transmission zone | J5: High demand season [Jun - Aug] | P5: Low demand season [Sep - May]
I6: Voltage | J6: Peak | L6: Standard | N6: Off Peak | P6: Peak | R6: Standard | T6: Off Peak
A7: Tariff | B7: Tariff nameBillcode | C7: Tx zone | D7: Voltage | E7: Billcode | K7: VAT incl | M7: VAT incl | O7: VAT incl | Q7: VAT incl | S7: VAT incl | U7: VAT incl | W7: VAT incl
A8: Megaflex | B8: Me | C8: 0 | D8: 1 | E8: Me01Y | H8: ≤ 300km | I8: < 500V | J8: 347.1 | K8: 399.17 | L8: 105.62 | M8: 121.46 | N8: 57.63 | O8: 66.27 | P8: 113.64 | Q8: 130.69 | R8: 78.43 | S8: 90.19 | T8: 49.99 | U8: 57.49 | V8: 9.67 | W8: 11.12
A9: Megaflex | B9: Me | C9: 0 | D9: 2 | E9: Me02Y | I9: ≥ 500V & < 66kV | J9: 341.63 | K9: 392.87 | L9: 103.51 | M9: 119.04 | N9: 56.21 | O9: 64.64 | P9: 111.44 | Q9: 128.16 | R9: 76.7 | S9: 88.21 | T9: 48.67 | U9: 55.97 | V9: 8.82 | W9: 10.14
A10: Megaflex | B10: Me | C10: 0 | D10: 3 | E10: Me03Y | I10: ≥ 66kV & ≤ 132kV | J10: 330.85 | K10: 380.48 | L10: 100.22 | M10: 115.25 | N10: 54.43 | O10: 62.59 | P10: 107.93 | Q10: 124.12 | R10: 74.29 | S10: 85.43 | T10: 47.12 | U10: 54.19 | V10: 8.59 | W10: 9.88
A11: Megaflex | B11: Me | C11: 0 | D11: 4 | E11: Me04Y | I11: > 132kV* | J11: 311.81 | K11: 358.58 | L11: 94.46 | M11: 108.63 | N11: 51.29 | O11: 58.98 | P11: 101.71 | Q11: 116.97 | R11: 70 | S11: 80.5 | T11: 44.41 | U11: 51.07 | V11: 10.87 | W11: 12.5
A12: Megaflex | B12: Me | C12: 1 | D12: 1 | E12: Me11Y | H12: > 300km and ≤ 600km | I12: < 500V | J12: 349.93 | K12: 402.42 | L12: 106.01 | M12: 121.91 | N12: 57.56 | O12: 66.19 | P12: 114.15 | Q12: 131.27 | R12: 78.59 | S12: 90.38 | T12: 49.85 | U12: 57.33 | V12: 9.71 | W12: 11.17
A13: Megaflex | B13: Me | C13: 1 | D13: 2 | E13: Me12Y | I13: ≥ 500V & < 66kV | J13: 345.04 | K13: 396.8 | L13: 104.53 | M13: 120.21 | N13: 56.76 | O13: 65.27 | P13: 112.57 | Q13: 129.46 | R13: 77.47 | S13: 89.09 | T13: 49.14 | U13: 56.51 | V13: 8.92 | W13: 10.26
A14: Megaflex | B14: Me | C14: 1 | D14: 3 | E14: Me13Y | I14: ≥ 66kV & ≤ 132kV | J14: 334.09 | K14: 384.2 | L14: 101.2 | M14: 116.38 | N14: 54.95 | O14: 63.19 | P14: 108.98 | Q14: 125.33 | R14: 75 | S14: 86.25 | T14: 47.57 | U14: 54.71 | V14: 8.65 | W14: 9.95
A15: Megaflex | B15: Me | C15: 1 | D15: 4 | E15: Me14Y | I15: > 132kV* | J15: 314.92 | K15: 362.16 | L15: 95.42 | M15: 109.73 | N15: 51.8 | O15: 59.57 | P15: 102.71 | Q15: 118.12 | R15: 70.71 | S15: 81.32 | T15: 44.85 | U15: 51.58 | V15: 10.97 | W15: 12.62
A16: Megaflex | B16: Me | C16: 2 | D16: 1 | E16: Me21Y | H16: > 600km and ≤ 900km | I16: < 500V | J16: 353.42 | K16: 406.43 | L16: 107.07 | M16: 123.13 | N16: 58.13 | O16: 66.85 | P16: 115.28 | Q16: 132.57 | R16: 79.36 | S16: 91.26 | T16: 50.35 | U16: 57.9 | V16: 9.84 | W16: 11.32
A17: Megaflex | B17: Me | C17: 2 | D17: 2 | E17: Me22Y | I17: ≥ 500V & < 66kV | J17: 348.52 | K17: 400.8 | L17: 105.57 | M17: 121.41 | N17: 57.33 | O17: 65.93 | P17: 113.71 | Q17: 130.77 | R17: 78.21 | S17: 89.94 | T17: 49.64 | U17: 57.09 | V17: 8.98 | W17: 10.33
A18: Megaflex | B18: Me | C18: 2 | D18: 3 | E18: Me23Y | I18: ≥ 66kV & ≤ 132kV | J18: 337.49 | K18: 388.11 | L18: 102.22 | M18: 117.55 | N18: 55.5 | O18: 63.83 | P18: 110.06 | Q18: 126.57 | R18: 75.75 | S18: 87.11 | T18: 48.04 | U18: 55.25 | V18: 8.72 | W18: 10.03
A19: Megaflex | B19: Me | C19: 2 | D19: 4 | E19: Me24Y | I19: > 132kV* | J19: 318.07 | K19: 365.78 | L19: 96.37 | M19: 110.83 | N19: 52.32 | O19: 60.17 | P19: 103.77 | Q19: 119.34 | R19: 71.41 | S19: 82.12 | T19: 45.3 | U19: 52.1 | V19: 11.12 | W19: 12.79
A20: Megaflex | B20: Me | C20: 3 | D20: 1 | E20: Me31Y | H20: > 900km | I20: < 500V | J20: 356.97 | K20: 410.52 | L20: 108.15 | M20: 124.37 | N20: 58.73 | O20: 67.54 | P20: 116.45 | Q20: 133.92 | R20: 80.14 | S20: 92.16 | T20: 50.85 | U20: 58.48 | V20: 9.89 | W20: 11.37
A21: Megaflex | B21: Me | C21: 3 | D21: 2 | E21: Me32Y | I21: ≥ 500V & < 66kV | J21: 352 | K21: 404.8 | L21: 106.62 | M21: 122.61 | N21: 57.91 | O21: 66.6 | P21: 114.81 | Q21: 132.03 | R21: 79.02 | S21: 90.87 | T21: 50.11 | U21: 57.63 | V21: 9.08 | W21: 10.44
A22: Megaflex | B22: Me | C22: 3 | D22: 3 | E22: Me33Y | I22: ≥ 66kV & ≤ 132kV | J22: 340.89 | K22: 392.02 | L22: 103.27 | M22: 118.76 | N22: 56.08 | O22: 64.49 | P22: 111.19 | Q22: 127.87 | R22: 76.51 | S22: 87.99 | T22: 48.54 | U22: 55.82 | V22: 8.79 | W22: 10.11
A23: Megaflex | B23: Me | C23: 3 | D23: 4 | E23: Me34Y | I23: > 132kV* | J23: 321.21 | K23: 369.39 | L23: 97.35 | M23: 111.95 | N23: 52.9 | O23: 60.84 | P23: 104.83 | Q23: 120.55 | R23: 72.16 | S23: 82.98 | T23: 45.8 | U23: 52.67 | V23: 11.2 | W23: 12.88
I24: * 132 kV or Transmission connected
H26: Distribution network charges
J27: Network capacity charge [R/kVA/m] | L27: Network demand charge [R/kVA/m] | N27: Urban low voltage subsidy charge [R/kVA/m]
H28: Voltage | Q28: Voltage | S28: Ancillary service charge [c/kWh]
A29: Tariff | B29: Tariff nameBillcode | C29: Tx zone | D29: Voltage | E29: Billcode | K29: VAT incl | M29: VAT incl | O29: VAT incl | T29: VAT incl
A30: Megaflex | B30: Me | C30: 0 | D30: 1 | E30: Me01Y | H30: < 500V | J30: 19.29 | K30: 22.18 | L30: 36.55 | M30: 42.03 | N30: 0 | O30: 0 | Q30: < 500V | S30: 0.45 | T30: 0.52
A31: Megaflex | B31: Me | C31: 0 | D31: 2 | E31: Me02Y | H31: ≥ 500V & < 66kV | J31: 17.68 | K31: 20.33 | L31: 33.52 | M31: 38.55 | N31: 0 | O31: 0 | Q31: ≥ 500V & < 66kV | S31: 0.44 | T31: 0.51
A32: Megaflex | B32: Me | C32: 0 | D32: 3 | E32: Me03Y | H32: ≥ 66kV & ≤ 132kV | J32: 6.32 | K32: 7.27 | L32: 11.69 | M32: 13.44 | N32: 15.48 | O32: 17.8 | Q32: ≥ 66kV & ≤ 132kV | S32: 0.4 | T32: 0.46
A33: Megaflex | B33: Me | C33: 0 | D33: 4 | E33: Me04Y | H33: > 132kV* | J33: 0 | K33: 0 | L33: 0 | M33: 0 | N33: 15.48 | O33: 17.8 | Q33: > 132kV* | S33: 0.38 | T33: 0.44
H34: * 132 kV or Transmission connected | Q34: * 132 kV or Transmission connected
H36: Customer categories | J36: Service charge [R/account/day] | L36: Administration charge [R/POD/day] | Q36: Reactive energy charge [c/kVArh]
Q37: High season | S37: Low season
A38: Tariff | B38: Tariff nameBillcode | C38: Tx zone | D38: Voltage | E38: Billcode | K38: VAT incl | M38: VAT incl | R38: VAT incl | T38: VAT incl
A39: Megaflex | B39: Me | C39: 0 | D39: 1 | E39: Me01Y | H39: > 1 MVA | J39: 220.24 | K39: 253.28 | L39: 99.28 | M39: 114.17 | Q39: 15.49 | R39: 17.81 | S39: 0 | T39: 0
A40: Megaflex | B40: Me | C40: 0 | D40: 1 | E40: Me01Y | H40: Key customers | J40: 4315.89 | K40: 4963.27 | L40: 137.83 | M40: 158.5
H42: Electrification and rural network subsidy charge [c/kWh]
A45: Tariff | B45: Tariff nameBillcode | C45: Tx zone | D45: Voltage | E45: Billcode | I45: VAT incl
A46: Megaflex | B46: Me | C46: 0 | D46: 1 | E46: Me01Y | H46: 8.58 | I46: 9.87

Sheet Megaflex Gen NLA
G1: Back to menu
A2: Non-municipal | G2: Megaflex Gen - Non-local authority
J4: Active energy charge for loads [c/kWh] | V4: Transmission network charges [R/kVA/m]
H5: Transmission zone | J5: High demand season [Jun - Aug] | P5: Low demand season [Sep - May]
I6: Voltage | J6: Peak | L6: Standard | N6: Off Peak | P6: Peak | R6: Standard | T6: Off Peak
A7: Tariff | B7: Tariff nameBillcode | C7: Tx zone | D7: Voltage | E7: Billcode | K7: VAT incl | M7: VAT incl | O7: VAT incl | Q7: VAT incl | S7: VAT incl | U7: VAT incl | W7: VAT incl
A8: Genflex urban loads | B8: GU | C8: 0 | D8: 1 | E8: GU01N | H8: ≤ 300km | I8: < 500V | J8: 333.51 | K8: 383.54 | L8: 101.47 | M8: 116.69 | N8: 55.41 | O8: 63.72 | P8: 109.21 | Q8: 125.59 | R8: 75.36 | S8: 86.66 | T8: 48.04 | U8: 55.25 | V8: 9.54 | W8: 10.97
A9: Genflex urban loads | B9: GU | C9: 0 | D9: 2 | E9: GU02N | I9: ≥ 500V & < 66kV | J9: 328.28 | K9: 377.52 | L9: 99.45 | M9: 114.37 | N9: 54.01 | O9: 62.11 | P9: 107.07 | Q9: 123.13 | R9: 73.71 | S9: 84.77 | T9: 46.76 | U9: 53.77 | V9: 8.72 | W9: 10.03
A10: Genflex urban loads | B10: GU | C10: 0 | D10: 3 | E10: GU03N | I10: ≥ 66kV & ≤ 132kV | J10: 317.88 | K10: 365.56 | L10: 96.29 | M10: 110.73 | N10: 52.3 | O10: 60.15 | P10: 103.71 | Q10: 119.27 | R10: 71.36 | S10: 82.06 | T10: 45.29 | U10: 52.08 | V10: 8.49 | W10: 9.76
A11: Genflex urban loads | B11: GU | C11: 0 | D11: 4 | E11: GU04N | I11: > 132kV* | J11: 299.6 | K11: 344.54 | L11: 90.75 | M11: 104.36 | N11: 49.29 | O11: 56.68 | P11: 97.76 | Q11: 112.42 | R11: 67.26 | S11: 77.35 | T11: 42.68 | U11: 49.08 | V11: 10.73 | W11: 12.34
A12: Genflex urban loads | B12: GU | C12: 1 | D12: 1 | E12: GU11N | H12: > 300km and ≤ 600km | I12: < 500V | J12: 336.24 | K12: 386.68 | L12: 101.88 | M12: 117.16 | N12: 55.31 | O12: 63.61 | P12: 109.69 | Q12: 126.14 | R12: 75.52 | S12: 86.85 | T12: 47.91 | U12: 55.1 | V12: 9.61 | W12: 11.05
A13: Genflex urban loads | B13: GU | C13: 1 | D13: 2 | E13: GU12N | I13: ≥ 500V & < 66kV | J13: 331.56 | K13: 381.29 | L13: 100.43 | M13: 115.49 | N13: 54.54 | O13: 62.72 | P13: 108.17 | Q13: 124.4 | R13: 74.44 | S13: 85.61 | T13: 47.22 | U13: 54.3 | V13: 8.8 | W13: 10.12
A14: Genflex urban loads | B14: GU | C14: 1 | D14: 3 | E14: GU13N | I14: ≥ 66kV & ≤ 132kV | J14: 321.01 | K14: 369.16 | L14: 97.23 | M14: 111.81 | N14: 52.79 | O14: 60.71 | P14: 104.71 | Q14: 120.42 | R14: 72.07 | S14: 82.88 | T14: 45.72 | U14: 52.58 | V14: 8.55 | W14: 9.83
A15: Genflex urban loads | B15: GU | C15: 1 | D15: 4 | E15: GU14N | I15: > 132kV* | J15: 302.6 | K15: 347.99 | L15: 91.68 | M15: 105.43 | N15: 49.75 | O15: 57.21 | P15: 98.69 | Q15: 113.49 | R15: 67.92 | S15: 78.11 | T15: 43.08 | U15: 49.54 | V15: 10.83 | W15: 12.45
A16: Genflex urban loads | B16: GU | C16: 2 | D16: 1 | E16: GU21N | H16: > 600km and ≤ 900km | I16: < 500V | J16: 339.58 | K16: 390.52 | L16: 102.87 | M16: 118.3 | N16: 55.84 | O16: 64.22 | P16: 110.78 | Q16: 127.4 | R16: 76.25 | S16: 87.69 | T16: 48.35 | U16: 55.6 | V16: 9.72 | W16: 11.18
A17: Genflex urban loads | B17: GU | C17: 2 | D17: 2 | E17: GU22N | I17: ≥ 500V & < 66kV | J17: 334.89 | K17: 385.12 | L17: 101.46 | M17: 116.68 | N17: 55.09 | O17: 63.35 | P17: 109.24 | Q17: 125.63 | R17: 75.19 | S17: 86.47 | T17: 47.7 | U17: 54.86 | V17: 8.88 | W17: 10.21
A18: Genflex urban loads | B18: GU | C18: 2 | D18: 3 | E18: GU23N | I18: ≥ 66kV & ≤ 132kV | J18: 324.28 | K18: 372.92 | L18: 98.24 | M18: 112.98 | N18: 53.34 | O18: 61.34 | P18: 105.77 | Q18: 121.64 | R18: 72.81 | S18: 83.73 | T18: 46.19 | U18: 53.12 | V18: 8.61 | W18: 9.9
A19: Genflex urban loads | B19: GU | C19: 2 | D19: 4 | E19: GU24N | I19: > 132kV* | J19: 305.65 | K19: 351.5 | L19: 92.58 | M19: 106.47 | N19: 50.3 | O19: 57.85 | P19: 99.7 | Q19: 114.66 | R19: 68.61 | S19: 78.9 | T19: 43.54 | U19: 50.07 | V19: 10.99 | W19: 12.64
A20: Genflex urban loads | B20: GU | C20: 3 | D20: 1 | E20: GU31N | H20: > 900km | I20: < 500V | J20: 343 | K20: 394.45 | L20: 103.94 | M20: 119.53 | N20: 56.42 | O20: 64.88 | P20: 111.9 | Q20: 128.69 | R20: 77 | S20: 88.55 | T20: 48.87 | U20: 56.2 | V20: 9.78 | W20: 11.25
A21: Genflex urban loads | B21: GU | C21: 3 | D21: 2 | E21: GU32N | I21: ≥ 500V & < 66kV | J21: 338.22 | K21: 388.95 | L21: 102.45 | M21: 117.82 | N21: 55.61 | O21: 63.95 | P21: 110.31 | Q21: 126.86 | R21: 75.91 | S21: 87.3 | T21: 48.17 | U21: 55.4 | V21: 8.98 | W21: 10.33
A22: Genflex urban loads | B22: GU | C22: 3 | D22: 3 | E22: GU33N | I22: ≥ 66kV & ≤ 132kV | J22: 327.54 | K22: 376.67 | L22: 99.21 | M22: 114.09 | N22: 53.87 | O22: 61.95 | P22: 106.83 | Q22: 122.85 | R22: 73.54 | S22: 84.57 | T22: 46.65 | U22: 53.65 | V22: 8.69 | W22: 9.99
A23: Genflex urban loads | B23: GU | C23: 3 | D23: 4 | E23: GU34N | I23: > 132kV* | J23: 308.62 | K23: 354.91 | L23: 93.53 | M23: 107.56 | N23: 50.82 | O23: 58.44 | P23: 100.74 | Q23: 115.85 | R23: 69.36 | S23: 79.76 | T23: 44.02 | U23: 50.62 | V23: 11.07 | W23: 12.73
A24: Gen-purchase | B24: NLPurchADJ | C24: 0 | D24: 4 | E24: NLPurchADJ04N | H24: WEPS energy rate excluding losses | J24: 296.4282181 | K24: 340.89 | L24: 89.78925497 | M24: 103.26 | N24: 48.76818047 | O24: 56.08 | P24: 96.72504205 | Q24: 111.23 | R24: 66.54793707 | S24: 76.53 | T24: 42.2281587 | U24: 48.56
A25: TUoS network charges for Transmission connected generators | B25: GenTUOS | C25: Cape | D25: 4 | E25: GenTUOSCape4N | I25: * 132 kV or Transmission connected
A26: TUoS network charges for Transmission connected generators | B26: GenTUOS | C26: Karoo | D26: 4 | E26: GenTUOSKaroo4N
A27: TUoS network charges for Transmission connected generators | B27: GenTUOS | C27: Kwazulu-Natal | D27: 4 | E27: GenTUOSKwazulu-Natal4N | H27: Distribution network charges for loads | Q27: Transmission network charges for generators | U27: Distribution network charges for generators*
A28: TUoS network charges for Transmission connected generators | B28: GenTUOS | C28: Vaal | D28: 4 | E28: GenTUOSVaal4N | J28: Network capacity charge [R/kVA/m] | L28: Network demand charge [R/kVA/m] | N28: Urban low voltage subsidy charge [R/kVA/m]
A29: TUoS network charges for Transmission connected generators | B29: GenTUOS | C29: Waterburg | D29: 4 | E29: GenTUOSWaterburg4N | H29: Voltage | Q29: TUoS [ > 132kV] | S29: Network charge [R/kW] | U29: Voltage | W29: Network capacity charge [R/kW/m]
A30: TUoS network charges for Transmission connected generators | B30: GenTUOS | C30: Mpumalanga | D30: 4 | E30: GenTUOSMpumalanga4N | H30: Voltage | K30: VAT incl | M30: VAT incl | O30: VAT incl | T30: VAT incl
A31: Genflex urban loads | B31: GU | C31: 0 | D31: 1 | E31: GU01N | H31: < 500V | J31: 18.96 | K31: 21.8 | L31: 35.95 | M31: 41.34 | N31: 0 | O31: 0 | Q31: Cape | S31: 0 | T31: 0 | X31: VAT incl
A32: Genflex urban loads | B32: GU | C32: 0 | D32: 2 | E32: GU02N | H32: ≥ 500V & < 66kV | J32: 17.39 | K32: 20 | L32: 32.98 | M32: 37.93 | N32: 0 | O32: 0 | Q32: Karoo | S32: 0 | T32: 0 | U32: < 500V
A33: Genflex urban loads | B33: GU | C33: 0 | D33: 3 | E33: GU03N | H33: ≥ 66kV & ≤ 132kV | J33: 6.21 | K33: 7.14 | L33: 11.5 | M33: 13.23 | N33: 15.32 | O33: 17.62 | Q33: Kwazulu-Natal | S33: 2.25 | T33: 2.59 | U33: ≥ 500V & < 66kV
A34: Genflex urban loads | B34: GU | C34: 0 | D34: 4 | E34: GU04N | H34: > 132kV / Transmission connected | J34: 0 | K34: 0 | L34: 0 | M34: 0 | N34: 15.32 | O34: 17.62 | Q34: Vaal | S34: 7.5 | T34: 8.63 | U34: ≥ 66kV & ≤ 132kV | W34: 15.34 | X34: 17.64
A35: Gen-DUoS urban | B35: NEGenDUoSU | C35: 0 | D35: 3 | E35: NEGenDUoSU03N | Q35: Waterberg | S35: 9.61 | T35: 11.05 | U35: * The Distribution network charge will be rebated by the Losses charge, but not beyond extintion
Q36: Mpumalanga | S36: 8.92 | T36: 10.26
H37: Customer categories | J37: Service charge [R/account/day] | L37: Administration charge [R/POD/day]
H38: [kVA or MVA = loads] | Q38: Ancillary service charge for loads and generators
A39: Tariff | B39: Tariff nameBillcode | C39: Tx zone | D39: Voltage | E39: Billcode | H39: [kW or MW = generators] | K39: VAT incl | M39: VAT incl
A40: Genflex urban loads | B40: GU | C40: 0 | D40: 1 | E40: GU01N | H40: ≤ 100 KVA/ kW | J40: 15.49 | K40: 17.81 | L40: 3.4 | M40: 3.91 | Q40: Voltage | S40: Ancillary service charge [c/kWh]
A41: Genflex urban loads | B41: GU | C41: 0 | D41: 1 | E41: GU01N | H41: > 100 kVA/ kW & ≤ 500 kVA/ kW | J41: 70.74 | K41: 81.35 | L41: 19.84 | M41: 22.82 | T41: VAT incl
A42: Genflex urban loads | B42: GU | C42: 0 | D42: 1 | E42: GU01N | H42: > 500 kVA/ kW & ≤ 1 MVA/MW | J42: 217.67 | K42: 250.32 | L42: 39.4 | M42: 45.31 | Q42: < 500V | S42: 0.44 | T42: 0.51
A43: Genflex urban loads | B43: GU | C43: 0 | D43: 1 | E43: GU01N | H43: > 1 MVA/MW | J43: 217.67 | K43: 250.32 | L43: 98.1 | M43: 112.82 | Q43: ≥ 500V & < 66kV | S43: 0.43 | T43: 0.49
A44: Genflex urban loads | B44: GU | C44: 0 | D44: 1 | E44: GU01N | H44: Key customers or Transmission connected generators | J44: 4265.54 | K44: 4905.37 | L44: 136.23 | M44: 156.66 | Q44: ≥ 66kV & ≤ 132kV | S44: 0.41 | T44: 0.47
Q45: > 132kV | S45: 0.39 | T45: 0.45 | Y45: 0
H46: Applicable to loads | Q46: * 132 kV or Transmission connected
H47: Electrification and rural network subsidy charge [c/kWh] | J47: Affordability subsidy charge [c/kWh] Only payable by non-local authority tariffs
M48: Reactive energy charge [c/kVArh] (loads)
M49: High season | O49: Low season
A50: Tariff | B50: Tariff nameBillcode | C50: Tx zone | D50: Voltage | E50: Billcode | I50: VAT incl | K50: VAT incl | N50: VAT incl | P50: VAT incl
A51: Genflex urban loads | B51: GU | C51: 0 | D51: 1 | E51: GU01N | H51: 8.48 | I51: 9.75 | J51: 3.82 | K51: 4.39 | M51: 15.34 | N51: 17.64 | O51: 0 | P51: 0
H54: Losses charge for generators
H55: Distribution connected generators | M55: Transmission connected generators
H56: Formula | M56: Formula
H57: Distribution = - ((Energy produced x WEPS rate excluding losses) x (Distribution loss factor x Transmission loss factor-1)) in each TOU period | M57: Transmission = (Energy produced x WEPS rate excluding losses) x (Transmission loss factor-1/Transmission loss factor) in each TOU period
H58: Transmission loss factors for Distribution connected | K58: Distribution loss factors | M58: Generator loss factor
H59: Distance from Johannesburg | K59: Voltage | M59: Cape | O59: 0.971
H60: ≤ 300km | J60: 1.0107 | K60: < 500V | L60: 1.1111 | M60: Karoo | O60: 0.995
H61: > 300km & ≤ 600km | J61: 1.0208 | K61: ≥ 500V & < 66kV | L61: 1.0957 | M61: Kwazulu-Natal | O61: 1.004
H62: > 600km & ≤ 900km | J62: 1.031 | K62: ≥ 66kV & ≤ 132kV | L62: 1.0611 | M62: Vaal | O62: 1.02
H63: > 900km | J63: 1.0413 | K63: > 132kV* | L63: 1 | M63: Waterberg | O63: 1.023
H64: * 132 kV or Transmission connected | M64: Mpumalanga | O64: 1.021

Sheet Miniflex NLA
G1: Back to menu
A2: Non-municipal | G2: Miniflex - Non-Local Authority
J4: Active energy charge [c/kWh] | V4: Network capacity charge [R/kVA/m]
H5: Transmission zone | J5: High demand season [Jun - Aug] | P5: Low demand season [Sep - May]
I6: Voltage | J6: Peak | L6: Standard | N6: Off Peak | P6: Peak | R6: Standard | T6: Off Peak
A7: Tariff | B7: Tariff nameBillcode | C7: Tx zone | D7: Voltage | E7: Billcode | K7: VAT incl | M7: VAT incl | O7: VAT incl | Q7: VAT incl | S7: VAT incl | U7: VAT incl | W7: VAT incl
A8: Miniflex | B8: Mi | C8: 0 | D8: 1 | E8: Mi01N | H8: ≤ 300km | I8: < 500V | J8: 333.51 | K8: 383.54 | L8: 101.47 | M8: 116.69 | N8: 55.41 | O8: 63.72 | P8: 109.21 | Q8: 125.59 | R8: 75.36 | S8: 86.66 | T8: 48.04 | U8: 55.25 | V8: 28.47 | W8: 32.74
A9: Miniflex | B9: Mi | C9: 0 | D9: 2 | E9: Mi02N | I9: ≥ 500V & < 66kV | J9: 328.28 | K9: 377.52 | L9: 99.45 | M9: 114.37 | N9: 54.01 | O9: 62.11 | P9: 107.07 | Q9: 123.13 | R9: 73.71 | S9: 84.77 | T9: 46.76 | U9: 53.77 | V9: 26.09 | W9: 30
A10: Miniflex | B10: Mi | C10: 0 | D10: 3 | E10: Mi03N | I10: ≥ 66kV & ≤ 132kV | J10: 317.88 | K10: 365.56 | L10: 96.29 | M10: 110.73 | N10: 52.3 | O10: 60.15 | P10: 103.71 | Q10: 119.27 | R10: 71.36 | S10: 82.06 | T10: 45.29 | U10: 52.08 | V10: 14.66 | W10: 16.86
A11: Miniflex | B11: Mi | C11: 0 | D11: 4 | E11: Mi04N | I11: > 132kV* | J11: 299.6 | K11: 344.54 | L11: 90.75 | M11: 104.36 | N11: 49.29 | O11: 56.68 | P11: 97.76 | Q11: 112.42 | R11: 67.26 | S11: 77.35 | T11: 42.68 | U11: 49.08 | V11: 10.68 | W11: 12.28
A12: Miniflex | B12: Mi | C12: 1 | D12: 1 | E12: Mi11N | H12: > 300km and ≤ 600km | I12: < 500V | J12: 336.24 | K12: 386.68 | L12: 101.88 | M12: 117.16 | N12: 55.31 | O12: 63.61 | P12: 109.69 | Q12: 126.14 | R12: 75.52 | S12: 86.85 | T12: 47.91 | U12: 55.1 | V12: 28.54 | W12: 32.82
A13: Miniflex | B13: Mi | C13: 1 | D13: 2 | E13: Mi12N | I13: ≥ 500V & < 66kV | J13: 331.56 | K13: 381.29 | L13: 100.43 | M13: 115.49 | N13: 54.54 | O13: 62.72 | P13: 108.17 | Q13: 124.4 | R13: 74.44 | S13: 85.61 | T13: 47.22 | U13: 54.3 | V13: 26.17 | W13: 30.1
A14: Miniflex | B14: Mi | C14: 1 | D14: 3 | E14: Mi13N | I14: ≥ 66kV & ≤ 132kV | J14: 321.01 | K14: 369.16 | L14: 97.23 | M14: 111.81 | N14: 52.79 | O14: 60.71 | P14: 104.71 | Q14: 120.42 | R14: 72.07 | S14: 82.88 | T14: 45.72 | U14: 52.58 | V14: 14.71 | W14: 16.92
A15: Miniflex | B15: Mi | C15: 1 | D15: 4 | E15: Mi14N | I15: > 132kV* | J15: 302.6 | K15: 347.99 | L15: 91.68 | M15: 105.43 | N15: 49.75 | O15: 57.21 | P15: 98.69 | Q15: 113.49 | R15: 67.92 | S15: 78.11 | T15: 43.08 | U15: 49.54 | V15: 10.79 | W15: 12.41
A16: Miniflex | B16: Mi | C16: 2 | D16: 1 | E16: Mi21N | H16: > 600km and ≤ 900km | I16: < 500V | J16: 339.58 | K16: 390.52 | L16: 102.87 | M16: 118.3 | N16: 55.84 | O16: 64.22 | P16: 110.78 | Q16: 127.4 | R16: 76.25 | S16: 87.69 | T16: 48.35 | U16: 55.6 | V16: 28.67 | W16: 32.97
A17: Miniflex | B17: Mi | C17: 2 | D17: 2 | E17: Mi22N | I17: ≥ 500V & < 66kV | J17: 334.89 | K17: 385.12 | L17: 101.46 | M17: 116.68 | N17: 55.09 | O17: 63.35 | P17: 109.24 | Q17: 125.63 | R17: 75.19 | S17: 86.47 | T17: 47.7 | U17: 54.86 | V17: 26.25 | W17: 30.19
A18: Miniflex | B18: Mi | C18: 2 | D18: 3 | E18: Mi23N | I18: ≥ 66kV & ≤ 132kV | J18: 324.28 | K18: 372.92 | L18: 98.24 | M18: 112.98 | N18: 53.34 | O18: 61.34 | P18: 105.77 | Q18: 121.64 | R18: 72.81 | S18: 83.73 | T18: 46.19 | U18: 53.12 | V18: 14.8 | W18: 17.02
A19: Miniflex | B19: Mi | C19: 2 | D19: 4 | E19: Mi24N | I19: > 132kV* | J19: 305.65 | K19: 351.5 | L19: 92.58 | M19: 106.47 | N19: 50.3 | O19: 57.85 | P19: 99.7 | Q19: 114.66 | R19: 68.61 | S19: 78.9 | T19: 43.54 | U19: 50.07 | V19: 10.95 | W19: 12.59
A20: Miniflex | B20: Mi | C20: 3 | D20: 1 | E20: Mi31N | H20: > 900km | I20: < 500V | J20: 343 | K20: 394.45 | L20: 103.94 | M20: 119.53 | N20: 56.42 | O20: 64.88 | P20: 111.9 | Q20: 128.69 | R20: 77 | S20: 88.55 | T20: 48.87 | U20: 56.2 | V20: 28.7 | W20: 33.01
A21: Miniflex | B21: Mi | C21: 3 | D21: 2 | E21: Mi32N | I21: ≥ 500V & < 66kV | J21: 338.22 | K21: 388.95 | L21: 102.45 | M21: 117.82 | N21: 55.61 | O21: 63.95 | P21: 110.31 | Q21: 126.86 | R21: 75.91 | S21: 87.3 | T21: 48.17 | U21: 55.4 | V21: 26.34 | W21: 30.29
A22: Miniflex | B22: Mi | C22: 3 | D22: 3 | E22: Mi33N | I22: ≥ 66kV & ≤ 132kV | J22: 327.54 | K22: 376.67 | L22: 99.21 | M22: 114.09 | N22: 53.87 | O22: 61.95 | P22: 106.83 | Q22: 122.85 | R22: 73.54 | S22: 84.57 | T22: 46.65 | U22: 53.65 | V22: 14.86 | W22: 17.09
A23: Miniflex | B23: Mi | C23: 3 | D23: 4 | E23: Mi34N | I23: > 132kV* | J23: 308.62 | K23: 354.91 | L23: 93.53 | M23: 107.56 | N23: 50.82 | O23: 58.44 | P23: 100.74 | Q23: 115.85 | R23: 69.36 | S23: 79.76 | T23: 44.02 | U23: 50.62 | V23: 11.02 | W23: 12.67
I24: * 132 kV or Transmission connected
H26: Customer categories | J26: Service charge [R/account/day] | L26: Administration charge [R/POD/day]
A28: Tariff | B28: Tariff nameBillcode | C28: Tx zone | D28: Voltage | E28: Billcode | K28: VAT incl | M28: VAT incl | P28: Ancillary service charge [c/kWh] | R28: Network demand charge [c/kWh] [Peak & Standard] | U28: Urban low voltage subsidy charge [R/kVA/m]
A29: Miniflex | B29: Mi | C29: 0 | D29: 1 | E29: Mi01N | H29: ≤ 100 kVA | J29: 15.49 | K29: 17.81 | L29: 3.4 | M29: 3.91 | O29: Voltage | Q29: VAT incl | S29: VAT incl | W29: VAT incl
A30: Miniflex | B30: Mi | C30: 0 | D30: 1 | E30: Mi01N | H30: > 100 kVA & ≤ 500 kVA | J30: 70.74 | K30: 81.35 | L30: 19.84 | M30: 22.82 | O30: < 500V | P30: 0.44 | Q30: 0.51 | R30: 17.62 | S30: 20.26 | U30: < 500V | V30: 0 | W30: 0
A31: Miniflex | B31: Mi | C31: 0 | D31: 1 | E31: Mi01N | H31: > 500 kVA & ≤ 1 MVA | J31: 217.67 | K31: 250.32 | L31: 39.4 | M31: 45.31 | O31: ≥ 500V & < 66kV | P31: 0.43 | Q31: 0.49 | R31: 7.38 | S31: 8.49 | U31: ≥ 500V & < 66kV | V31: 0 | W31: 0
A32: Miniflex | B32: Mi | C32: 0 | D32: 1 | E32: Mi01N | H32: > 1 MVA | J32: 217.67 | K32: 250.32 | L32: 98.1 | M32: 112.82 | O32: ≥ 66kV & ≤ 132kV | P32: 0.41 | Q32: 0.47 | R32: 2.57 | S32: 2.96 | U32: ≥ 66kV & ≤ 132kV | V32: 15.32 | W32: 17.62
A33: Miniflex | B33: Mi | C33: 0 | D33: 1 | E33: Mi01N | H33: Key customers | J33: 4265.54 | K33: 4905.37 | L33: 136.23 | M33: 156.66 | O33: > 132kV* | P33: 0.39 | Q33: 0.45 | R33: 0 | S33: 0 | U33: > 132kV* | V33: 15.32 | W33: 17.62
O34: * 132 kV or Transmission connected | U34: * 132 kV or Transmission connected
H36: Electrification and rural network subsidy charge [c/kWh] | J36: Affordability subsidy charge [c/kWh] Only payable by non-local authority tariffs | O36: Reactive energy charge [c/kVArh]
O38: High season | Q38: Low season
A39: Tariff | B39: Tariff nameBillcode | C39: Tx zone | D39: Voltage | E39: Billcode | I39: VAT incl | K39: VAT incl | P39: VAT incl | R39: VAT incl
A40: Miniflex | B40: Mi | C40: 0 | D40: 1 | E40: Mi01N | H40: 8.48 | I40: 9.75 | J40: 3.82 | K40: 4.39 | O40: 6.68 | P40: 7.68 | Q40: 0 | R40: 0
A42: Miniflex | B42: Mi | C42: 0 | D42: 1 | E42: Mi01N
A43: Miniflex | B43: Mi | C43: 1 | D43: 2 | E43: Mi12N
A44: Miniflex | B44: Mi | C44: 2 | D44: 3 | E44: Mi23N
A45: Miniflex | B45: Mi | C45: 3 | D45: 4 | E45: Mi34N

Sheet Miniflex Munic
G1: Back to menu
A2: Municiple | G2: Miniflex - Local Authority
J4: Active energy charge [c/kWh] | V4: Network capacity charge [R/kVA/m]
H5: Transmission zone | J5: High demand season [Jun - Aug] | P5: Low demand season [Sep - May]
I6: Voltage | J6: Peak | L6: Standard | N6: Off Peak | P6: Peak | R6: Standard | T6: Off Peak
A7: Tariff | B7: Tariff nameBillcode | C7: Tx zone | D7: Voltage | E7: Billcode | K7: VAT incl | M7: VAT incl | O7: VAT incl | Q7: VAT incl | S7: VAT incl | U7: VAT incl | W7: VAT incl
A8: Miniflex | B8: Mi | C8: 0 | D8: 1 | E8: Mi01Y | H8: ≤ 300km | I8: < 500V | J8: 347.1 | K8: 399.17 | L8: 105.62 | M8: 121.46 | N8: 57.63 | O8: 66.27 | P8: 113.64 | Q8: 130.69 | R8: 78.43 | S8: 90.19 | T8: 49.99 | U8: 57.49 | V8: 28.94 | W8: 33.28
A9: Miniflex | B9: Mi | C9: 0 | D9: 2 | E9: Mi02Y | I9: ≥ 500V & < 66kV | J9: 341.63 | K9: 392.87 | L9: 103.51 | M9: 119.04 | N9: 56.21 | O9: 64.64 | P9: 111.44 | Q9: 128.16 | R9: 76.7 | S9: 88.21 | T9: 48.67 | U9: 55.97 | V9: 26.51 | W9: 30.49
A10: Miniflex | B10: Mi | C10: 0 | D10: 3 | E10: Mi03Y | I10: ≥ 66kV & ≤ 132kV | J10: 330.85 | K10: 380.48 | L10: 100.22 | M10: 115.25 | N10: 54.43 | O10: 62.59 | P10: 107.93 | Q10: 124.12 | R10: 74.29 | S10: 85.43 | T10: 47.12 | U10: 54.19 | V10: 14.89 | W10: 17.12
A11: Miniflex | B11: Mi | C11: 0 | D11: 4 | E11: Mi04Y | I11: > 132kV* | J11: 311.81 | K11: 358.58 | L11: 94.46 | M11: 108.63 | N11: 51.29 | O11: 58.98 | P11: 101.71 | Q11: 116.97 | R11: 70 | S11: 80.5 | T11: 44.41 | U11: 51.07 | V11: 10.87 | W11: 12.5
A12: Miniflex | B12: Mi | C12: 1 | D12: 1 | E12: Mi11Y | H12: > 300km and ≤ 600km | I12: < 500V | J12: 349.93 | K12: 402.42 | L12: 106.01 | M12: 121.91 | N12: 57.56 | O12: 66.19 | P12: 114.15 | Q12: 131.27 | R12: 78.59 | S12: 90.38 | T12: 49.85 | U12: 57.33 | V12: 29 | W12: 33.35
A13: Miniflex | B13: Mi | C13: 1 | D13: 2 | E13: Mi12Y | I13: ≥ 500V & < 66kV | J13: 345.04 | K13: 396.8 | L13: 104.53 | M13: 120.21 | N13: 56.76 | O13: 65.27 | P13: 112.57 | Q13: 129.46 | R13: 77.47 | S13: 89.09 | T13: 49.14 | U13: 56.51 | V13: 26.61 | W13: 30.6
A14: Miniflex | B14: Mi | C14: 1 | D14: 3 | E14: Mi13Y | I14: ≥ 66kV & ≤ 132kV | J14: 334.09 | K14: 384.2 | L14: 101.2 | M14: 116.38 | N14: 54.95 | O14: 63.19 | P14: 108.98 | Q14: 125.33 | R14: 75 | S14: 86.25 | T14: 47.57 | U14: 54.71 | V14: 14.97 | W14: 17.22
A15: Miniflex | B15: Mi | C15: 1 | D15: 4 | E15: Mi14Y | I15: > 132kV* | J15: 314.92 | K15: 362.16 | L15: 95.42 | M15: 109.73 | N15: 51.8 | O15: 59.57 | P15: 102.71 | Q15: 118.12 | R15: 70.71 | S15: 81.32 | T15: 44.85 | U15: 51.58 | V15: 10.97 | W15: 12.62
A16: Miniflex | B16: Mi | C16: 2 | D16: 1 | E16: Mi21Y | H16: > 600km and ≤ 900km | I16: < 500V | J16: 353.42 | K16: 406.43 | L16: 107.07 | M16: 123.13 | N16: 58.13 | O16: 66.85 | P16: 115.28 | Q16: 132.57 | R16: 79.36 | S16: 91.26 | T16: 50.35 | U16: 57.9 | V16: 29.15 | W16: 33.52
A17: Miniflex | B17: Mi | C17: 2 | D17: 2 | E17: Mi22Y | I17: ≥ 500V & < 66kV | J17: 348.52 | K17: 400.8 | L17: 105.57 | M17: 121.41 | N17: 57.33 | O17: 65.93 | P17: 113.71 | Q17: 130.77 | R17: 78.21 | S17: 89.94 | T17: 49.64 | U17: 57.09 | V17: 26.68 | W17: 30.68
A18: Miniflex | B18: Mi | C18: 2 | D18: 3 | E18: Mi23Y | I18: ≥ 66kV & ≤ 132kV | J18: 337.49 | K18: 388.11 | L18: 102.22 | M18: 117.55 | N18: 55.5 | O18: 63.83 | P18: 110.06 | Q18: 126.57 | R18: 75.75 | S18: 87.11 | T18: 48.04 | U18: 55.25 | V18: 15.04 | W18: 17.3
A19: Miniflex | B19: Mi | C19: 2 | D19: 4 | E19: Mi24Y | I19: > 132kV* | J19: 318.07 | K19: 365.78 | L19: 96.37 | M19: 110.83 | N19: 52.32 | O19: 60.17 | P19: 103.77 | Q19: 119.34 | R19: 71.41 | S19: 82.12 | T19: 45.3 | U19: 52.1 | V19: 11.12 | W19: 12.79
A20: Miniflex | B20: Mi | C20: 3 | D20: 1 | E20: Mi31Y | H20: > 900km | I20: < 500V | J20: 356.97 | K20: 410.52 | L20: 108.15 | M20: 124.37 | N20: 58.73 | O20: 67.54 | P20: 116.45 | Q20: 133.92 | R20: 80.14 | S20: 92.16 | T20: 50.85 | U20: 58.48 | V20: 29.17 | W20: 33.55
A21: Miniflex | B21: Mi | C21: 3 | D21: 2 | E21: Mi32Y | I21: ≥ 500V & < 66kV | J21: 352 | K21: 404.8 | L21: 106.62 | M21: 122.61 | N21: 57.91 | O21: 66.6 | P21: 114.81 | Q21: 132.03 | R21: 79.02 | S21: 90.87 | T21: 50.11 | U21: 57.63 | V21: 26.79 | W21: 30.81
A22: Miniflex | B22: Mi | C22: 3 | D22: 3 | E22: Mi33Y | I22: ≥ 66kV & ≤ 132kV | J22: 340.89 | K22: 392.02 | L22: 103.27 | M22: 118.76 | N22: 56.08 | O22: 64.49 | P22: 111.19 | Q22: 127.87 | R22: 76.51 | S22: 87.99 | T22: 48.54 | U22: 55.82 | V22: 15.09 | W22: 17.35
A23: Miniflex | B23: Mi | C23: 3 | D23: 4 | E23: Mi34Y | I23: > 132kV* | J23: 321.21 | K23: 369.39 | L23: 97.35 | M23: 111.95 | N23: 52.9 | O23: 60.84 | P23: 104.83 | Q23: 120.55 | R23: 72.16 | S23: 82.98 | T23: 45.8 | U23: 52.67 | V23: 11.2 | W23: 12.88
I24: * 132 kV or Transmission connected
H26: Customer categories | J26: Service charge [R/account/day] | L26: Administration charge [R/POD/day]
A28: Tariff | B28: Tariff nameBillcode | C28: Tx zone | D28: Voltage | E28: Billcode | K28: VAT incl | M28: VAT incl | P28: Ancillary service charge [c/kWh] | R28: Network demand charge [c/kWh] [Peak & Standard] | U28: Urban low voltage subsidy charge [R/kVA/m]
A29: Miniflex | B29: Mi | C29: 0 | D29: 1 | E29: Mi01Y | H29: ≤ 100 kVA | J29: 15.66 | K29: 18.01 | L29: 3.43 | M29: 3.94 | O29: Voltage | Q29: VAT incl | S29: VAT incl | W29: VAT incl
A30: Miniflex | B30: Mi | C30: 0 | D30: 1 | E30: Mi01Y | H30: > 100 kVA & ≤ 500 kVA | J30: 71.56 | K30: 82.29 | L30: 20.05 | M30: 23.06 | O30: < 500V | P30: 0.45 | Q30: 0.52 | R30: 17.9 | S30: 20.59 | U30: < 500V | V30: 0 | W30: 0
A31: Miniflex | B31: Mi | C31: 0 | D31: 1 | E31: Mi01Y | H31: > 500 kVA & ≤ 1 MVA | J31: 220.24 | K31: 253.28 | L31: 39.87 | M31: 45.85 | O31: ≥ 500V & < 66kV | P31: 0.44 | Q31: 0.51 | R31: 7.52 | S31: 8.65 | U31: ≥ 500V & < 66kV | V31: 0 | W31: 0
A32: Miniflex | B32: Mi | C32: 0 | D32: 1 | E32: Mi01Y | H32: > 1 MVA | J32: 220.24 | K32: 253.28 | L32: 99.28 | M32: 114.17 | O32: ≥ 66kV & ≤ 132kV | P32: 0.4 | Q32: 0.46 | R32: 2.6 | S32: 2.99 | U32: ≥ 66kV & ≤ 132kV | V32: 15.48 | W32: 17.8
A33: Miniflex | B33: Mi | C33: 0 | D33: 1 | E33: Mi01Y | H33: Key customers | J33: 4315.89 | K33: 4963.27 | L33: 137.83 | M33: 158.5 | O33: > 132kV* | P33: 0.38 | Q33: 0.44 | R33: 0 | S33: 0 | U33: > 132kV* | V33: 15.48 | W33: 17.8
O34: * 132 kV or Transmission connected | U34: * 132 kV or Transmission connected
H36: Electrification and rural network subsidy charge [c/kWh] | L36: Reactive energy charge [c/kVArh]
L38: High season | N38: Low season
A39: Tariff | B39: Tariff nameBillcode | C39: Tx zone | D39: Voltage | E39: Billcode | I39: VAT incl | M39: VAT incl | O39: VAT incl
A40: Miniflex | B40: Mi | C40: 0 | D40: 1 | E40: Mi01Y | H40: 8.58 | I40: 9.87 | L40: 6.79 | M40: 7.81 | N40: 0 | O40: 0
A42: Miniflex | B42: Mi | C42: 0 | D42: 1 | E42: Mi01Y
A43: Miniflex | B43: Mi | C43: 1 | D43: 2 | E43: Mi12Y
A44: Miniflex | B44: Mi | C44: 2 | D44: 3 | E44: Mi23Y
A45: Miniflex | B45: Mi | C45: 3 | D45: 4 | E45: Mi34Y

Sheet Businessrate NLA
H1: Back to menu
A2: Non-municipal | G2: Businessrate - Non-local Authority
J4: Energy charge [c/kWh] | L4: Ancillary service charge [c/kWh] | N4: Network demand charge [c/kWh] | P4: Network capacity charge [R/POD/day] | R4: Service and administration charge [R/POD/day] | Z4: Electrification and rural network subsidy charge [c/kWh] | AB4: Affordability subsidy charge [c/kWh] payable by non-local authority tariffs
Z6: All seasons | AB6: All seasons
A7: Tariff | B7: Tariff nameBillcode | C7: Tx zone | D7: Voltage | E7: Billcode | K7: VAT incl | M7: VAT incl | O7: VAT incl | Q7: VAT incl | S7: VAT incl | AA7: VAT incl | AC7: VAT incl
A8: Businessrate 1 | B8: B1 | C8: 0 | D8: 1 | E8: B101N | H8: Businessrate 1 | J8: 114.19 | K8: 131.32 | L8: 0.44 | M8: 0.51 | N8: 16.12 | O8: 18.54 | P8: 23.15 | Q8: 26.62 | R8: 20 | S8: 23 | Z8: 0 | AA8: 0 | AB8: 0 | AC8: 0
A9: Businessrate 2 | B9: B2 | C9: 0 | D9: 1 | E9: B201N | H9: Businessrate 2 | J9: 114.19 | K9: 131.32 | L9: 0.44 | M9: 0.51 | N9: 16.12 | O9: 18.54 | P9: 39 | Q9: 44.85 | R9: 20 | S9: 23 | Z9: 0 | AA9: 0 | AB9: 0 | AC9: 0
A10: Businessrate 3 | B10: B3 | C10: 0 | D10: 1 | E10: B301N | H10: Businessrate 3 | J10: 114.19 | K10: 131.32 | L10: 0.44 | M10: 0.51 | N10: 16.12 | O10: 18.54 | P10: 67.39 | Q10: 77.5 | R10: 20 | S10: 23 | Z10: 0 | AA10: 0 | AB10: 0 | AC10: 0
A11: Businessrate 4 | B11: B4 | C11: 0 | D11: 1 | E11: B401N | H11: Businessrate 4 | J11: 307.29 | K11: 353.38 | L11: 0.44 | M11: 0.51 | N11: 16.12 | O11: 18.54 | Z11: 0 | AA11: 0 | AB11: 0 | AC11: 0

Sheet Businessrate Munic
H1: Back to menu
A2: Municiple | G2: Businessrate - Local Authority
J4: Energy charge [c/kWh] | L4: Ancillary service charge [c/kWh] | N4: Network demand charge [c/kWh] | P4: Network capacity charge [R/POD/day] | R4: Service and administration charge [R/POD/day] | Z4: Electrification and rural network subsidy charge [c/kWh] | AB4: Affordability subsidy charge [c/kWh] payable by non-local authority tariffs
Z6: All seasons | AB6: All seasons
A7: Tariff | B7: Tariff nameBillcode | C7: Tx zone | D7: Voltage | E7: Billcode | K7: VAT incl | M7: VAT incl | O7: VAT incl | Q7: VAT incl | S7: VAT incl | AA7: VAT incl | AC7: VAT incl
A8: Businessrate 1 | B8: B1 | C8: 0 | D8: 1 | E8: B101Y | H8: Businessrate 1 | J8: 118.84 | K8: 136.67 | L8: 0.45 | M8: 0.52 | N8: 16.47 | O8: 18.94 | P8: 23.62 | Q8: 27.16 | R8: 20.22 | S8: 23.25 | Z8: 0 | AA8: 0 | AB8: 0 | AC8: 0
A9: Businessrate 2 | B9: B2 | C9: 0 | D9: 1 | E9: B201Y | H9: Businessrate 2 | J9: 118.84 | K9: 136.67 | L9: 0.45 | M9: 0.52 | N9: 16.47 | O9: 18.94 | P9: 39.83 | Q9: 45.8 | R9: 20.22 | S9: 23.25 | Z9: 0 | AA9: 0 | AB9: 0 | AC9: 0
A10: Businessrate 3 | B10: B3 | C10: 0 | D10: 1 | E10: B301Y | H10: Businessrate 3 | J10: 118.84 | K10: 136.67 | L10: 0.45 | M10: 0.52 | N10: 16.47 | O10: 18.94 | P10: 68.83 | Q10: 79.15 | R10: 20.22 | S10: 23.25 | Z10: 0 | AA10: 0 | AB10: 0 | AC10: 0
A11: Businessrate 4 | B11: B4 | C11: 0 | D11: 1 | E11: B401Y | H11: Businessrate 4 | J11: 319.8 | K11: 367.77 | L11: 0.45 | M11: 0.52 | N11: 16.47 | O11: 18.94 | Z11: 0 | AA11: 0 | AB11: 0 | AC11: 0

Sheet Public Lighting NLA
H1: Back to menu
A2: Non-municipal | G2: Public Lighting - Non-local Authority
K4: All Night | M4: 24 Hours
A5: Tariff | B5: Tariff nameBillcode | C5: Tx zone | D5: Voltage | E5: Billcode | L5: VAT incl | N5: VAT incl
A6: Public lighting 24 hours | B6: Pu | C6: 0 | D6: 1 | E6: Pu01N | H6: Public Lighting | I6: Energy charge [c/kWh] | K6: 90.87 | L6: 104.5 | M6: 121.67 | N6: 139.92
A7: Public lighting All Night | B7: Pa | C7: 0 | D7: 1 | E7: Pa01N | I7: Energy charge [R/100W/month] | K7: 28.43 | L7: 32.69 | M7: 81.95 | N7: 94.24
A9: Public lighting Urban fixed | B9: Pt | C9: 0 | D9: 1 | E9: Pt01N | H9: Public Lighting - Urban Fixed | I9: Fixed charge [R/POD/day] | K9: 5.97 | L9: 6.87
H11: Maintenance charges | K11: R/month
L12: VAT incl
A13: Public Lighting - Maintenance charge - per lumanaire | B13: Plu | C13: 0 | D13: 1 | E13: Plu01N | J13: Per luminaire | K13: 48.19 | L13: 55.42
A14: Public Lighting - Maintenance charge - per high-mast lumanaire | B14: Plhm | C14: 0 | D14: 1 | E14: Plhm01N | J14: Per high-mast luminaire | K14: 1121.7 | L14: 1289.96

Sheet Public Lighting Munic
H1: Back to menu
A2: Municipal | G2: Public Lighting - Local Authority | AC2: check value
K4: All Night | M4: 24 Hours
A5: Tariff | B5: Tariff nameBillcode | C5: Tx zone | D5: Voltage | E5: Billcode | L5: VAT incl | N5: VAT incl
A6: Public lighting 24 hours | B6: Pu | C6: 0 | D6: 1 | E6: Pu01Y | H6: Public Lighting | I6: Energy charge [c/kWh] | K6: 95.93 | L6: 110.32 | M6: 128.45 | N6: 147.72
A7: Public lighting All Night | B7: Pa | C7: 0 | D7: 1 | E7: Pa01Y | I7: Energy charge [R/100W/month] | K7: 29.3 | L7: 33.7 | M7: 84.44 | N7: 97.11
A9: Public lighting Urban fixed | B9: Pt | C9: 0 | D9: 1 | E9: Pt01Y | H9: Public Lighting - Urban Fixed | I9: Fixed charge [R/POD/day] | K9: 6.307719115 | L9: 7.25
H11: Maintenance charges | K11: R/month
L12: VAT incl
A13: Public Lighting - Maintenance charge - per lumanaire | B13: Plu | C13: 0 | D13: 1 | E13: Plu01Y | J13: Per luminaire | K13: 50.61788237 | L13: 58.21
A14: Public Lighting - Maintenance charge - per high-mast lumanaire | B14: Plhm | C14: 0 | D14: 1 | E14: Plhm01Y | J14: Per high-mast luminaire | K14: 1182.14 | L14: 1359.46

Sheet Homepower NLA
H1: Back to menu
A2: Non-municipal | G2: Homepower - Non-local Authority
J5: Energy charge [c/kWh] | N5: Network capacity charge [R/POD/day]
A6: Tariff | B6: Tariff nameBillcode | C6: Tx zone | D6: Voltage | E6: Billcode | J6: Block 1 [>0 - 600 kWh] | K6: VAT incl | L6: Block 2 [>600 kWh] | M6: VAT incl | O6: VAT incl
A7: Homepower 1 | B7: H1 | C7: 0 | D7: 1 | E7: H101N | H7: Homepower 1 | J7: 133.83 | K7: 153.9 | L7: 211.32 | M7: 243.02 | N7: 5.73 | O7: 6.59
A8: Homepower 2 | B8: H2 | C8: 0 | D8: 1 | E8: H201N | H8: Homepower 2 | J8: 133.83 | K8: 153.9 | L8: 206.04 | M8: 236.95 | N8: 10.74 | O8: 12.35
A9: Homepower 3 | B9: H3 | C9: 0 | D9: 1 | E9: H301N | H9: Homepower 3 | J9: 133.83 | K9: 153.9 | L9: 206.04 | M9: 236.95 | N9: 22.18 | O9: 25.51
A10: Homepower 4 | B10: H4 | C10: 0 | D10: 1 | E10: H401N | H10: Homepower 4 | J10: 133.83 | K10: 153.9 | L10: 215.21 | M10: 247.49 | N10: 3.5 | O10: 4.03
J12: Energy charge [c/kWh] | L12: Network capacity charge [R/kVA]
K13: VAT incl | M13: VAT incl
A14: Homepower Bulk < 500V | B14: HB | C14: 0 | D14: 1 | E14: HB01N | H14: Homepower Bulk | J14: 175.71 | K14: 202.07 | L14: 36.36 | M14: 41.81
H15: * The Network capacity charge is based on the NMD or on the maximum demand if measured.

Sheet Homepower Munic
H1: Back to menu
A2: Municiple | G2: Homepower - Local Authority
J4: Energy charge [c/kWh] | L4: Energy charge [c/kWh] | N4: Network capacity charge [R/POD/day]
A5: Tariff | B5: Tariff nameBillcode | C5: Tx zone | D5: Voltage | E5: Billcode | J5: Block 1 [>0 - 600 kWh] | K5: VAT incl | L5: Block 2 [>600 kWh] | M5: VAT incl | O5: VAT incl
A6: Homepower 1 | B6: H1 | C6: 0 | D6: 1 | E6: H101Y | H6: Homepower 1 | J6: 136.04 | K6: 156.45 | L6: 214.81 | M6: 247.03 | N6: 5.82 | O6: 6.69
A7: Homepower 2 | B7: H2 | C7: 0 | D7: 1 | E7: H201Y | H7: Homepower 2 | J7: 136.04 | K7: 156.45 | L7: 209.42 | M7: 240.83 | N7: 10.92 | O7: 12.56
A8: Homepower 3 | B8: H3 | C8: 0 | D8: 1 | E8: H301Y | H8: Homepower 3 | J8: 136.04 | K8: 156.45 | L8: 209.42 | M8: 240.83 | N8: 22.55 | O8: 25.93
A9: Homepower 4 | B9: H4 | C9: 0 | D9: 1 | E9: H401Y | H9: Homepower 4 | J9: 136.04 | K9: 156.45 | L9: 218.76 | M9: 251.57 | N9: 3.56 | O9: 4.09

Sheet Homelight NLA
H1: Back to menu
A2: Non-municipal | G2: Homelight - Non-local Authority
H4: Homelight 60A | J4: Energy charge [c/kWh]
A5: Tariff | B5: Tariff nameBillcode | C5: Tx zone | D5: Voltage | E5: Billcode | K5: VAT incl
A6: Homelight 1 60A | B6: HL16 | C6: 0 | D6: 1 | E6: HL1601N | H6: Block 1 [> 0 - 600 kWh] | J6: 126.61 | K6: 145.6
A7: Homelight 2 60A | B7: HL26 | C7: 0 | D7: 1 | E7: HL2601N | H7: Block 2 [>600 kWh] | J7: 215.21 | K7: 247.49
H10: Homelight 20A | J10: Energy charge [c/kWh]
K11: VAT incl
A12: Homelight 1 20A | B12: HL12 | C12: 0 | D12: 1 | E12: HL1201N | H12: Block 1 [> 0 - 350 kWh] | J12: 111.87 | K12: 128.65
A13: Homelight 2 20A | B13: HL22 | C13: 0 | D13: 1 | E13: HL2201N | H13: Block 2 [>350 kWh] | J13: 126.76 | K13: 145.77

Sheet Nightsave Rural NLA
G1: Back to menu
A2: Non-municipal | G2: Nightsave Rural - Non-local Authority | AG2: check value
J4: Active energy charge [c/kWh] | N4: Energy demand charges [R/kVA/m] | R4: Network capacity charges [R/kVA/m]
H5: Transmission zone | J5: High demand season [Jun - Aug] | L5: Low demand season [Sep - May] | N5: High demand season [Jun - Aug] | P5: Low demand season [Sep - May]
I6: Voltage
A7: Tariff | B7: Tariff nameBillcode | C7: Tx zone | D7: Voltage | E7: Billcode | K7: VAT incl | M7: VAT incl | O7: VAT incl | Q7: VAT incl | S7: VAT incl
A8: Nightsave Rural | B8: NR | C8: 0 | D8: 1 | E8: NR01N | H8: ≤ 300km | I8: < 500V | J8: 84.23 | K8: 96.86 | L8: 65.45 | M8: 75.27 | N8: 282.23 | O8: 324.56 | P8: 149.37 | Q8: 171.78 | R8: 14.27 | S8: 16.41
A9: Nightsave Rural | B9: NR | C9: 0 | D9: 2 | E9: NR02N | I9: ≥ 500V & ≤ 22kV | J9: 83.24 | K9: 95.73 | L9: 64.71 | M9: 74.42 | N9: 273.48 | O9: 314.5 | P9: 144.07 | Q9: 165.68 | R9: 13.11 | S9: 15.08
A10: Nightsave Rural | B10: NR | E10: NRN | J10: 0 | L10: 0 | N10: 0 | O10: 0 | P10: 0 | Q10: 0 | R10: 0
A11: Nightsave Rural | B11: NR | E11: NRN | J11: 0 | L11: 0 | N11: 0 | O11: 0 | P11: 0 | Q11: 0 | R11: 0
A12: Nightsave Rural | B12: NR | C12: 1 | D12: 1 | E12: NR11N | H12: > 300km and ≤ 600km | I12: < 500V | J12: 85.06 | K12: 97.82 | L12: 66.11 | M12: 76.03 | N12: 285.63 | O12: 328.47 | P12: 151.45 | Q12: 174.17 | R12: 14.3 | S12: 16.45
A13: Nightsave Rural | B13: NR | C13: 1 | D13: 2 | E13: NR12N | I13: ≥ 500V & ≤ 22kV | J13: 84.09 | K13: 96.7 | L13: 65.36 | M13: 75.16 | N13: 276.82 | O13: 318.34 | P13: 146.07 | Q13: 167.98 | R13: 13.16 | S13: 15.13
A14: Nightsave Rural | B14: NR | E14: NRN | J14: 0 | L14: 0 | N14: 0 | O14: 0 | P14: 0 | Q14: 0 | R14: 0
A15: Nightsave Rural | B15: NR | E15: NRN | J15: 0 | L15: 0 | N15: 0 | O15: 0 | P15: 0 | Q15: 0 | R15: 0
A16: Nightsave Rural | B16: NR | C16: 2 | D16: 1 | E16: NR21N | H16: > 600km and ≤ 900km | I16: < 500V | J16: 85.91 | K16: 98.8 | L16: 66.75 | M16: 76.76 | N16: 289.06 | O16: 332.42 | P16: 153.49 | Q16: 176.51 | R16: 14.44 | S16: 16.61
A17: Nightsave Rural | B17: NR | C17: 2 | D17: 2 | E17: NR22N | I17: ≥ 500V & ≤ 22kV | J17: 84.92 | K17: 97.66 | L17: 66.02 | M17: 75.92 | N17: 280.14 | O17: 322.16 | P17: 148.09 | Q17: 170.3 | R17: 13.25 | S17: 15.24
A18: Nightsave Rural | B18: NR | E18: NRN | J18: 0 | L18: 0 | N18: 0 | O18: 0 | P18: 0 | Q18: 0 | R18: 0
A19: Nightsave Rural | B19: NR | E19: NRN | J19: 0 | L19: 0 | N19: 0 | O19: 0 | P19: 0 | Q19: 0 | R19: 0
A20: Nightsave Rural | B20: NR | C20: 3 | D20: 1 | E20: NR31N | H20: > 900km | I20: < 500V | J20: 86.77 | K20: 99.79 | L20: 67.42 | M20: 77.53 | N20: 292.57 | O20: 336.46 | P20: 155.6 | Q20: 178.94 | R20: 14.47 | S20: 16.64
A21: Nightsave Rural | B21: NR | C21: 3 | D21: 2 | E21: NR32N | I21: ≥ 500V & ≤ 22kV | J21: 85.74 | K21: 98.6 | L21: 66.66 | M21: 76.66 | N21: 283.56 | O21: 326.09 | P21: 150.16 | Q21: 172.68 | R21: 13.28 | S21: 15.27
H26: Customer categories | J26: Service charge [R/account/day] | L26: Administration charge [R/POD/day]
A28: Tariff | B28: Tariff nameBillcode | C28: Tx zone | D28: Voltage | E28: Billcode | K28: VAT incl | M28: VAT incl
A29: Nightsave Rural | B29: NR | C29: 0 | D29: 1 | E29: NR01N | H29: ≤ 100 kVA | J29: 19.62 | K29: 22.56 | L29: 5.57 | M29: 6.41
A30: Nightsave Rural | B30: NR | C30: 0 | D30: 1 | E30: NR01N | H30: > 100 kVA & ≤ 500 kVA | J30: 66.9 | K30: 76.94 | L30: 31.02 | M30: 35.67 | P30: Ancillary service charge [c/kWh] | R30: Network demand charge [c/kWh] in all time-of-use periods
A31: Nightsave Rural | B31: NR | C31: 0 | D31: 1 | E31: NR01N | H31: > 500 kVA & ≤ 1 MVA | J31: 205.82 | K31: 236.69 | L31: 47.61 | M31: 54.75 | O31: Voltage | Q31: VAT incl | S31: VAT incl
A32: Nightsave Rural | B32: NR | C32: 0 | D32: 1 | E32: NR01N | H32: > 1 MVA | J32: 205.82 | K32: 236.69 | L32: 88.34 | M32: 101.59 | O32: < 500V | P32: 0.44 | Q32: 0.51 | R32: 28.39 | S32: 32.65
A33: Nightsave Rural | B33: NR | C33: 0 | D33: 1 | E33: NR01N | H33: Key customers | J33: 4033.88 | K33: 4638.96 | L33: 88.34 | M33: 101.59 | O33: ≥ 500V & ≤ 22kV | P33: 0.44 | Q33: 0.51 | R33: 24.89 | S33: 28.62
A34: Nightsave Rural | B34: NR | C34: 0 | D34: 2 | E34: NR02N

Sheet Nightsave Rural Munic
G1: Back to menu
A2: Municiple | G2: Nightsave Rural - Local Authority | AG2: check value
J4: Active energy charge [c/kWh] | N4: Energy demand charges [R/kVA/m] | R4: Network capacity charges [R/kVA/m]
H5: Transmission zone | J5: High demand season [Jun - Aug] | L5: Low demand season [Sep - May] | N5: High demand season [Jun - Aug] | P5: Low demand season [Sep - May]
I6: Voltage
A7: Tariff | B7: Tariff nameBillcode | C7: Tx zone | D7: Voltage | E7: Billcode | K7: VAT incl | M7: VAT incl | O7: VAT incl | Q7: VAT incl | S7: VAT incl
A8: Nightsave Rural | B8: NR | C8: 0 | D8: 1 | E8: NR01Y | H8: ≤ 300km | I8: < 500V | J8: 87.66 | K8: 100.81 | L8: 68.12 | M8: 78.34 | N8: 286.87 | O8: 329.9 | P8: 151.84 | Q8: 174.62 | R8: 14.65 | S8: 16.85
A9: Nightsave Rural | B9: NR | C9: 0 | D9: 2 | E9: NR02Y | I9: ≥ 500V & ≤ 22kV | J9: 86.63 | K9: 99.62 | L9: 67.35 | M9: 77.45 | N9: 277.99 | O9: 319.69 | P9: 146.42 | Q9: 168.38 | R9: 13.45 | S9: 15.47
A10: Nightsave Rural | B10: NR | E10: NRY | J10: 0 | L10: 0 | N10: 0 | O10: 0 | P10: 0 | Q10: 0 | R10: 0
A11: Nightsave Rural | B11: NR | E11: NRY | J11: 0 | L11: 0 | N11: 0 | O11: 0 | P11: 0 | Q11: 0 | R11: 0
A12: Nightsave Rural | B12: NR | C12: 1 | D12: 1 | E12: NR11Y | H12: > 300km and ≤ 600km | I12: < 500V | J12: 88.54 | K12: 101.82 | L12: 68.81 | M12: 79.13 | N12: 290.36 | O12: 333.91 | P12: 153.94 | Q12: 177.03 | R12: 14.68 | S12: 16.88
A13: Nightsave Rural | B13: NR | C13: 1 | D13: 2 | E13: NR12Y | I13: ≥ 500V & ≤ 22kV | J13: 87.49 | K13: 100.61 | L13: 68.02 | M13: 78.22 | N13: 281.39 | O13: 323.6 | P13: 148.47 | Q13: 170.74 | R13: 13.51 | S13: 15.54
A14: Nightsave Rural | B14: NR | E14: NRY | J14: 0 | L14: 0 | N14: 0 | O14: 0 | P14: 0 | Q14: 0 | R14: 0
A15: Nightsave Rural | B15: NR | E15: NRY | J15: 0 | L15: 0 | N15: 0 | O15: 0 | P15: 0 | Q15: 0 | R15: 0
A16: Nightsave Rural | B16: NR | C16: 2 | D16: 1 | E16: NR21Y | H16: > 600km and ≤ 900km | I16: < 500V | J16: 89.39 | K16: 102.8 | L16: 69.47 | M16: 79.89 | N16: 293.83 | O16: 337.9 | P16: 156.01 | Q16: 179.41 | R16: 14.82 | S16: 17.04
A17: Nightsave Rural | B17: NR | C17: 2 | D17: 2 | E17: NR22Y | I17: ≥ 500V & ≤ 22kV | J17: 88.35 | K17: 101.6 | L17: 68.7 | M17: 79.01 | N17: 284.77 | O17: 327.49 | P17: 150.53 | Q17: 173.11 | R17: 13.59 | S17: 15.63
A18: Nightsave Rural | B18: NR | E18: NRY | J18: 0 | L18: 0 | N18: 0 | O18: 0 | P18: 0 | Q18: 0 | R18: 0
A19: Nightsave Rural | B19: NR | E19: NRY | J19: 0 | L19: 0 | N19: 0 | O19: 0 | P19: 0 | Q19: 0 | R19: 0
A20: Nightsave Rural | B20: NR | C20: 3 | D20: 1 | E20: NR31Y | H20: > 900km | I20: < 500V | J20: 90.3 | K20: 103.85 | L20: 70.15 | M20: 80.67 | N20: 297.39 | O20: 342 | P20: 158.16 | Q20: 181.88 | R20: 14.85 | S20: 17.08
A21: Nightsave Rural | B21: NR | C21: 3 | D21: 2 | E21: NR32Y | I21: ≥ 500V & ≤ 22kV | J21: 89.22 | K21: 102.6 | L21: 69.35 | M21: 79.75 | N21: 288.24 | O21: 331.48 | P21: 152.63 | Q21: 175.52 | R21: 13.6 | S21: 15.64
H26: Customer categories | J26: Service charge [R/account/day] | L26: Administration charge [R/POD/day]
A28: Tariff | B28: Tariff nameBillcode | C28: Tx zone | D28: Voltage | E28: Billcode | K28: VAT incl | M28: VAT incl
A29: Nightsave Rural | B29: NR | C29: 0 | D29: 1 | E29: NR01Y | H29: ≤ 100 kVA | J29: 19.85 | K29: 22.83 | L29: 5.63 | M29: 6.47
A30: Nightsave Rural | B30: NR | C30: 0 | D30: 1 | E30: NR01Y | H30: > 100 kVA & ≤ 500 kVA | J30: 67.7 | K30: 77.86 | L30: 31.38 | M30: 36.09 | P30: Ancillary service charge [c/kWh] | R30: Network demand charge [c/kWh] in all time-of-use periods
A31: Nightsave Rural | B31: NR | C31: 0 | D31: 1 | E31: NR01Y | H31: > 500 kVA & ≤ 1 MVA | J31: 208.27 | K31: 239.51 | L31: 48.16 | M31: 55.38 | O31: Voltage | Q31: VAT incl | S31: VAT incl
A32: Nightsave Rural | B32: NR | C32: 0 | D32: 1 | E32: NR01Y | H32: > 1 MVA | J32: 208.27 | K32: 239.51 | L32: 89.38 | M32: 102.79 | O32: < 500V | P32: 0.45 | Q32: 0.52 | R32: 29.15 | S32: 33.52
A33: Nightsave Rural | B33: NR | C33: 0 | D33: 1 | E33: NR01Y | H33: Key customers | J33: 4081.49 | K33: 4693.71 | L33: 89.38 | M33: 102.79 | O33: ≥ 500V & ≤ 22kV | P33: 0.45 | Q33: 0.52 | R33: 25.51 | S33: 29.34

Sheet Ruraflex NLA
G1: Back to menu
A2: Non-municipal | G2: Ruraflex - Non-local Authority | AG2: check value
J4: Active energy charge [c/kWh] | V4: Network capacity charges [R/kVA/m]
H5: Transmission zone | J5: High demand season [Jun - Aug] | P5: Low demand season [Sep - May]
I6: Voltage | J6: Peak | L6: Standard | N6: Off Peak | P6: Peak | R6: Standard | T6: Off Peak
A7: Tariff | B7: Tariff nameBillcode | C7: Tx zone | D7: Voltage | E7: Billcode | K7: VAT incl | M7: VAT incl | O7: VAT incl | Q7: VAT incl | S7: VAT incl | U7: VAT incl | W7: VAT incl
A8: Ruraflex | B8: Ru | C8: 0 | D8: 1 | E8: Ru01N | H8: ≤ 300km | I8: < 500V | J8: 345.33 | K8: 397.13 | L8: 104.62 | M8: 120.31 | N8: 56.82 | O8: 65.34 | P8: 112.65 | Q8: 129.55 | R8: 77.52 | S8: 89.15 | T8: 49.18 | U8: 56.56 | V8: 19.94 | W8: 22.93
A9: Ruraflex | B9: Ru | C9: 0 | D9: 2 | E9: Ru02N | I9: ≥ 500V & ≤ 22kV | J9: 341.92 | K9: 393.21 | L9: 103.59 | M9: 119.13 | N9: 56.24 | O9: 64.68 | P9: 111.55 | Q9: 128.28 | R9: 76.76 | S9: 88.27 | T9: 48.68 | U9: 55.98 | V9: 18.28 | W9: 21.02
A10: Ruraflex | B10: Ru | E10: RuN | J10: 0 | L10: 0 | N10: 0 | P10: 0 | R10: 0 | T10: 0 | V10: 0
A11: Ruraflex | B11: Ru | E11: RuN | J11: 0 | L11: 0 | N11: 0 | P11: 0 | R11: 0 | T11: 0 | V11: 0
A12: Ruraflex | B12: Ru | C12: 1 | D12: 1 | E12: Ru11N | H12: > 300km and ≤ 600km | I12: < 500V | J12: 348.8 | K12: 401.12 | L12: 105.66 | M12: 121.51 | N12: 57.38 | O12: 65.99 | P12: 113.77 | Q12: 130.84 | R12: 78.31 | S12: 90.06 | T12: 49.69 | U12: 57.14 | V12: 20 | W12: 23
A13: Ruraflex | B13: Ru | C13: 1 | D13: 2 | E13: Ru12N | I13: ≥ 500V & ≤ 22kV | J13: 345.32 | K13: 397.12 | L13: 104.61 | M13: 120.3 | N13: 56.82 | O13: 65.34 | P13: 112.65 | Q13: 129.55 | R13: 77.51 | S13: 89.14 | T13: 49.18 | U13: 56.56 | V13: 18.39 | W13: 21.15
A14: Ruraflex | B14: Ru | E14: RuN | J14: 0 | L14: 0 | N14: 0 | P14: 0 | R14: 0 | T14: 0 | V14: 0
A15: Ruraflex | B15: Ru | E15: RuN | J15: 0 | L15: 0 | N15: 0 | P15: 0 | R15: 0 | T15: 0 | V15: 0
A16: Ruraflex | B16: Ru | C16: 2 | D16: 1 | E16: Ru21N | H16: > 600km and ≤ 900km | I16: < 500V | J16: 352.29 | K16: 405.13 | L16: 106.73 | M16: 122.74 | N16: 57.95 | O16: 66.64 | P16: 114.92 | Q16: 132.16 | R16: 79.08 | S16: 90.94 | T16: 50.18 | U16: 57.71 | V16: 20.11 | W16: 23.13
A17: Ruraflex | B17: Ru | C17: 2 | D17: 2 | E17: Ru22N | I17: ≥ 500V & ≤ 22kV | J17: 348.78 | K17: 401.1 | L17: 105.65 | M17: 121.5 | N17: 57.38 | O17: 65.99 | P17: 113.77 | Q17: 130.84 | R17: 78.31 | S17: 90.06 | T17: 49.69 | U17: 57.14 | V17: 18.47 | W17: 21.24
A18: Ruraflex | B18: Ru | E18: RuN | J18: 0 | L18: 0 | N18: 0 | P18: 0 | R18: 0 | T18: 0 | V18: 0
A19: Ruraflex | B19: Ru | E19: RuN | J19: 0 | L19: 0 | N19: 0 | P19: 0 | R19: 0 | T19: 0 | V19: 0
A20: Ruraflex | B20: Ru | C20: 3 | D20: 1 | E20: Ru31N | H20: > 900km | I20: < 500V | J20: 355.8 | K20: 409.17 | L20: 107.79 | M20: 123.96 | N20: 58.52 | O20: 67.3 | P20: 116.03 | Q20: 133.43 | R20: 79.87 | S20: 91.85 | T20: 50.68 | U20: 58.28 | V20: 20.19 | W20: 23.22
A21: Ruraflex | B21: Ru | C21: 3 | D21: 2 | E21: Ru32N | I21: ≥ 500V & ≤ 22kV | J21: 352.28 | K21: 405.12 | L21: 106.73 | M21: 122.74 | N21: 57.95 | O21: 66.64 | P21: 114.92 | Q21: 132.16 | R21: 79.08 | S21: 90.94 | T21: 50.18 | U21: 57.71 | V21: 18.48 | W21: 21.25
N22: 0
N23: 0
H26: Customer categories | J26: Service charge [R/account/day] | L26: Administration charge [R/POD/day] | Q26: Ancillary service charge [c/kWh] | S26: Network demand charge [c/kWh] in all time-of-use periods
O27: Voltage | R27: VAT incl | T27: VAT incl
A28: Tariff | B28: Tariff nameBillcode | C28: Tx zone | D28: Voltage | E28: Billcode | K28: VAT incl | M28: VAT incl | O28: < 500V | Q28: 0.44 | R28: 0.51 | S28: 28.39 | T28: 32.65
A29: Ruraflex | B29: Ru | C29: 0 | D29: 1 | E29: Ru01N | H29: ≤ 100 kVA | J29: 19.62 | K29: 22.56 | L29: 5.57 | M29: 6.41 | O29: ≥ 500V & < 22kV | Q29: 0.44 | R29: 0.51 | S29: 24.89 | T29: 28.62
A30: Ruraflex | B30: Ru | C30: 0 | D30: 1 | E30: Ru01N | H30: > 100 kVA & ≤ 500 kVA | J30: 66.9 | K30: 76.94 | L30: 31.02 | M30: 35.67
A31: Ruraflex | B31: Ru | C31: 0 | D31: 1 | E31: Ru01N | H31: > 500 kVA & ≤ 1 MVA | J31: 205.82 | K31: 236.69 | L31: 47.61 | M31: 54.75 | O31: Reactive energy charge [c/kVArh]
A32: Ruraflex | B32: Ru | C32: 0 | D32: 1 | E32: Ru01N | H32: > 1 MVA | J32: 205.82 | K32: 236.69 | L32: 88.34 | M32: 101.59 | O32: High season | Q32: Low season
A33: Ruraflex | B33: Ru | C33: 0 | D33: 1 | E33: Ru01N | H33: Key customers | J33: 4033.88 | K33: 4638.96 | L33: 88.34 | M33: 101.59 | P33: VAT incl | R33: VAT incl
O34: 9.59 | P34: 11.03 | Q34: 0 | R34: 0

Sheet Ruraflex Munic
G1: Back to menu
A2: Municiple | G2: Ruraflex - Local Authority | AG2: check value
J4: Active energy charge [c/kWh] | V4: Network capacity charges [R/kVA/m]
H5: Transmission zone | J5: High demand season [Jun - Aug] | P5: Low demand season [Sep - May]
I6: Voltage | J6: Peak | L6: Standard | N6: Off Peak | P6: Peak | R6: Standard | T6: Off Peak
A7: Tariff | B7: Tariff nameBillcode | C7: Tx zone | D7: Voltage | E7: Billcode | K7: VAT incl | M7: VAT incl | O7: VAT incl | Q7: VAT incl | S7: VAT incl | U7: VAT incl | W7: VAT incl
A8: Ruraflex | B8: Ru | C8: 0 | D8: 1 | E8: Ru01Y | H8: ≤ 300km | I8: < 500V | J8: 359.41 | K8: 413.32 | L8: 108.87 | M8: 125.2 | N8: 59.13 | O8: 68 | P8: 117.25 | Q8: 134.84 | R8: 80.69 | S8: 92.79 | T8: 51.19 | U8: 58.87 | V8: 20.44 | W8: 23.51
A9: Ruraflex | B9: Ru | C9: 0 | D9: 2 | E9: Ru02Y | I9: ≥ 500V & ≤ 22kV | J9: 355.84 | K9: 409.22 | L9: 107.8 | M9: 123.97 | N9: 58.53 | O9: 67.31 | P9: 116.1 | Q9: 133.52 | R9: 79.87 | S9: 91.85 | T9: 50.67 | U9: 58.27 | V9: 18.76 | W9: 21.57
A10: Ruraflex | B10: Ru | E10: RuY | J10: 0 | L10: 0 | N10: 0 | P10: 0 | R10: 0 | T10: 0 | V10: 0
A11: Ruraflex | B11: Ru | E11: RuY | J11: 0 | L11: 0 | N11: 0 | P11: 0 | R11: 0 | T11: 0 | V11: 0
A12: Ruraflex | B12: Ru | C12: 1 | D12: 1 | E12: Ru11Y | H12: > 300km and ≤ 600km | I12: < 500V | J12: 362.98 | K12: 417.43 | L12: 109.98 | M12: 126.48 | N12: 59.69 | O12: 68.64 | P12: 118.39 | Q12: 136.15 | R12: 81.5 | S12: 93.73 | T12: 51.71 | U12: 59.47 | V12: 20.52 | W12: 23.6
A13: Ruraflex | B13: Ru | C13: 1 | D13: 2 | E13: Ru12Y | I13: ≥ 500V & ≤ 22kV | J13: 359.4 | K13: 413.31 | L13: 108.85 | M13: 125.18 | N13: 59.13 | O13: 68 | P13: 117.25 | Q13: 134.84 | R13: 80.67 | S13: 92.77 | T13: 51.19 | U13: 58.87 | V13: 18.86 | W13: 21.69
A14: Ruraflex | B14: Ru | E14: RuY | J14: 0 | L14: 0 | N14: 0 | P14: 0 | R14: 0 | T14: 0 | V14: 0
A15: Ruraflex | B15: Ru | E15: RuY | J15: 0 | L15: 0 | N15: 0 | P15: 0 | R15: 0 | T15: 0 | V15: 0
A16: Ruraflex | B16: Ru | C16: 2 | D16: 1 | E16: Ru21Y | H16: > 600km and ≤ 900km | I16: < 500V | J16: 366.63 | K16: 421.62 | L16: 111.05 | M16: 127.71 | N16: 60.31 | O16: 69.36 | P16: 119.58 | Q16: 137.52 | R16: 82.28 | S16: 94.62 | T16: 52.23 | U16: 60.06 | V16: 20.64 | W16: 23.74
A17: Ruraflex | B17: Ru | C17: 2 | D17: 2 | E17: Ru22Y | I17: ≥ 500V & ≤ 22kV | J17: 362.97 | K17: 417.42 | L17: 109.96 | M17: 126.45 | N17: 59.69 | O17: 68.64 | P17: 118.39 | Q17: 136.15 | R17: 81.5 | S17: 93.73 | T17: 51.71 | U17: 59.47 | V17: 18.95 | W17: 21.79
A18: Ruraflex | B18: Ru | E18: RuY | J18: 0 | L18: 0 | N18: 0 | P18: 0 | R18: 0 | T18: 0 | V18: 0
A19: Ruraflex | B19: Ru | E19: RuY | J19: 0 | L19: 0 | N19: 0 | P19: 0 | R19: 0 | T19: 0 | V19: 0
A20: Ruraflex | B20: Ru | C20: 3 | D20: 1 | E20: Ru31Y | H20: > 900km | I20: < 500V | J20: 370.29 | K20: 425.83 | L20: 112.2 | M20: 129.03 | N20: 60.88 | O20: 70.01 | P20: 120.76 | Q20: 138.87 | R20: 83.14 | S20: 95.61 | T20: 52.74 | U20: 60.65 | V20: 20.7 | W20: 23.81
A21: Ruraflex | B21: Ru | C21: 3 | D21: 2 | E21: Ru32Y | I21: ≥ 500V & ≤ 22kV | J21: 366.62 | K21: 421.61 | L21: 111.05 | M21: 127.71 | N21: 60.31 | O21: 69.36 | P21: 119.58 | Q21: 137.52 | R21: 82.28 | S21: 94.62 | T21: 52.23 | U21: 60.06 | V21: 18.96 | W21: 21.8
N22: 0
N23: 0
H26: Customer categories | J26: Service charge [R/account/day] | L26: Administration charge [R/POD/day] | Q26: Ancillary service charge [c/kWh] | S26: Network demand charge [c/kWh] in all time-of-use periods
O27: Voltage | R27: VAT incl | T27: VAT incl
A28: Tariff | B28: Tariff nameBillcode | C28: Tx zone | D28: Voltage | E28: Billcode | K28: VAT incl | M28: VAT incl | O28: < 500V | Q28: 0.45 | R28: 0.52 | S28: 29.15 | T28: 33.52
A29: Ruraflex | B29: Ru | C29: 0 | D29: 1 | E29: Ru01Y | H29: ≤ 100 kVA | J29: 19.85 | K29: 22.83 | L29: 5.63 | M29: 6.47 | O29: ≥ 500V & < 22kV | Q29: 0.45 | R29: 0.52 | S29: 25.51 | T29: 29.34
A30: Ruraflex | B30: Ru | C30: 0 | D30: 1 | E30: Ru01Y | H30: > 100 kVA & ≤ 500 kVA | J30: 67.7 | K30: 77.86 | L30: 31.38 | M30: 36.09
A31: Ruraflex | B31: Ru | C31: 0 | D31: 1 | E31: Ru01Y | H31: > 500 kVA & ≤ 1 MVA | J31: 208.27 | K31: 239.51 | L31: 48.16 | M31: 55.38 | O31: Reactive energy charge [c/kVArh]
A32: Ruraflex | B32: Ru | C32: 0 | D32: 1 | E32: Ru01Y | H32: > 1 MVA | J32: 208.27 | K32: 239.51 | L32: 89.38 | M32: 102.79 | O32: High season | Q32: Low season
A33: Ruraflex | B33: Ru | C33: 0 | D33: 1 | E33: Ru01Y | H33: Key customers | J33: 4081.49 | K33: 4693.71 | L33: 89.38 | M33: 102.79 | P33: VAT incl | R33: VAT incl
O34: 9.69 | P34: 11.14 | Q34: 0 | R34: 0

Sheet Ruraflex Gen NLA
G1: Back to menu
A2: Non-municipal | G2: Ruraflex Gen - Non-Local Authority | AG2: check value
J4: Active energy charge for loads [c/kWh] | V4: Network capacity charges [R/kVA/m]
H5: Transmission zone | J5: High demand season [Jun - Aug] | P5: Low demand season [Sep - May]
I6: Voltage | J6: Peak | L6: Standard | N6: Off Peak | P6: Peak | R6: Standard | T6: Off Peak
A7: Tariff | B7: Tariff nameBillcode | C7: Tx zone | D7: Voltage | E7: Billcode | K7: VAT incl | M7: VAT incl | O7: VAT incl | Q7: VAT incl | S7: VAT incl | U7: VAT incl | W7: VAT incl
A8: Genflex rural | B8: GR | C8: 0 | D8: 1 | E8: GR01N | H8: ≤ 300km | I8: < 500V | J8: 345.33 | K8: 397.13 | L8: 104.62 | M8: 120.31 | N8: 56.82 | O8: 65.34 | P8: 112.65 | Q8: 129.55 | R8: 77.52 | S8: 89.15 | T8: 49.18 | U8: 56.56 | V8: 19.94 | W8: 22.93
A9: Genflex rural | B9: GR | C9: 0 | D9: 2 | E9: GR02N | I9: ≥ 500V & ≤ 22kV | J9: 341.92 | K9: 393.21 | L9: 103.59 | M9: 119.13 | N9: 56.24 | O9: 64.68 | P9: 111.55 | Q9: 128.28 | R9: 76.76 | S9: 88.27 | T9: 48.68 | U9: 55.98 | V9: 18.28 | W9: 21.02
A10: Genflex rural | B10: GR | E10: GRN | J10: 0 | L10: 0 | N10: 0 | P10: 0 | R10: 0 | T10: 0 | V10: 0
A11: Genflex rural | B11: GR | E11: GRN | J11: 0 | L11: 0 | N11: 0 | P11: 0 | R11: 0 | T11: 0 | V11: 0
A12: Genflex rural | B12: GR | C12: 1 | D12: 1 | E12: GR11N | H12: > 300km and ≤ 600km | I12: < 500V | J12: 348.8 | K12: 401.12 | L12: 105.66 | M12: 121.51 | N12: 57.38 | O12: 65.99 | P12: 113.77 | Q12: 130.84 | R12: 78.31 | S12: 90.06 | T12: 49.69 | U12: 57.14 | V12: 20 | W12: 23
A13: Genflex rural | B13: GR | C13: 1 | D13: 2 | E13: GR12N | I13: ≥ 500V & ≤ 22kV | J13: 345.32 | K13: 397.12 | L13: 104.61 | M13: 120.3 | N13: 56.82 | O13: 65.34 | P13: 112.65 | Q13: 129.55 | R13: 77.51 | S13: 89.14 | T13: 49.18 | U13: 56.56 | V13: 18.39 | W13: 21.15
A14: Genflex rural | B14: GR | E14: GRN | J14: 0 | L14: 0 | N14: 0 | P14: 0 | R14: 0 | T14: 0 | V14: 0
A15: Genflex rural | B15: GR | E15: GRN | J15: 0 | L15: 0 | N15: 0 | P15: 0 | R15: 0 | T15: 0 | V15: 0
A16: Genflex rural | B16: GR | C16: 2 | D16: 1 | E16: GR21N | H16: > 600km and ≤ 900km | I16: < 500V | J16: 352.29 | K16: 405.13 | L16: 106.73 | M16: 122.74 | N16: 57.95 | O16: 66.64 | P16: 114.92 | Q16: 132.16 | R16: 79.08 | S16: 90.94 | T16: 50.18 | U16: 57.71 | V16: 20.11 | W16: 23.13
A17: Genflex rural | B17: GR | C17: 2 | D17: 2 | E17: GR22N | I17: ≥ 500V & ≤ 22kV | J17: 348.78 | K17: 401.1 | L17: 105.65 | M17: 121.5 | N17: 57.38 | O17: 65.99 | P17: 113.77 | Q17: 130.84 | R17: 78.31 | S17: 90.06 | T17: 49.69 | U17: 57.14 | V17: 18.47 | W17: 21.24
A18: Genflex rural | B18: GR | E18: GRN | J18: 0 | L18: 0 | N18: 0 | P18: 0 | R18: 0 | T18: 0 | V18: 0
A19: Genflex rural | B19: GR | E19: GRN | J19: 0 | L19: 0 | N19: 0 | P19: 0 | R19: 0 | T19: 0 | V19: 0
A20: Genflex rural | B20: GR | C20: 3 | D20: 1 | E20: GR31N | H20: > 900km | I20: < 500V | J20: 355.8 | K20: 409.17 | L20: 107.79 | M20: 123.96 | N20: 58.52 | O20: 67.3 | P20: 116.03 | Q20: 133.43 | R20: 79.87 | S20: 91.85 | T20: 50.68 | U20: 58.28 | V20: 20.19 | W20: 23.22
A21: Genflex rural | B21: GR | C21: 3 | D21: 2 | E21: GR32N | I21: ≥ 500V & ≤ 22kV | J21: 352.28 | K21: 405.12 | L21: 106.73 | M21: 122.74 | N21: 57.95 | O21: 66.64 | P21: 114.92 | Q21: 132.16 | R21: 79.08 | S21: 90.94 | T21: 50.18 | U21: 57.71 | V21: 18.48 | W21: 21.25
N22: 0
N23: 0
A24: Gen-purchase | B24: NLPurchADJ | C24: 0 | D24: 4 | E24: NLPurchADJ04N
Q26: Ancillary service charge for loads and generators
H28: Customer categories | J28: Service charge [R/account/day] | L28: Administration charge [R/POD/day] | O28: Voltage | Q28: [c/kWh]
H29: [kVA or MVA = loads] | R29: VAT incl
A30: Tariff | B30: Tariff nameBillcode | C30: Tx zone | D30: Voltage | E30: Billcode | H30: [kW or MW = generators] | K30: VAT incl | M30: VAT incl | O30: < 500V | Q30: 0.44 | R30: 0.51
A31: Genflex rural | B31: GR | C31: 0 | D31: 1 | E31: GR01N | H31: ≤ 100 kVA/kW | J31: 19.62 | K31: 22.56 | L31: 5.57 | M31: 6.41 | O31: ≥ 500V & < 22kV | Q31: 0.44 | R31: 0.51
A32: Genflex rural | B32: GR | C32: 0 | D32: 1 | E32: GR01N | H32: > 100 KVA/kW & ≤ 500 kVA/kW | J32: 66.9 | K32: 76.94 | L32: 31.02 | M32: 35.67
A33: Genflex rural | B33: GR | C33: 0 | D33: 1 | E33: GR01N | H33: > 500 kVA/kW & ≤ 1 MVA/MW | J33: 205.82 | K33: 236.69 | L33: 47.61 | M33: 54.75 | O33: Reactive energy charge [c/kVArh] | S33: Network demand charge [c/kWh] for loads in all time-of-use periods
A34: Genflex rural | B34: GR | C34: 0 | D34: 1 | E34: GR01N | H34: > 1 MVA/MW | J34: 205.82 | K34: 236.69 | L34: 88.34 | M34: 101.59 | O34: High season | Q34: Low season | T34: VAT incl
A35: Genflex rural | B35: GR | C35: 0 | D35: 1 | E35: GR01N | H35: Key customers | J35: 4033.88 | K35: 4638.96 | L35: 88.34 | M35: 101.59 | P35: VAT incl | R35: VAT incl | S35: 28.39 | T35: 32.65
O36: 9.59 | P36: 11.03 | Q36: 0 | R36: 0 | S36: 24.89 | T36: 28.62

Sheet Landrate NLA
H1: Back to menu
A2: Non-municipal | G2: Landrate - Non-local Authority
J4: Energy charge [c/kWh] | L4: Ancillary service charge [c/kWh] | N4: Network demand charge [c/kWh] | P4: Network capacity charge [R/POD/day] | R4: Service charge [R/POD/day]
A5: Tariff | B5: Tariff nameBillcode | C5: Tx zone | D5: Voltage | E5: Billcode | K5: VAT incl | M5: VAT incl | O5: VAT incl | Q5: VAT incl | S5: VAT incl
A6: Landrate 1 | B6: L1 | C6: 0 | D6: 1 | E6: L101N | H6: Landrate 1 | J6: 113.63 | K6: 130.67 | L6: 0.44 | M6: 0.51 | N6: 28.39 | O6: 32.65 | P6: 30.35 | Q6: 34.9 | R6: 25.2 | S6: 28.98
A7: Landrate 2 | B7: L2 | C7: 0 | D7: 1 | E7: L201N | H7: Landrate 2 | J7: 113.63 | K7: 130.67 | L7: 0.44 | M7: 0.51 | N7: 28.39 | O7: 32.65 | P7: 46.65 | Q7: 53.65 | R7: 25.2 | S7: 28.98
A8: Landrate 3 | B8: L3 | C8: 0 | D8: 1 | E8: L301N | H8: Landrate 3 | J8: 113.63 | K8: 130.67 | L8: 0.44 | M8: 0.51 | N8: 28.39 | O8: 32.65 | P8: 74.58 | Q8: 85.77 | R8: 25.2 | S8: 28.98
A9: Landrate 4 | B9: L4 | C9: 0 | D9: 1 | E9: L401N | H9: Landrate 4 | J9: 245.42 | K9: 282.23 | L9: 0.44 | M9: 0.51 | N9: 28.39 | O9: 32.65 | P9: 24.16 | Q9: 27.78 | R9: 0 | S9: 0
A10: Landlight | B10: Lt | C10: 0 | D10: 1 | E10: Lt01N | H10: Landlight 20A | J10: 326.73 | K10: 375.74
B11: Lt60 | C11: 0 | D11: 1 | E11: Lt6001N | H11: Landlight 60A | J11: 421.19 | K11: 484.37
A12: Landrate Dx | B12: Ld | C12: 0 | D12: 1 | E12: Ld01N | H12: Landrate Dx* | R12: 54.0436 | S12: 62.15
H13: *R/day fixed charge inclusive of the following charges; energy, anciallary service, network demand, betwork capacity and service charge.

Sheet Landrate Munic
H1: Back to menu
A2: Municiple | G2: Landrate - Local Authority
J4: Energy charge [c/kWh] | L4: Ancillary service charge [c/kWh] | N4: Network demand charge [c/kWh] | P4: Network capacity charge [R/POD/day] | R4: Service charge [R/POD/day]
A5: Tariff | B5: Tariff nameBillcode | C5: Tx zone | D5: Voltage | E5: Billcode | K5: VAT incl | M5: VAT incl | O5: VAT incl | Q5: VAT incl | S5: VAT incl
A6: Landrate 1 | B6: L1 | C6: 0 | D6: 1 | E6: L101Y | H6: Landrate 1 | J6: 118.25 | K6: 135.99 | L6: 0.45 | M6: 0.52 | N6: 29.15 | O6: 33.52 | P6: 31.13 | Q6: 35.8 | R6: 25.48 | S6: 29.3
A7: Landrate 2 | B7: L2 | C7: 0 | D7: 1 | E7: L201Y | H7: Landrate 2 | J7: 118.25 | K7: 135.99 | L7: 0.45 | M7: 0.52 | N7: 29.15 | O7: 33.52 | P7: 47.85 | Q7: 55.03 | R7: 25.48 | S7: 29.3
A8: Landrate 3 | B8: L3 | C8: 0 | D8: 1 | E8: L301Y | H8: Landrate 3 | J8: 118.25 | K8: 135.99 | L8: 0.45 | M8: 0.52 | N8: 29.15 | O8: 33.52 | P8: 76.51 | Q8: 87.99 | R8: 25.48 | S8: 29.3
A9: Landrate 4 | B9: L4 | C9: 0 | D9: 1 | E9: L401Y | H9: Landrate 4 | J9: 255.41 | K9: 293.72 | L9: 0.45 | M9: 0.52 | N9: 29.15 | O9: 33.52 | P9: 24.79 | Q9: 28.51
A10: Landrate Dx | B10: Ld | C10: 0 | D10: 1 | E10: Ld01Y | H10: Landrate Dx* | R10: 55.1308 | S10: 63.4
H11: *R/day fixed charge inclusive of the following charges; energy, anciallary service, network demand, betwork capacity and service charge.

Sheet TOuS Original (hidden)
B4: Reliability service charge urban | D4: Charge [c/kWh]
E5: VAT incl
B6: < 500V | D6: 0.27 | E6: =ROUND(D6 * (1 + VAT), 2) -> 0.31
B7: ≥ 500V & < 66kV | D7: 0.26 | E7: =ROUND(D7 * (1 + VAT), 2) -> 0.3
B8: ≥ 66kV & ≤ 132kV | D8: 0.25 | E8: =ROUND(D8 * (1 + VAT), 2) -> 0.29
B9: > 132kV | D9: 0.23 | E9: =ROUND(D9 * (1 + VAT), 2) -> 0.26
B12: Reliability service charge rural | D12: Charge [c/kWh]
E13: VAT incl
B14: < 500V | D14: 0.27 | E14: =ROUND(D14 * (1 + VAT), 2) -> 0.31
B15: ≥ 500V & ≤ 22kV | D15: 0.27 | E15: =ROUND(D15 * (1 + VAT), 2) -> 0.31
C18: Transmission zone | D18: Voltage | E18: R/kVA
F19: VAT incl
B20: ETUoS urban | C20: ≤ 300km | D20: < 500V | E20: 11.36438596 | F20: =ROUND(E20 * (1 + VAT), 2) -> 13.07
D21: ≥ 500V & < 66kV | E21: 11.19400536 | F21: 12.87
D22: ≥ 66kV & ≤ 132kV | E22: 10.8362061 | F22: 12.46
C23: > 300km & ≤ 600km | D23: < 500V | E23: 11.46661432 | F23: 13.19
D24: ≥ 500V & < 66kV | E24: 11.31327178 | F24: 13.01
D25: ≥ 66kV & ≤ 132kV | E25: 10.95547252 | F25: 12.6
C26: > 600km & ≤ 900km | D26: < 500V | E26: 11.58588074 | F26: 13.32
D27: ≥ 500V & < 66kV | E27: 11.4325382 | F27: 13.15
D28: ≥ 66kV & ≤ 132kV | E28: 11.05770088 | F28: 12.72
C29: > 900km | D29: < 500V | E29: 11.70514716 | F29: 13.46
D30: ≥ 500V & < 66kV | E30: 11.55180462 | F30: 13.28
D31: ≥ 66kV & ≤ 132kV | E31: 11.1769673 | F31: 12.85
C34: Transmission zone | D34: Voltage | E34: R/kVA
F35: VAT incl
B36: ETUoS rural | C36: ≤ 300km | D36: < 500V | E36: 11.7732994 | F36: =ROUND(E36 * (1 + VAT), 2) -> 13.54
D37: ≥ 500V & < 66kV | E37: 11.67107104 | F37: 13.42
C38: > 300km & ≤ 600km | D38: < 500V | E38: 11.89256582 | F38: 13.68
D39: ≥ 500V & < 66kV | E39: 11.79033746 | F39: 13.56
C40: > 600km & ≤ 900km | D40: < 500V | E40: 12.01183224 | F40: 13.81
D41: ≥ 500V & < 66kV | E41: 11.90960388 | F41: 13.7
C42: > 900km | D42: < 500V | E42: 12.13109866 | F42: 13.95
D43: ≥ 500V & < 66kV | E43: 12.0288703 | F43: 13.83
B46: Distribution network charges urban
D47: Network access charge [R/kVA/m] | F47: Network demand charge [R/kVA/m] | H47: Urban low voltage subsidy charge [R/kVA/m]
B49: Voltage | E49: VAT incl | G49: VAT incl | I49: VAT incl
B50: < 500V | D50: =#REF! ->  | E50: =ROUND(D50 * (1 + VAT), 2) ->  | F50: =#REF! ->  | G50: =ROUND(F50 * (1 + VAT), 2) ->  | H50: =#REF! ->  | I50: =ROUND(H50 * (1 + VAT), 2) -> 
B51: ≥ 500V & < 66kV | D51: =#REF! ->  | E51: =ROUND(D51 * (1 + VAT), 2) ->  | F51: =#REF! ->  | G51: =ROUND(F51 * (1 + VAT), 2) ->  | H51: =#REF! ->  | I51: =ROUND(H51 * (1 + VAT), 2) -> 
B52: ≥ 66kV & ≤ 132kV | D52: =#REF! ->  | E52: =ROUND(D52 * (1 + VAT), 2) ->  | F52: =#REF! ->  | G52: =ROUND(F52 * (1 + VAT), 2) ->  | H52: =#REF! ->  | I52: =ROUND(H52 * (1 + VAT), 2) -> 
B53: > 132kV | D53: =#REF! ->  | E53: =ROUND(D53 * (1 + VAT), 2) ->  | F53: =#REF! ->  | G53: =ROUND(F53 * (1 + VAT), 2) ->  | H53: =#REF! ->  | I53: =ROUND(H53 * (1 + VAT), 2) -> 
B56: Distribution network charges rural
D57: Network access charge [R/kVA/m] | F57: Network demand charge [c/kWh]
B59: Voltage | E59: VAT incl | G59: VAT incl
B60: < 500V | D60: 6.201664795 | E60: =ROUND(D60 * (1 + VAT), 2) -> 7.13 | F60: 19.67324725 | G60: =ROUND(F60 * (1 + VAT), 2) -> 22.62
B61: ≥ 500V & ≤ 22kV | D61: 2.297555913 | E61: =ROUND(D61 * (1 + VAT), 2) -> 2.64 | F61: 17.23886725 | G61: =ROUND(F61 * (1 + VAT), 2) -> 19.82
B64: Distribution network charges for Generators
D65: Network access charge [R/MW/m]
B67: Voltage | E67: VAT incl
B68: < 500V
B69: ≥ 500V & < 66kV
B70: ≥ 66kV & ≤ 132kV | D70: 9.4 | E70: =ROUND(D70 * (1 + VAT), 2) -> 10.81
B73: Electrification and rural network subsidy charge [c/kWh]
D74: Rural network subsidy charge [c/kWh] | F74: Electrification networks subsidy charge [c/kWh] | H74: Total electrification and rural network subsidy charge [c/kWh]
B76: Tariff | E76: VAT incl | G76: VAT incl | I76: VAT incl
B77: Megaflex, Miniflex, Nightsave Urban Large, Nightsave Urban Small, Businessrate
D78: 2.68 | E78: =ROUND(D78 * (1 + VAT), 2) -> 3.08 | F78: 0.91 | G78: =ROUND(F78 * (1 + VAT), 2) -> 1.05 | H78: 3.59 | I78: =ROUND(H78 * (1 + VAT), 2) -> 4.13
B83: Service and admin charges
B84: Customer categories | D84: Service charge [R/account/day] | F84: Administration charge [R/POD/day]
E86: VAT incl | G86: VAT incl
B87: ≤ 100 kVA | D87: 9.49 | E87: =ROUND(D87 * (1 + VAT), 2) -> 10.91 | F87: 2.08 | G87: =ROUND(F87 * (1 + VAT), 2) -> 2.39
B88: > 100 kVA & ≤ 500 kVA | D88: 43.38 | E88: =ROUND(D88 * (1 + VAT), 2) -> 49.89 | F88: 12.16 | G88: =ROUND(F88 * (1 + VAT), 2) -> 13.98
B89: > 500 kVA & ≤ 1 MVA | D89: 133.5 | E89: =ROUND(D89 * (1 + VAT), 2) -> 153.53 | F89: 24.17 | G89: =ROUND(F89 * (1 + VAT), 2) -> 27.8
B90: > 1 MVA | D90: 133.5 | E90: =ROUND(D90 * (1 + VAT), 2) -> 153.53 | F90: 60.17 | G90: =ROUND(F90 * (1 + VAT), 2) -> 69.2
B91: Key customers | D91: 2616.06 | E91: =ROUND(D91 * (1 + VAT), 2) -> 3008.47 | F91: 83.55 | G91: =ROUND(F91 * (1 + VAT), 2) -> 96.08
B94: Distribution loss factors | F94: Transmission loss factors for loads
B95: Voltage | C95: Urban loss factor | D95: Rural loss factor | F95: Distance from Johannesburg | G95: Zone | H95: Loss factor
B96: < 500V | C96: ='Loss Factors'!O6 -> 1.1111 | D96: ='Loss Factors'!P6 -> 1.1527 | F96: 0 to 300 km | G96: 0 | H96: ='Loss Factors'!T6 -> 1.0107
B97: ≥ 500V & < 66kV | C97: ='Loss Factors'!O7 -> 1.0957 | D97: ='Loss Factors'!P7 -> 1.1412 | F97: 301 to 600 km | G97: 1 | H97: ='Loss Factors'!T7 -> 1.0208
B98: ≥ 66kV & ≤ 132kV | C98: ='Loss Factors'!O8 -> 1.0611 | F98: 601 to 900 km | G98: 2 | H98: ='Loss Factors'!T8 -> 1.031
B99: > 132kV | C99: ='Loss Factors'!O9 -> 1 | F99: > 900 km | G99: 3 | H99: ='Loss Factors'!T9 -> 1.0413
K104: TUoS [ > 132kV] | M104: Charge R/kVA
N105: VAT incl
L106: ≤ 300km | M106: =#REF! ->  | N106: =ROUND(M106 * (1 + VAT), 2) -> 
L107: > 300km & ≤ 600km | M107: =#REF! ->  | N107: =ROUND(M107 * (1 + VAT), 2) -> 
L108: > 600km & ≤ 900km | M108: =#REF! ->  | N108: =ROUND(M108 * (1 + VAT), 2) -> 
L109: > 900km | M109: =#REF! ->  | N109: =ROUND(M109 * (1 + VAT), 2) -> 

Sheet Excess NCC NLA
S1: Back to menu
R2: Excess network capacity charges (NCC) - Non-Local Authority
A4: Non-municipal | S4: Urban - Excess NCC Megaflex/Megaflex Gen [non local authorities] | X4: Urban - Excess NCC Nightsave Urban Large [non local authorities] | AD4: Urban - Excess NCC Miniflex [non local authorities] | AK4: Urban - Excess NCC WEPS [non local authorities]
U6: Excess NCC[R/kVA/m] | AA6: Excess NCC[R/kVA/m] | AG6: Excess NCC[R/kVA/m] | AM6: Excess NCC[R/kVA/m]
S7: Transmission zone | Y7: Transmission zone | AE7: Transmission zone | AK7: Transmission zone
T8: Voltage | Z8: Voltage | AF8: Voltage | AL8: Voltage
A9: Tariff | B9: Tariff nameBillcode | C9: Tx zone | D9: Voltage | E9: Billcode | G9: Tariff | H9: Tariff nameBillcode | I9: Tx zone | J9: Voltage | K9: Billcode | M9: Tariff | N9: Tariff nameBillcode | O9: Tx zone | P9: Voltage | Q9: Billcode | V9: VAT incl | AB9: VAT incl | AH9: VAT incl | AN9: VAT incl
A10: Excess NAC Megaflex | B10: ExNACMe | C10: 0 | D10: 1 | E10: ExNACMe01N | G10: Excess NAC Nightsave Large | H10: ExNACNL | I10: 0 | J10: 1 | K10: ExNACNL01N | M10: Excess NAC Miniflex | N10: ExNACMi | O10: 0 | P10: 1 | Q10: ExNACMi01N | S10: ≤ 300km | T10: < 500V | U10: 28.5 | V10: 32.78 | Y10: ≤ 300km | Z10: < 500V | AA10: 28.5 | AB10: 32.78 | AE10: ≤ 300km | AF10: < 500V | AG10: 28.47 | AH10: 32.74 | AK10: ≤ 300km | AL10: < 500V | AM10: 28.5 | AN10: 32.78
A11: Excess NAC Megaflex | B11: ExNACMe | C11: 0 | D11: 2 | E11: ExNACMe02N | G11: Excess NAC Nightsave Large | H11: ExNACNL | I11: 0 | J11: 2 | K11: ExNACNL02N | M11: Excess NAC Miniflex | N11: ExNACMi | O11: 0 | P11: 2 | Q11: ExNACMi02N | T11: ≥ 500V & < 66kV | U11: 26.11 | V11: 30.03 | Z11: ≥ 500V & < 66kV | AA11: 26.11 | AB11: 30.03 | AF11: ≥ 500V & < 66kV | AG11: 26.09 | AH11: 30 | AL11: ≥ 500V & < 66kV | AM11: 26.11 | AN11: 30.03
A12: Excess NAC Megaflex | B12: ExNACMe | C12: 0 | D12: 3 | E12: ExNACMe03N | G12: Excess NAC Nightsave Large | H12: ExNACNL | I12: 0 | J12: 3 | K12: ExNACNL03N | M12: Excess NAC Miniflex | N12: ExNACMi | O12: 0 | P12: 3 | Q12: ExNACMi03N | T12: ≥ 66kV & ≤ 132kV | U12: 30.02 | V12: 34.52 | Z12: ≥ 66kV & ≤ 132kV | AA12: 30.02 | AB12: 34.52 | AF12: ≥ 66kV & ≤ 132kV | AG12: 29.98 | AH12: 34.48 | AL12: ≥ 66kV & ≤ 132kV | AM12: 30.02 | AN12: 34.52
A13: Excess NAC Megaflex | B13: ExNACMe | C13: 0 | D13: 4 | E13: ExNACMe04N | G13: Excess NAC Nightsave Large | H13: ExNACNL | I13: 0 | J13: 4 | K13: ExNACNL04N | M13: Excess NAC Miniflex | N13: ExNACMi | O13: 0 | P13: 4 | Q13: ExNACMi04N | T13: > 132kV* | U13: 26.05 | V13: 29.96 | Z13: > 132kV* | AA13: 26.05 | AB13: 29.96 | AF13: > 132kV* | AG13: 26 | AH13: 29.9 | AL13: > 132kV* | AM13: 26.05 | AN13: 29.96
A14: Excess NAC Megaflex | B14: ExNACMe | C14: 1 | D14: 1 | E14: ExNACMe11N | G14: Excess NAC Nightsave Large | H14: ExNACNL | I14: 1 | J14: 1 | K14: ExNACNL11N | M14: Excess NAC Miniflex | N14: ExNACMi | O14: 1 | P14: 1 | Q14: ExNACMi11N | S14: > 300km and ≤ 600km | T14: < 500V | U14: 28.57 | V14: 32.86 | Y14: > 300km and ≤ 600km | Z14: < 500V | AA14: 28.57 | AB14: 32.86 | AE14: > 300km and ≤ 600km | AF14: < 500V | AG14: 28.54 | AH14: 32.82 | AK14: > 300km and ≤ 600km | AL14: < 500V | AM14: 28.57 | AN14: 32.86
A15: Excess NAC Megaflex | B15: ExNACMe | C15: 1 | D15: 2 | E15: ExNACMe12N | G15: Excess NAC Nightsave Large | H15: ExNACNL | I15: 1 | J15: 2 | K15: ExNACNL12N | M15: Excess NAC Miniflex | N15: ExNACMi | O15: 1 | P15: 2 | Q15: ExNACMi12N | T15: ≥ 500V & < 66kV | U15: 26.19 | V15: 30.12 | Z15: ≥ 500V & < 66kV | AA15: 26.19 | AB15: 30.12 | AF15: ≥ 500V & < 66kV | AG15: 26.17 | AH15: 30.1 | AL15: ≥ 500V & < 66kV | AM15: 26.19 | AN15: 30.12
A16: Excess NAC Megaflex | B16: ExNACMe | C16: 1 | D16: 3 | E16: ExNACMe13N | G16: Excess NAC Nightsave Large | H16: ExNACNL | I16: 1 | J16: 3 | K16: ExNACNL13N | M16: Excess NAC Miniflex | N16: ExNACMi | O16: 1 | P16: 3 | Q16: ExNACMi13N | T16: ≥ 66kV & ≤ 132kV | U16: 30.08 | V16: 34.59 | Z16: ≥ 66kV & ≤ 132kV | AA16: 30.08 | AB16: 34.59 | AF16: ≥ 66kV & ≤ 132kV | AG16: 30.03 | AH16: 34.53 | AL16: ≥ 66kV & ≤ 132kV | AM16: 30.08 | AN16: 34.59
A17: Excess NAC Megaflex | B17: ExNACMe | C17: 1 | D17: 4 | E17: ExNACMe14N | G17: Excess NAC Nightsave Large | H17: ExNACNL | I17: 1 | J17: 4 | K17: ExNACNL14N | M17: Excess NAC Miniflex | N17: ExNACMi | O17: 1 | P17: 4 | Q17: ExNACMi14N | T17: > 132kV* | U17: 26.15 | V17: 30.07 | Z17: > 132kV* | AA17: 26.15 | AB17: 30.07 | AF17: > 132kV* | AG17: 26.11 | AH17: 30.03 | AL17: > 132kV* | AM17: 26.15 | AN17: 30.07
A18: Excess NAC Megaflex | B18: ExNACMe | C18: 2 | D18: 1 | E18: ExNACMe21N | G18: Excess NAC Nightsave Large | H18: ExNACNL | I18: 2 | J18: 1 | K18: ExNACNL21N | M18: Excess NAC Miniflex | N18: ExNACMi | O18: 2 | P18: 1 | Q18: ExNACMi21N | S18: > 600km and ≤ 900km | T18: < 500V | U18: 28.68 | V18: 32.98 | Y18: > 600km and ≤ 900km | Z18: < 500V | AA18: 28.68 | AB18: 32.98 | AE18: > 600km and ≤ 900km | AF18: < 500V | AG18: 28.67 | AH18: 32.97 | AK18: > 600km and ≤ 900km | AL18: < 500V | AM18: 28.68 | AN18: 32.98
A19: Excess NAC Megaflex | B19: ExNACMe | C19: 2 | D19: 2 | E19: ExNACMe22N | G19: Excess NAC Nightsave Large | H19: ExNACNL | I19: 2 | J19: 2 | K19: ExNACNL22N | M19: Excess NAC Miniflex | N19: ExNACMi | O19: 2 | P19: 2 | Q19: ExNACMi22N | T19: ≥ 500V & < 66kV | U19: 26.27 | V19: 30.21 | Z19: ≥ 500V & < 66kV | AA19: 26.27 | AB19: 30.21 | AF19: ≥ 500V & < 66kV | AG19: 26.25 | AH19: 30.19 | AL19: ≥ 500V & < 66kV | AM19: 26.27 | AN19: 30.21
A20: Excess NAC Megaflex | B20: ExNACMe | C20: 2 | D20: 3 | E20: ExNACMe23N | G20: Excess NAC Nightsave Large | H20: ExNACNL | I20: 2 | J20: 3 | K20: ExNACNL23N | M20: Excess NAC Miniflex | N20: ExNACMi | O20: 2 | P20: 3 | Q20: ExNACMi23N | T20: ≥ 66kV & ≤ 132kV | U20: 30.14 | V20: 34.66 | Z20: ≥ 66kV & ≤ 132kV | AA20: 30.14 | AB20: 34.66 | AF20: ≥ 66kV & ≤ 132kV | AG20: 30.12 | AH20: 34.64 | AL20: ≥ 66kV & ≤ 132kV | AM20: 30.14 | AN20: 34.66
A21: Excess NAC Megaflex | B21: ExNACMe | C21: 2 | D21: 4 | E21: ExNACMe24N | G21: Excess NAC Nightsave Large | H21: ExNACNL | I21: 2 | J21: 4 | K21: ExNACNL24N | M21: Excess NAC Miniflex | N21: ExNACMi | O21: 2 | P21: 4 | Q21: ExNACMi24N | T21: > 132kV* | U21: 26.31 | V21: 30.26 | Z21: > 132kV* | AA21: 26.31 | AB21: 30.26 | AF21: > 132kV* | AG21: 26.27 | AH21: 30.21 | AL21: > 132kV* | AM21: 26.31 | AN21: 30.26
A22: Excess NAC Megaflex | B22: ExNACMe | C22: 3 | D22: 1 | E22: ExNACMe31N | G22: Excess NAC Nightsave Large | H22: ExNACNL | I22: 3 | J22: 1 | K22: ExNACNL31N | M22: Excess NAC Miniflex | N22: ExNACMi | O22: 3 | P22: 1 | Q22: ExNACMi31N | S22: > 900km | T22: < 500V | U22: 28.74 | V22: 33.05 | Y22: > 900km | Z22: < 500V | AA22: 28.74 | AB22: 33.05 | AE22: > 900km | AF22: < 500V | AG22: 28.7 | AH22: 33.01 | AK22: > 900km | AL22: < 500V | AM22: 28.74 | AN22: 33.05
A23: Excess NAC Megaflex | B23: ExNACMe | C23: 3 | D23: 2 | E23: ExNACMe32N | G23: Excess NAC Nightsave Large | H23: ExNACNL | I23: 3 | J23: 2 | K23: ExNACNL32N | M23: Excess NAC Miniflex | N23: ExNACMi | O23: 3 | P23: 2 | Q23: ExNACMi32N | T23: ≥ 500V & < 66kV | U23: 26.37 | V23: 30.33 | Z23: ≥ 500V & < 66kV | AA23: 26.37 | AB23: 30.33 | AF23: ≥ 500V & < 66kV | AG23: 26.34 | AH23: 30.29 | AL23: ≥ 500V & < 66kV | AM23: 26.37 | AN23: 30.33
A24: Excess NAC Megaflex | B24: ExNACMe | C24: 3 | D24: 3 | E24: ExNACMe33N | G24: Excess NAC Nightsave Large | H24: ExNACNL | I24: 3 | J24: 3 | K24: ExNACNL33N | M24: Excess NAC Miniflex | N24: ExNACMi | O24: 3 | P24: 3 | Q24: ExNACMi33N | T24: ≥ 66kV & ≤ 132kV | U24: 30.22 | V24: 34.75 | Z24: ≥ 66kV & ≤ 132kV | AA24: 30.22 | AB24: 34.75 | AF24: ≥ 66kV & ≤ 132kV | AG24: 30.18 | AH24: 34.71 | AL24: ≥ 66kV & ≤ 132kV | AM24: 30.22 | AN24: 34.75
A25: Excess NAC Megaflex | B25: ExNACMe | C25: 3 | D25: 4 | E25: ExNACMe34N | G25: Excess NAC Nightsave Large | H25: ExNACNL | I25: 3 | J25: 4 | K25: ExNACNL34N | M25: Excess NAC Miniflex | N25: ExNACMi | O25: 3 | P25: 4 | Q25: ExNACMi34N | T25: > 132kV* | U25: 26.39 | V25: 30.35 | Z25: > 132kV* | AA25: 26.39 | AB25: 30.35 | AF25: > 132kV* | AG25: 26.34 | AH25: 30.29 | AL25: > 132kV* | AM25: 26.39 | AN25: 30.35
T26: * 132 kV or Transmission connected | Z26: * 132 kV or Transmission connected | AF26: * 132 kV or Transmission connected | AL26: * 132 kV or Transmission connected
S28: Urban - Excess NCC Nightsave Urban Small [non local authorities] | X28: Rural - Excess NCC Nightsave Rural [non local authorities] | AD28: Rural - Excess NCC Ruraflex/Ruraflex Gen [non local authorities]
U30: Excess NCC[R/kVA/m] | AA30: Excess NCC[R/kVA/m] | AG30: Excess NCC[R/kVA/m]
S31: Transmission zone | Y31: Transmission zone | AE31: Transmission zone
T32: Voltage | Z32: Voltage | AF32: Voltage
A33: Tariff | B33: Tariff nameBillcode | C33: Tx zone | D33: Voltage | E33: Billcode | G33: Tariff | H33: Tariff nameBillcode | I33: Tx zone | J33: Voltage | K33: Billcode | M33: Tariff | N33: Tariff nameBillcode | O33: Tx zone | P33: Voltage | Q33: Billcode | V33: VAT incl | AB33: VAT incl | AH33: VAT incl
A34: Excess NAC Nightsave Small | B34: ExNACNS | C34: 0 | D34: 1 | E34: ExNACNS01N | G34: Excess NAC Nightsave Rural | H34: ExNACNR | I34: 0 | J34: 1 | K34: ExNACNR01N | M34: Excess NAC Ruraflex | N34: ExNACRu | O34: 0 | P34: 1 | Q34: ExNACRu01N | S34: ≤ 300km | T34: < 500V | U34: 28.5 | V34: 32.78 | Y34: ≤ 300km | Z34: < 500V | AA34: 14.27 | AB34: 16.41 | AE34: ≤ 300km | AF34: < 500V | AG34: 19.94 | AH34: 22.93
A35: Excess NAC Nightsave Small | B35: ExNACNS | C35: 0 | D35: 2 | E35: ExNACNS02N | G35: Excess NAC Nightsave Rural | H35: ExNACNR | I35: 0 | J35: 2 | K35: ExNACNR02N | M35: Excess NAC Ruraflex | N35: ExNACRu | O35: 0 | P35: 2 | Q35: ExNACRu02N | T35: ≥ 500V & < 66kV | U35: 26.11 | V35: 30.03 | Z35: ≥ 500V & ≤ 22kV | AA35: 13.11 | AB35: 15.08 | AF35: ≥ 500V & ≤ 22kV | AG35: 18.28 | AH35: 21.02
A36: Excess NAC Nightsave Small | B36: ExNACNS | C36: 0 | D36: 3 | E36: ExNACNS03N | G36: Excess NAC Nightsave Rural | H36: ExNACNR | I36: 0 | J36: 3 | K36: ExNACNR03N | M36: Excess NAC Ruraflex | N36: ExNACRu | O36: 0 | P36: 3 | Q36: ExNACRu03N | T36: ≥ 66kV & ≤ 132kV | U36: 30.02 | V36: 34.52
A37: Excess NAC Nightsave Small | B37: ExNACNS | C37: 0 | D37: 4 | E37: ExNACNS04N | G37: Excess NAC Nightsave Rural | H37: ExNACNR | I37: 0 | J37: 4 | K37: ExNACNR04N | M37: Excess NAC Ruraflex | N37: ExNACRu | O37: 0 | P37: 4 | Q37: ExNACRu04N | T37: > 132kV* | U37: 26.05 | V37: 29.96
A38: Excess NAC Nightsave Small | B38: ExNACNS | C38: 1 | D38: 1 | E38: ExNACNS11N | G38: Excess NAC Nightsave Rural | H38: ExNACNR | I38: 1 | J38: 1 | K38: ExNACNR11N | M38: Excess NAC Ruraflex | N38: ExNACRu | O38: 1 | P38: 1 | Q38: ExNACRu11N | S38: > 300km and ≤ 600km | T38: < 500V | U38: 28.57 | V38: 32.86 | Y38: > 300km and ≤ 600km | Z38: < 500V | AA38: 14.3 | AB38: 16.45 | AE38: > 300km and ≤ 600km | AF38: < 500V | AG38: 20 | AH38: 23
A39: Excess NAC Nightsave Small | B39: ExNACNS | C39: 1 | D39: 2 | E39: ExNACNS12N | G39: Excess NAC Nightsave Rural | H39: ExNACNR | I39: 1 | J39: 2 | K39: ExNACNR12N | M39: Excess NAC Ruraflex | N39: ExNACRu | O39: 1 | P39: 2 | Q39: ExNACRu12N | T39: ≥ 500V & < 66kV | U39: 26.19 | V39: 30.12 | Z39: ≥ 500V & ≤ 22kV | AA39: 13.16 | AB39: 15.13 | AF39: ≥ 500V & ≤ 22kV | AG39: 18.39 | AH39: 21.15
A40: Excess NAC Nightsave Small | B40: ExNACNS | C40: 1 | D40: 3 | E40: ExNACNS13N | G40: Excess NAC Nightsave Rural | H40: ExNACNR | I40: 1 | J40: 3 | K40: ExNACNR13N | M40: Excess NAC Ruraflex | N40: ExNACRu | O40: 1 | P40: 3 | Q40: ExNACRu13N | T40: ≥ 66kV & ≤ 132kV | U40: 30.08 | V40: 34.59
A41: Excess NAC Nightsave Small | B41: ExNACNS | C41: 1 | D41: 4 | E41: ExNACNS14N | G41: Excess NAC Nightsave Rural | H41: ExNACNR | I41: 1 | J41: 4 | K41: ExNACNR14N | M41: Excess NAC Ruraflex | N41: ExNACRu | O41: 1 | P41: 4 | Q41: ExNACRu14N | T41: > 132kV* | U41: 26.15 | V41: 30.07
A42: Excess NAC Nightsave Small | B42: ExNACNS | C42: 2 | D42: 1 | E42: ExNACNS21N | G42: Excess NAC Nightsave Rural | H42: ExNACNR | I42: 2 | J42: 1 | K42: ExNACNR21N | M42: Excess NAC Ruraflex | N42: ExNACRu | O42: 2 | P42: 1 | Q42: ExNACRu21N | S42: > 600km and ≤ 900km | T42: < 500V | U42: 28.68 | V42: 32.98 | Y42: > 600km and ≤ 900km | Z42: < 500V | AA42: 14.44 | AB42: 16.61 | AE42: > 600km and ≤ 900km | AF42: < 500V | AG42: 20.11 | AH42: 23.13
A43: Excess NAC Nightsave Small | B43: ExNACNS | C43: 2 | D43: 2 | E43: ExNACNS22N | G43: Excess NAC Nightsave Rural | H43: ExNACNR | I43: 2 | J43: 2 | K43: ExNACNR22N | M43: Excess NAC Ruraflex | N43: ExNACRu | O43: 2 | P43: 2 | Q43: ExNACRu22N | T43: ≥ 500V & < 66kV | U43: 26.27 | V43: 30.21 | Z43: ≥ 500V & ≤ 22kV | AA43: 13.25 | AB43: 15.24 | AF43: ≥ 500V & ≤ 22kV | AG43: 18.47 | AH43: 21.24
A44: Excess NAC Nightsave Small | B44: ExNACNS | C44: 2 | D44: 3 | E44: ExNACNS23N | G44: Excess NAC Nightsave Rural | H44: ExNACNR | I44: 2 | J44: 3 | K44: ExNACNR23N | M44: Excess NAC Ruraflex | N44: ExNACRu | O44: 2 | P44: 3 | Q44: ExNACRu23N | T44: ≥ 66kV & ≤ 132kV | U44: 30.14 | V44: 34.66
A45: Excess NAC Nightsave Small | B45: ExNACNS | C45: 2 | D45: 4 | E45: ExNACNS24N | G45: Excess NAC Nightsave Rural | H45: ExNACNR | I45: 2 | J45: 4 | K45: ExNACNR24N | M45: Excess NAC Ruraflex | N45: ExNACRu | O45: 2 | P45: 4 | Q45: ExNACRu24N | T45: > 132kV* | U45: 26.31 | V45: 30.26
A46: Excess NAC Nightsave Small | B46: ExNACNS | C46: 3 | D46: 1 | E46: ExNACNS31N | G46: Excess NAC Nightsave Rural | H46: ExNACNR | I46: 3 | J46: 1 | K46: ExNACNR31N | M46: Excess NAC Ruraflex | N46: ExNACRu | O46: 3 | P46: 1 | Q46: ExNACRu31N | S46: > 900km | T46: < 500V | U46: 28.74 | V46: 33.05 | Y46: > 900km | Z46: < 500V | AA46: 14.47 | AB46: 16.64 | AE46: > 900km | AF46: < 500V | AG46: 20.19 | AH46: 23.22
A47: Excess NAC Nightsave Small | B47: ExNACNS | C47: 3 | D47: 2 | E47: ExNACNS32N | G47: Excess NAC Nightsave Rural | H47: ExNACNR | I47: 3 | J47: 2 | K47: ExNACNR32N | M47: Excess NAC Ruraflex | N47: ExNACRu | O47: 3 | P47: 2 | Q47: ExNACRu32N | T47: ≥ 500V & < 66kV | U47: 26.37 | V47: 30.33 | Z47: ≥ 500V & ≤ 22kV | AA47: 13.28 | AB47: 15.27 | AF47: ≥ 500V & ≤ 22kV | AG47: 18.48 | AH47: 21.25
A48: Excess NAC Nightsave Small | B48: ExNACNS | C48: 3 | D48: 3 | E48: ExNACNS33N | G48: Excess NAC Nightsave Rural | H48: ExNACNR | I48: 3 | J48: 3 | K48: ExNACNR33N | M48: Excess NAC Ruraflex | N48: ExNACRu | O48: 3 | P48: 3 | Q48: ExNACRu33N | T48: ≥ 66kV & ≤ 132kV | U48: 30.22 | V48: 34.75
A49: Excess NAC Nightsave Small | B49: ExNACNS | C49: 3 | D49: 4 | E49: ExNACNS34N | G49: Excess NAC Nightsave Rural | H49: ExNACNR | I49: 3 | J49: 4 | K49: ExNACNR34N | M49: Excess NAC Ruraflex | N49: ExNACRu | O49: 3 | P49: 4 | Q49: ExNACRu34N | T49: > 132kV* | U49: 26.39 | V49: 30.35
T50: * 132 kV or Transmission connected
S53: Excess MEC- Transmission connected generators | Y53: Excess MEC- Distribution connected Generators
T55: Excess Network capacity charge[R/kW/m] | Z55: Excess Network capacity charge[R/kW/m]
U56: VAT incl | AA56: VAT incl
S57: Cape | T57: 2.25 | U57: 2.59 | Y57: Voltage
S58: Karoo | T58: 2.25 | U58: 2.59 | Y58: < 500V | Z58: 0 | AA58: 0
S59: Kwazulu-Natal | T59: 2.25 | U59: 2.59 | Y59: ≥ 500V & < 66kV | Z59: 15.34 | AA59: 17.64
S60: Vaal | T60: 7.5 | U60: 8.63 | Y60: ≥ 66kV & ≤ 132kV | Z60: 15.34 | AA60: 17.64
S61: Waterberg | T61: 9.61 | U61: 11.05
S62: Mpumalanga | T62: 8.92 | U62: 10.26

Sheet Excess NCC Munic
S1: Back to menu
R2: Excess network capacity charges (NCC) - Local Authority
A4: Municiple | S4: Urban - Excess NCC Megaflex [Local authorities] | X4: Urban - Excess NCC Nightsave Urban Large [Local authorities] | AD4: Urban - Excess NCC Miniflex [Local authorities] | AK4: Urban - Excess NCC WEPS [Local authorities]
U6: Excess NCC[R/kVA/m] | AA6: Excess NCC[R/kVA/m] | AG6: Excess NCC[R/kVA/m] | AM6: Excess NCC[R/kVA/m]
S7: Transmission zone | Y7: Transmission zone | AE7: Transmission zone | AK7: Transmission zone
T8: Voltage | Z8: Voltage | AF8: Voltage | AL8: Voltage
A9: Tariff | B9: Tariff nameBillcode | C9: Tx zone | D9: Voltage | E9: Billcode | G9: Tariff | H9: Tariff nameBillcode | I9: Tx zone | J9: Voltage | K9: Billcode | M9: Tariff | N9: Tariff nameBillcode | O9: Tx zone | P9: Voltage | Q9: Billcode | V9: VAT incl | AB9: VAT incl | AH9: VAT incl | AN9: VAT incl
A10: Excess NAC Megaflex | B10: ExNACMe | C10: 0 | D10: 1 | E10: ExNACMe01Y | G10: Excess NAC Nightsave Large | H10: ExNACNL | I10: 0 | J10: 1 | K10: ExNACNL01Y | M10: Excess NAC Miniflex | N10: ExNACMi | O10: 0 | P10: 1 | Q10: ExNACMi01Y | S10: ≤ 300km | T10: < 500V | U10: 28.96 | V10: 33.3 | Y10: ≤ 300km | Z10: < 500V | AA10: 28.96 | AB10: 33.3 | AE10: ≤ 300km | AF10: < 500V | AG10: 28.94 | AH10: 33.28 | AK10: ≤ 300km | AL10: < 500V | AM10: 28.96 | AN10: 33.3
A11: Excess NAC Megaflex | B11: ExNACMe | C11: 0 | D11: 2 | E11: ExNACMe02Y | G11: Excess NAC Nightsave Large | H11: ExNACNL | I11: 0 | J11: 2 | K11: ExNACNL02Y | M11: Excess NAC Miniflex | N11: ExNACMi | O11: 0 | P11: 2 | Q11: ExNACMi02Y | T11: ≥ 500V & < 66kV | U11: 26.5 | V11: 30.48 | Z11: ≥ 500V & < 66kV | AA11: 26.5 | AB11: 30.48 | AF11: ≥ 500V & < 66kV | AG11: 26.51 | AH11: 30.49 | AL11: ≥ 500V & < 66kV | AM11: 26.5 | AN11: 30.48
A12: Excess NAC Megaflex | B12: ExNACMe | C12: 0 | D12: 3 | E12: ExNACMe03Y | G12: Excess NAC Nightsave Large | H12: ExNACNL | I12: 0 | J12: 3 | K12: ExNACNL03Y | M12: Excess NAC Miniflex | N12: ExNACMi | O12: 0 | P12: 3 | Q12: ExNACMi03Y | T12: ≥ 66kV & ≤ 132kV | U12: 30.39 | V12: 34.95 | Z12: ≥ 66kV & ≤ 132kV | AA12: 30.39 | AB12: 34.95 | AF12: ≥ 66kV & ≤ 132kV | AG12: 30.37 | AH12: 34.93 | AL12: ≥ 66kV & ≤ 132kV | AM12: 30.39 | AN12: 34.95
A13: Excess NAC Megaflex | B13: ExNACMe | C13: 0 | D13: 4 | E13: ExNACMe04Y | G13: Excess NAC Nightsave Large | H13: ExNACNL | I13: 0 | J13: 4 | K13: ExNACNL04Y | M13: Excess NAC Miniflex | N13: ExNACMi | O13: 0 | P13: 4 | Q13: ExNACMi04Y | T13: > 132kV* | U13: 26.35 | V13: 30.3 | Z13: > 132kV* | AA13: 26.35 | AB13: 30.3 | AF13: > 132kV* | AG13: 26.35 | AH13: 30.3 | AL13: > 132kV* | AM13: 26.35 | AN13: 30.3
A14: Excess NAC Megaflex | B14: ExNACMe | C14: 1 | D14: 1 | E14: ExNACMe11Y | G14: Excess NAC Nightsave Large | H14: ExNACNL | I14: 1 | J14: 1 | K14: ExNACNL11Y | M14: Excess NAC Miniflex | N14: ExNACMi | O14: 1 | P14: 1 | Q14: ExNACMi11Y | S14: > 300km and ≤ 600km | T14: < 500V | U14: 29 | V14: 33.35 | Y14: > 300km and ≤ 600km | Z14: < 500V | AA14: 29 | AB14: 33.35 | AE14: > 300km and ≤ 600km | AF14: < 500V | AG14: 29 | AH14: 33.35 | AK14: > 300km and ≤ 600km | AL14: < 500V | AM14: 29 | AN14: 33.35
A15: Excess NAC Megaflex | B15: ExNACMe | C15: 1 | D15: 2 | E15: ExNACMe12Y | G15: Excess NAC Nightsave Large | H15: ExNACNL | I15: 1 | J15: 2 | K15: ExNACNL12Y | M15: Excess NAC Miniflex | N15: ExNACMi | O15: 1 | P15: 2 | Q15: ExNACMi12Y | T15: ≥ 500V & < 66kV | U15: 26.6 | V15: 30.59 | Z15: ≥ 500V & < 66kV | AA15: 26.6 | AB15: 30.59 | AF15: ≥ 500V & < 66kV | AG15: 26.61 | AH15: 30.6 | AL15: ≥ 500V & < 66kV | AM15: 26.6 | AN15: 30.59
A16: Excess NAC Megaflex | B16: ExNACMe | C16: 1 | D16: 3 | E16: ExNACMe13Y | G16: Excess NAC Nightsave Large | H16: ExNACNL | I16: 1 | J16: 3 | K16: ExNACNL13Y | M16: Excess NAC Miniflex | N16: ExNACMi | O16: 1 | P16: 3 | Q16: ExNACMi13Y | T16: ≥ 66kV & ≤ 132kV | U16: 30.45 | V16: 35.02 | Z16: ≥ 66kV & ≤ 132kV | AA16: 30.45 | AB16: 35.02 | AF16: ≥ 66kV & ≤ 132kV | AG16: 30.45 | AH16: 35.02 | AL16: ≥ 66kV & ≤ 132kV | AM16: 30.45 | AN16: 35.02
A17: Excess NAC Megaflex | B17: ExNACMe | C17: 1 | D17: 4 | E17: ExNACMe14Y | G17: Excess NAC Nightsave Large | H17: ExNACNL | I17: 1 | J17: 4 | K17: ExNACNL14Y | M17: Excess NAC Miniflex | N17: ExNACMi | O17: 1 | P17: 4 | Q17: ExNACMi14Y | T17: > 132kV* | U17: 26.45 | V17: 30.42 | Z17: > 132kV* | AA17: 26.45 | AB17: 30.42 | AF17: > 132kV* | AG17: 26.45 | AH17: 30.42 | AL17: > 132kV* | AM17: 26.45 | AN17: 30.42
A18: Excess NAC Megaflex | B18: ExNACMe | C18: 2 | D18: 1 | E18: ExNACMe21Y | G18: Excess NAC Nightsave Large | H18: ExNACNL | I18: 2 | J18: 1 | K18: ExNACNL21Y | M18: Excess NAC Miniflex | N18: ExNACMi | O18: 2 | P18: 1 | Q18: ExNACMi21Y | S18: > 600km and ≤ 900km | T18: < 500V | U18: 29.13 | V18: 33.5 | Y18: > 600km and ≤ 900km | Z18: < 500V | AA18: 29.13 | AB18: 33.5 | AE18: > 600km and ≤ 900km | AF18: < 500V | AG18: 29.15 | AH18: 33.52 | AK18: > 600km and ≤ 900km | AL18: < 500V | AM18: 29.13 | AN18: 33.5
A19: Excess NAC Megaflex | B19: ExNACMe | C19: 2 | D19: 2 | E19: ExNACMe22Y | G19: Excess NAC Nightsave Large | H19: ExNACNL | I19: 2 | J19: 2 | K19: ExNACNL22Y | M19: Excess NAC Miniflex | N19: ExNACMi | O19: 2 | P19: 2 | Q19: ExNACMi22Y | T19: ≥ 500V & < 66kV | U19: 26.66 | V19: 30.66 | Z19: ≥ 500V & < 66kV | AA19: 26.66 | AB19: 30.66 | AF19: ≥ 500V & < 66kV | AG19: 26.68 | AH19: 30.68 | AL19: ≥ 500V & < 66kV | AM19: 26.66 | AN19: 30.66
A20: Excess NAC Megaflex | B20: ExNACMe | C20: 2 | D20: 3 | E20: ExNACMe23Y | G20: Excess NAC Nightsave Large | H20: ExNACNL | I20: 2 | J20: 3 | K20: ExNACNL23Y | M20: Excess NAC Miniflex | N20: ExNACMi | O20: 2 | P20: 3 | Q20: ExNACMi23Y | T20: ≥ 66kV & ≤ 132kV | U20: 30.52 | V20: 35.1 | Z20: ≥ 66kV & ≤ 132kV | AA20: 30.52 | AB20: 35.1 | AF20: ≥ 66kV & ≤ 132kV | AG20: 30.52 | AH20: 35.1 | AL20: ≥ 66kV & ≤ 132kV | AM20: 30.52 | AN20: 35.1
A21: Excess NAC Megaflex | B21: ExNACMe | C21: 2 | D21: 4 | E21: ExNACMe24Y | G21: Excess NAC Nightsave Large | H21: ExNACNL | I21: 2 | J21: 4 | K21: ExNACNL24Y | M21: Excess NAC Miniflex | N21: ExNACMi | O21: 2 | P21: 4 | Q21: ExNACMi24Y | T21: > 132kV* | U21: 26.6 | V21: 30.59 | Z21: > 132kV* | AA21: 26.6 | AB21: 30.59 | AF21: > 132kV* | AG21: 26.6 | AH21: 30.59 | AL21: > 132kV* | AM21: 26.6 | AN21: 30.59
A22: Excess NAC Megaflex | B22: ExNACMe | C22: 3 | D22: 1 | E22: ExNACMe31Y | G22: Excess NAC Nightsave Large | H22: ExNACNL | I22: 3 | J22: 1 | K22: ExNACNL31Y | M22: Excess NAC Miniflex | N22: ExNACMi | O22: 3 | P22: 1 | Q22: ExNACMi31Y | S22: > 900km | T22: < 500V | U22: 29.18 | V22: 33.56 | Y22: > 900km | Z22: < 500V | AA22: 29.18 | AB22: 33.56 | AE22: > 900km | AF22: < 500V | AG22: 29.17 | AH22: 33.55 | AK22: > 900km | AL22: < 500V | AM22: 29.18 | AN22: 33.56
A23: Excess NAC Megaflex | B23: ExNACMe | C23: 3 | D23: 2 | E23: ExNACMe32Y | G23: Excess NAC Nightsave Large | H23: ExNACNL | I23: 3 | J23: 2 | K23: ExNACNL32Y | M23: Excess NAC Miniflex | N23: ExNACMi | O23: 3 | P23: 2 | Q23: ExNACMi32Y | T23: ≥ 500V & < 66kV | U23: 26.76 | V23: 30.77 | Z23: ≥ 500V & < 66kV | AA23: 26.76 | AB23: 30.77 | AF23: ≥ 500V & < 66kV | AG23: 26.79 | AH23: 30.81 | AL23: ≥ 500V & < 66kV | AM23: 26.76 | AN23: 30.77
A24: Excess NAC Megaflex | B24: ExNACMe | C24: 3 | D24: 3 | E24: ExNACMe33Y | G24: Excess NAC Nightsave Large | H24: ExNACNL | I24: 3 | J24: 3 | K24: ExNACNL33Y | M24: Excess NAC Miniflex | N24: ExNACMi | O24: 3 | P24: 3 | Q24: ExNACMi33Y | T24: ≥ 66kV & ≤ 132kV | U24: 30.59 | V24: 35.18 | Z24: ≥ 66kV & ≤ 132kV | AA24: 30.59 | AB24: 35.18 | AF24: ≥ 66kV & ≤ 132kV | AG24: 30.57 | AH24: 35.16 | AL24: ≥ 66kV & ≤ 132kV | AM24: 30.59 | AN24: 35.18
A25: Excess NAC Megaflex | B25: ExNACMe | C25: 3 | D25: 4 | E25: ExNACMe34Y | G25: Excess NAC Nightsave Large | H25: ExNACNL | I25: 3 | J25: 4 | K25: ExNACNL34Y | M25: Excess NAC Miniflex | N25: ExNACMi | O25: 3 | P25: 4 | Q25: ExNACMi34Y | T25: > 132kV* | U25: 26.68 | V25: 30.68 | Z25: > 132kV* | AA25: 26.68 | AB25: 30.68 | AF25: > 132kV* | AG25: 26.68 | AH25: 30.68 | AL25: > 132kV* | AM25: 26.68 | AN25: 30.68
T26: * 132 kV or Transmission connected | Z26: * 132 kV or Transmission connected | AF26: * 132 kV or Transmission connected | AL26: * 132 kV or Transmission connected
S28: Urban - Excess NCC Nightsave Urban Small [Local authorities] | X28: Rural - Excess NCC Nightsave Rural [Local authorities] | AD28: Rural - Excess NCC Ruraflex [Local authorities]
U30: Excess NCC[R/kVA/m] | AA30: Excess NCC[R/kVA/m] | AG30: Excess NCC[R/kVA/m]
S31: Transmission zone | Y31: Transmission zone | AE31: Transmission zone
T32: Voltage | Z32: Voltage | AF32: Voltage
A33: Tariff | B33: Tariff nameBillcode | C33: Tx zone | D33: Voltage | E33: Billcode | G33: Tariff | H33: Tariff nameBillcode | I33: Tx zone | J33: Voltage | K33: Billcode | M33: Tariff | N33: Tariff nameBillcode | O33: Tx zone | P33: Voltage | Q33: Billcode | V33: VAT incl | AB33: VAT incl | AH33: VAT incl
A34: Excess NAC Nightsave Small | B34: ExNACNS | C34: 0 | D34: 1 | E34: ExNACNS01Y | G34: Excess NAC Nightsave Rural | H34: ExNACNR | I34: 0 | J34: 1 | K34: ExNACNR01Y | M34: Excess NAC Ruraflex | N34: ExNACRu | O34: 0 | P34: 1 | Q34: ExNACRu01Y | S34: ≤ 300km | T34: < 500V | U34: 28.96 | V34: 33.3 | Y34: ≤ 300km | Z34: < 500V | AA34: 14.65 | AB34: 16.85 | AE34: ≤ 300km | AF34: < 500V | AG34: 20.44 | AH34: 23.51
A35: Excess NAC Nightsave Small | B35: ExNACNS | C35: 0 | D35: 2 | E35: ExNACNS02Y | G35: Excess NAC Nightsave Rural | H35: ExNACNR | I35: 0 | J35: 2 | K35: ExNACNR02Y | M35: Excess NAC Ruraflex | N35: ExNACRu | O35: 0 | P35: 2 | Q35: ExNACRu02Y | T35: ≥ 500V & < 66kV | U35: 26.5 | V35: 30.48 | Z35: ≥ 500V & ≤ 22kV | AA35: 13.45 | AB35: 15.47 | AF35: ≥ 500V & ≤ 22kV | AG35: 18.76 | AH35: 21.57
A36: Excess NAC Nightsave Small | B36: ExNACNS | C36: 0 | D36: 3 | E36: ExNACNS03Y | G36: Excess NAC Nightsave Rural | H36: ExNACNR | I36: 0 | J36: 3 | K36: ExNACNR03Y | M36: Excess NAC Ruraflex | N36: ExNACRu | O36: 0 | P36: 3 | Q36: ExNACRu03Y | T36: ≥ 66kV & ≤ 132kV | U36: 30.39 | V36: 34.95
A37: Excess NAC Nightsave Small | B37: ExNACNS | C37: 0 | D37: 4 | E37: ExNACNS04Y | G37: Excess NAC Nightsave Rural | H37: ExNACNR | I37: 0 | J37: 4 | K37: ExNACNR04Y | M37: Excess NAC Ruraflex | N37: ExNACRu | O37: 0 | P37: 4 | Q37: ExNACRu04Y | T37: > 132kV* | U37: 26.35 | V37: 30.3
A38: Excess NAC Nightsave Small | B38: ExNACNS | C38: 1 | D38: 1 | E38: ExNACNS11Y | G38: Excess NAC Nightsave Rural | H38: ExNACNR | I38: 1 | J38: 1 | K38: ExNACNR11Y | M38: Excess NAC Ruraflex | N38: ExNACRu | O38: 1 | P38: 1 | Q38: ExNACRu11Y | S38: > 300km and ≤ 600km | T38: < 500V | U38: 29 | V38: 33.35 | Y38: > 300km and ≤ 600km | Z38: < 500V | AA38: 14.68 | AB38: 16.88 | AE38: > 300km and ≤ 600km | AF38: < 500V | AG38: 20.52 | AH38: 23.6
A39: Excess NAC Nightsave Small | B39: ExNACNS | C39: 1 | D39: 2 | E39: ExNACNS12Y | G39: Excess NAC Nightsave Rural | H39: ExNACNR | I39: 1 | J39: 2 | K39: ExNACNR12Y | M39: Excess NAC Ruraflex | N39: ExNACRu | O39: 1 | P39: 2 | Q39: ExNACRu12Y | T39: ≥ 500V & < 66kV | U39: 26.6 | V39: 30.59 | Z39: ≥ 500V & ≤ 22kV | AA39: 13.51 | AB39: 15.54 | AF39: ≥ 500V & ≤ 22kV | AG39: 18.86 | AH39: 21.69
A40: Excess NAC Nightsave Small | B40: ExNACNS | C40: 1 | D40: 3 | E40: ExNACNS13Y | G40: Excess NAC Nightsave Rural | H40: ExNACNR | I40: 1 | J40: 3 | K40: ExNACNR13Y | M40: Excess NAC Ruraflex | N40: ExNACRu | O40: 1 | P40: 3 | Q40: ExNACRu13Y | T40: ≥ 66kV & ≤ 132kV | U40: 30.45 | V40: 35.02
A41: Excess NAC Nightsave Small | B41: ExNACNS | C41: 1 | D41: 4 | E41: ExNACNS14Y | G41: Excess NAC Nightsave Rural | H41: ExNACNR | I41: 1 | J41: 4 | K41: ExNACNR14Y | M41: Excess NAC Ruraflex | N41: ExNACRu | O41: 1 | P41: 4 | Q41: ExNACRu14Y | T41: > 132kV* | U41: 26.45 | V41: 30.42
A42: Excess NAC Nightsave Small | B42: ExNACNS | C42: 2 | D42: 1 | E42: ExNACNS21Y | G42: Excess NAC Nightsave Rural | H42: ExNACNR | I42: 2 | J42: 1 | K42: ExNACNR21Y | M42: Excess NAC Ruraflex | N42: ExNACRu | O42: 2 | P42: 1 | Q42: ExNACRu21Y | S42: > 600km and ≤ 900km | T42: < 500V | U42: 29.13 | V42: 33.5 | Y42: > 600km and ≤ 900km | Z42: < 500V | AA42: 14.82 | AB42: 17.04 | AE42: > 600km and ≤ 900km | AF42: < 500V | AG42: 20.64 | AH42: 23.74
A43: Excess NAC Nightsave Small | B43: ExNACNS | C43: 2 | D43: 2 | E43: ExNACNS22Y | G43: Excess NAC Nightsave Rural | H43: ExNACNR | I43: 2 | J43: 2 | K43: ExNACNR22Y | M43: Excess NAC Ruraflex | N43: ExNACRu | O43: 2 | P43: 2 | Q43: ExNACRu22Y | T43: ≥ 500V & < 66kV | U43: 26.66 | V43: 30.66 | Z43: ≥ 500V & ≤ 22kV | AA43: 13.59 | AB43: 15.63 | AF43: ≥ 500V & ≤ 22kV | AG43: 18.95 | AH43: 21.79
A44: Excess NAC Nightsave Small | B44: ExNACNS | C44: 2 | D44: 3 | E44: ExNACNS23Y | G44: Excess NAC Nightsave Rural | H44: ExNACNR | I44: 2 | J44: 3 | K44: ExNACNR23Y | M44: Excess NAC Ruraflex | N44: ExNACRu | O44: 2 | P44: 3 | Q44: ExNACRu23Y | T44: ≥ 66kV & ≤ 132kV | U44: 30.52 | V44: 35.1
A45: Excess NAC Nightsave Small | B45: ExNACNS | C45: 2 | D45: 4 | E45: ExNACNS24Y | G45: Excess NAC Nightsave Rural | H45: ExNACNR | I45: 2 | J45: 4 | K45: ExNACNR24Y | M45: Excess NAC Ruraflex | N45: ExNACRu | O45: 2 | P45: 4 | Q45: ExNACRu24Y | T45: > 132kV* | U45: 26.6 | V45: 30.59
A46: Excess NAC Nightsave Small | B46: ExNACNS | C46: 3 | D46: 1 | E46: ExNACNS31Y | G46: Excess NAC Nightsave Rural | H46: ExNACNR | I46: 3 | J46: 1 | K46: ExNACNR31Y | M46: Excess NAC Ruraflex | N46: ExNACRu | O46: 3 | P46: 1 | Q46: ExNACRu31Y | S46: > 900km | T46: < 500V | U46: 29.18 | V46: 33.56 | Y46: > 900km | Z46: < 500V | AA46: 14.85 | AB46: 17.08 | AE46: > 900km | AF46: < 500V | AG46: 20.7 | AH46: 23.81
A47: Excess NAC Nightsave Small | B47: ExNACNS | C47: 3 | D47: 2 | E47: ExNACNS32Y | G47: Excess NAC Nightsave Rural | H47: ExNACNR | I47: 3 | J47: 2 | K47: ExNACNR32Y | M47: Excess NAC Ruraflex | N47: ExNACRu | O47: 3 | P47: 2 | Q47: ExNACRu32Y | T47: ≥ 500V & < 66kV | U47: 26.76 | V47: 30.77 | Z47: ≥ 500V & ≤ 22kV | AA47: 13.6 | AB47: 15.64 | AF47: ≥ 500V & ≤ 22kV | AG47: 18.96 | AH47: 21.8
A48: Excess NAC Nightsave Small | B48: ExNACNS | C48: 3 | D48: 3 | E48: ExNACNS33Y | G48: Excess NAC Nightsave Rural | H48: ExNACNR | I48: 3 | J48: 3 | K48: ExNACNR33Y | M48: Excess NAC Ruraflex | N48: ExNACRu | O48: 3 | P48: 3 | Q48: ExNACRu33Y | T48: ≥ 66kV & ≤ 132kV | U48: 30.59 | V48: 35.18
A49: Excess NAC Nightsave Small | B49: ExNACNS | C49: 3 | D49: 4 | E49: ExNACNS34Y | G49: Excess NAC Nightsave Rural | H49: ExNACNR | I49: 3 | J49: 4 | K49: ExNACNR34Y | M49: Excess NAC Ruraflex | N49: ExNACRu | O49: 3 | P49: 4 | Q49: ExNACRu34Y | T49: > 132kV* | U49: 26.68 | V49: 30.68
T50: * 132 kV or Transmission connected

Sheet TUoS NLA
H1: Back to menu
A2: Non-municipal
H3: TUoS (Transmission use of system) charges (> 132 KV or direct Transmission connected) network charge for loads
H6: Electrification and rural network subsidy charge [c/kWh]
J7: Electrification and rural network subsidy charge [c/kWh]
A9: Tariff | B9: Tariff nameBillcode | C9: Tx zone | D9: Voltage | E9: Billcode | H9: Tariff | J9: c/kWh | K9: VAT incl
H10: Megaflex, Miniflex, Nightsave Urban Large, Nightsave Urban Small, Businessrate
A11: Megaflex | B11: Me | C11: 0 | D11: 1 | E11: Me01N | J11: 8.48 | K11: 9.75
H15: Service and admin charges
H16: Utilised capacity/maximum export capacity | J16: Service charge [R/account/day] | L16: Administration charge [R/POD/day]
H19: [kVA/MVA = loads]
A20: Tariff | B20: Tariff nameBillcode | C20: Tx zone | D20: Voltage | E20: Billcode | H20: [kW/MW = generators] | K20: VAT incl | M20: VAT incl
A21: Miniflex | B21: Mi | C21: 0 | D21: 1 | E21: Mi01N | H21: ≤ 100 kVA/kW | J21: 15.49 | K21: 17.81 | L21: 3.4 | M21: 3.91
A22: Miniflex | B22: Mi | C22: 0 | D22: 1 | E22: Mi01N | H22: > 100 kVA/kW & ≤ 500 kVA/kW | J22: 70.74 | K22: 81.35 | L22: 19.84 | M22: 22.82
A23: Miniflex | B23: Mi | C23: 0 | D23: 1 | E23: Mi01N | H23: > 500 kVA/kW & ≤ 1 MVA/MW | J23: 217.67 | K23: 250.32 | L23: 39.4 | M23: 45.31
A24: Miniflex | B24: Mi | C24: 0 | D24: 1 | E24: Mi01N | H24: > 1 MVA/MW | J24: 217.67 | K24: 250.32 | L24: 98.1 | M24: 112.82
A25: Miniflex | B25: Mi | C25: 0 | D25: 1 | E25: Mi01N | H25: Key customers or Transmission connected generators | J25: 4265.54 | K25: 4905.37 | L25: 136.23 | M25: 156.66
B28: Non-municipal | H28: Transmission loss factors for loads
A29: Tariff | B29: Tariff nameBillcode | C29: Tx zone | D29: Voltage | E29: Billcode | H29: Distance from Johannesburg | I29: Zone | J29: Loss factor
A30: Transmission loss factor | B30: TxLoss | C30: 0 | D30: 4 | E30: TxLoss04N | H30: ≤ 300km | I30: 0 | J30: 1.0107
A31: Transmission loss factor | B31: TxLoss | C31: 1 | D31: 4 | E31: TxLoss14N | H31: > 300km & ≤ 600km | I31: 1 | J31: 1.0208
A32: Transmission loss factor | B32: TxLoss | C32: 2 | D32: 4 | E32: TxLoss24N | H32: > 600km & ≤ 900km | I32: 2 | J32: 1.031
A33: Transmission loss factor | B33: TxLoss | C33: 3 | D33: 4 | E33: TxLoss34N | H33: > 900km | I33: 3 | J33: 1.0413
H36: Loss factors for Transmission connected generators | J36: Loss factor
A37: Tariff | B37: Tariff nameBillcode | C37: Tx zone | D37: Voltage | E37: Billcode
A38: TUoS network charges for Transmission connected generators | B38: GenTUOS | C38: Cape | D38: 4 | E38: GenTUOSCape4N | I38: Cape | J38: 0.971
A39: TUoS network charges for Transmission connected generators | B39: GenTUOS | C39: Karoo | D39: 4 | E39: GenTUOSKaroo4N | I39: Karoo | J39: 0.995
A40: TUoS network charges for Transmission connected generators | B40: GenTUOS | C40: Kwazulu-Natal | D40: 4 | E40: GenTUOSKwazulu-Natal4N | I40: Kwazulu-Natal | J40: 1.004
A41: TUoS network charges for Transmission connected generators | B41: GenTUOS | C41: Vaal | D41: 4 | E41: GenTUOSVaal4N | I41: Vaal | J41: 1.02
A42: TUoS network charges for Transmission connected generators | B42: GenTUOS | C42: Waterburg | D42: 4 | E42: GenTUOSWaterburg4N | I42: Waterberg | J42: 1.023
A43: TUoS network charges for Transmission connected generators | B43: GenTUOS | C43: Mpumalanga | D43: 4 | E43: GenTUOSMpumalanga4N | I43: Mpumalanga | J43: 1.021
H46: TUoS network charge for Transmission connected loads | J46: Network capacity charge [R/kVA]
A47: Tariff | B47: Tariff nameBillcode | C47: Tx zone | D47: Voltage | E47: Billcode | J47: R/kVA/m | K47: VAT incl
A48: WEPS | B48: We | C48: 0 | D48: 1 | E48: We01N | I48: ≤ 300km | J48: 10.73 | K48: 12.34
A49: WEPS | B49: We | C49: 0 | D49: 2 | E49: We02N | I49: > 300km & ≤ 600km | J49: 10.83 | K49: 12.45
A50: WEPS | B50: We | C50: 0 | D50: 3 | E50: We03N | I50: > 600km & ≤ 900km | J50: 10.99 | K50: 12.64
A51: WEPS | B51: We | C51: 0 | D51: 4 | E51: We04N | I51: > 900km | J51: 11.07 | K51: 12.73
H54: TUoS network charges for Transmission connected generators | J54: Network charge [R/kW]
A55: Tariff | B55: Tariff nameBillcode | C55: Tx zone | D55: Voltage | E55: Billcode | J55: R/MW/m | K55: VAT incl
A56: TUoS network charges for Transmission connected generators | B56: GenTUOS | C56: Cape | D56: 4 | E56: GenTUOSCape4N | I56: Cape | J56: 0 | K56: 0
A57: TUoS network charges for Transmission connected generators | B57: GenTUOS | C57: Karoo | D57: 4 | E57: GenTUOSKaroo4N | I57: Karoo | J57: 0 | K57: 0
A58: TUoS network charges for Transmission connected generators | B58: GenTUOS | C58: Kwazulu-Natal | D58: 4 | E58: GenTUOSKwazulu-Natal4N | I58: Kwazulu-Natal | J58: 2.25 | K58: 2.59
A59: TUoS network charges for Transmission connected generators | B59: GenTUOS | C59: Vaal | D59: 4 | E59: GenTUOSVaal4N | I59: Vaal | J59: 7.5 | K59: 8.63
A60: TUoS network charges for Transmission connected generators | B60: GenTUOS | C60: Waterburg | D60: 4 | E60: GenTUOSWaterburg4N | I60: Waterberg | J60: 9.61 | K60: 11.05
A61: TUoS network charges for Transmission connected generators | B61: GenTUOS | C61: Mpumalanga | D61: 4 | E61: GenTUOSMpumalanga4N | I61: Mpumalanga | J61: 8.92 | K61: 10.26
H64: TUoS ancillary service charge for Transmission connected loads and generators | J64: Ancillary service charge [c/kWh]
A66: Tariff | B66: Tariff nameBillcode | C66: Tx zone | D66: Voltage | E66: Billcode | J66: c/kWh | K66: VAT incl
A67: TUoS network charges for Transmission connected generators | B67: GenTUOS | C67: Cape | D67: 4 | E67: GenTUOSCape4N | H67: Generators | J67: 0.39 | K67: 0.45
A68: TUoS network charges for Transmission connected generators | B68: GenTUOS | C68: Cape | D68: 4 | E68: GenTUOSCape4N | H68: Loads | J68: 0.39 | K68: 0.45

Sheet DUoS NLA
A2: Non-Municipal | H2: Back to menu
H4: DUoS (Distribution use of system) charges
H7: DUoS ancillary service charge Urbanp | J7: Charge [c/kWh]
A8: Tariff | B8: Tariff nameBillcode | C8: Tx zone | D8: Voltage | E8: Billcode | K8: VAT incl
A9: Gen-DUoS urban | B9: NEGenDUoSU | C9: 0 | D9: 1 | E9: NEGenDUoSU01N | H9: < 500V | J9: 0.44 | K9: 0.51
A10: Gen-DUoS urban | B10: NEGenDUoSU | C10: 0 | D10: 2 | E10: NEGenDUoSU02N | H10: ≥ 500V & < 66kV | J10: 0.43 | K10: 0.49
A11: Gen-DUoS urban | B11: NEGenDUoSU | C11: 0 | D11: 3 | E11: NEGenDUoSU03N | H11: ≥ 66kV & ≤ 132kV | J11: 0.41 | K11: 0.47
H15: DUoS ancillary service charge Ruralp | J15: Charge [c/kWh]
A16: Tariff | B16: Tariff nameBillcode | C16: Tx zone | D16: Voltage | E16: Billcode | K16: VAT incl
A17: Gen-DUoS rural | B17: NEGenDUoSR | C17: 0 | D17: 1 | E17: NEGenDUoSR01N | H17: < 500V | J17: 0.44 | K17: 0.51
A18: Gen-DUoS rural | B18: NEGenDUoSR | C18: 0 | D18: 2 | E18: NEGenDUoSR02N | H18: ≥ 500V & ≤ 22kV | J18: 0.44 | K18: 0.51
I21: Transmission zone | J21: Voltage | K21: [R/kVA/m]
A22: Tariff | B22: Tariff nameBillcode | C22: Tx zone | D22: Voltage | E22: Billcode | L22: VAT incl
H23: ETUoS urban | I23: ≤ 300km | J23: < 500V | K23: 9.54 | L23: 10.97
J24: ≥ 500V & < 66kV | K24: 8.72 | L24: 10.03
J25: ≥ 66kV & ≤ 132kV | K25: 8.49 | L25: 9.76
I26: > 300km & ≤ 600km | J26: < 500V | K26: 9.61 | L26: 11.05
J27: ≥ 500V & < 66kV | K27: 8.8 | L27: 10.12
J28: ≥ 66kV & ≤ 132kV | K28: 8.55 | L28: 9.83
I29: > 600km & ≤ 900km | J29: < 500V | K29: 9.72 | L29: 11.18
J30: ≥ 500V & < 66kV | K30: 8.88 | L30: 10.21
J31: ≥ 66kV & ≤ 132kV | K31: 8.61 | L31: 9.9
I32: > 900km | J32: < 500V | K32: 9.78 | L32: 11.25
J33: ≥ 500V & < 66kV | K33: 8.98 | L33: 10.33
J34: ≥ 66kV & ≤ 132kV | K34: 8.69 | L34: 9.99
I37: Transmission zone | J37: Voltage | K37: [R/kVA/m]
A38: Tariff | B38: Tariff nameBillcode | C38: Tx zone | D38: Voltage | E38: Billcode | L38: VAT incl
H39: ETUoS rural | I39: ≤ 300km | J39: < 500V | K39: 19.94 | L39: 22.93
J40: ≥ 500V & < 66kV | K40: 18.28 | L40: 21.02
I41: > 300km & ≤ 600km | J41: < 500V | K41: 20 | L41: 23
J42: ≥ 500V & < 66kV | K42: 18.39 | L42: 21.15
I43: > 600km & ≤ 900km | J43: < 500V | K43: 20.11 | L43: 23.13
J44: ≥ 500V & < 66kV | K44: 18.47 | L44: 21.24
I45: > 900km | J45: < 500V | K45: 20.19 | L45: 23.22
J46: ≥ 500V & < 66kV | K46: 18.48 | L46: 21.25
H49: DUoS network charges for urbanp loads
J50: Network capacity charge [R/kVA/m] | L50: Network demand charge [R/kVA/m] | N50: Urban low voltage subsidy charge [R/kVA/m]
A52: Tariff | B52: Tariff nameBillcode | C52: Tx zone | D52: Voltage | E52: Billcode | H52: Voltage | K52: VAT incl | M52: VAT incl | O52: VAT incl
A53: Gen-DUoS urban | B53: NEGenDUoSU | C53: 0 | D53: 1 | E53: NEGenDUoSU01N | H53: < 500V | J53: 18.96 | K53: 21.8 | L53: 35.95 | M53: 41.34 | N53: 0 | O53: 0
A54: Gen-DUoS urban | B54: NEGenDUoSU | C54: 0 | D54: 2 | E54: NEGenDUoSU02N | H54: ≥ 500V & < 66kV | J54: 17.39 | K54: 20 | L54: 32.98 | M54: 37.93 | N54: 0 | O54: 0
A55: Gen-DUoS urban | B55: NEGenDUoSU | C55: 0 | D55: 3 | E55: NEGenDUoSU03N | H55: ≥ 66kV & ≤ 132kV | J55: 6.21 | K55: 7.14 | L55: 11.5 | M55: 13.23 | N55: 15.32 | O55: 17.62
A56: Gen-DUoS urban | B56: NEGenDUoSU | C56: 0 | D56: 4 | E56: NEGenDUoSU04N | H56: > 132kV | J56: 0 | K56: 0 | L56: 0 | M56: 0 | N56: 15.32 | O56: 17.62
H59: DUoS network charges ruralp loads
J60: Network capacity charge [R/kVA/m] | L60: Network demand charge [c/kWh]
A62: Tariff | B62: Tariff nameBillcode | C62: Tx zone | D62: Voltage | E62: Billcode | H62: Voltage | K62: VAT incl | M62: VAT incl
A63: Gen-DUoS rural | B63: NEGenDUoSR | C63: 0 | D63: 1 | E63: NEGenDUoSR01N | H63: < 500V | J63: 19.94 | K63: 22.93 | L63: 28.39 | M63: 32.65
A64: Gen-DUoS rural | B64: NEGenDUoSR | C64: 0 | D64: 2 | E64: NEGenDUoSR02N | H64: ≥ 500V & ≤ 22kV | J64: 18.28 | K64: 21.02 | L64: 24.89 | M64: 28.62
H67: DUoS network charges for generators
J68: Network capacity charge [R/kW/m]
A70: Tariff | B70: Tariff nameBillcode | C70: Tx zone | D70: Voltage | E70: Billcode | H70: Voltage | K70: VAT incl
A71: Gen-DUoS urban | B71: NEGenDUoSU | C71: 0 | D71: 1 | E71: NEGenDUoSU01N | H71: < 500V
A72: Gen-DUoS urban | B72: NEGenDUoSU | C72: 0 | D72: 2 | E72: NEGenDUoSU02N | H72: ≥ 500V & < 66kV
A73: Gen-DUoS urban | B73: NEGenDUoSU | C73: 0 | D73: 3 | E73: NEGenDUoSU03N | H73: ≥ 66kV & ≤ 132kV | J73: 15.34 | K73: 17.64
H75: DUoS electrification and rural network subsidy charge | R75: DUoS electrification and rural network subsidy charge
J77: Rural network subsidy charge [c/kWh] | L77: Electrification networks subsidy charge [c/kWh] | N77: Total electrification and rural network subsidy charge [c/kWh] | R77: Tariff | T77: Electrification and rural network subsidy charge [c/kWh]
A79: Tariff | B79: Tariff nameBillcode | C79: Tx zone | D79: Voltage | E79: Billcode | H79: Tariff | K79: VAT incl | M79: VAT incl | O79: VAT incl | U79: VAT incl
H80: Megaflex, Miniflex, Nightsave Urban Large, Nightsave Urban Small, Businessrate | R80: Megaflex, Miniflex, Nightsave Urban Large, Nightsave Urban Small, Businessrate
A81: Megaflex | B81: Me | C81: 0 | D81: 1 | E81: Me01N | J81: 5.63 | K81: 6.47 | L81: 2.85 | M81: 3.28 | N81: 8.48 | O81: 9.75 | T81: 8.48 | U81: 9.75
A82: 0.6637010676
A83: 0.3362989324
H86: DUoS service and administration charges (urbanp )
H87: Customer categories utilised capacity / maximum export capacity | J87: Service charge [R/account/day] | L87: Administration charge [R/POD/day]
H90: [kVA or MVA = loads]
A91: Tariff | B91: Tariff nameBillcode | C91: Tx zone | D91: Voltage | E91: Billcode | H91: [kW or MW = generators] | K91: VAT incl | M91: VAT incl
A92: Miniflex | B92: Mi | C92: 0 | D92: 1 | E92: Mi01N | H92: ≤ 100 kVA/kW | J92: 15.49 | K92: 17.81 | L92: 3.4 | M92: 3.91
A93: Miniflex | B93: Mi | C93: 0 | D93: 1 | E93: Mi01N | H93: > 100 kVA/kW & ≤ 500 kVA/kW | J93: 70.74 | K93: 81.35 | L93: 19.84 | M93: 22.82
A94: Miniflex | B94: Mi | C94: 0 | D94: 1 | E94: Mi01N | H94: > 500 kVA/kW & ≤ 1 MVA/MW | J94: 217.67 | K94: 250.32 | L94: 39.4 | M94: 45.31
A95: Miniflex | B95: Mi | C95: 0 | D95: 1 | E95: Mi01N | H95: > 1 MVA/MW | J95: 217.67 | K95: 250.32 | L95: 98.1 | M95: 112.82
A96: Miniflex | B96: Mi | C96: 0 | D96: 1 | E96: Mi01N | H96: Key customers or Transmission connected | J96: 4265.54 | K96: 4905.37 | L96: 136.23 | M96: 156.66
H99: DUoS service and administration charges (ruralp)
H100: Customer categories utilised capacity / maximum export capacity | J100: Service charge [R/account/day] | L100: Administration charge [R/POD/day]
H103: [kVA or MVA = loads]
A104: Tariff | B104: Tariff nameBillcode | C104: Tx zone | D104: Voltage | E104: Billcode | H104: [kW or MW = generators] | K104: VAT incl | M104: VAT incl
A105: Ruraflex | B105: Ru | C105: 0 | D105: 1 | E105: Ru01N | H105: ≤ 100 kVA/kW | J105: 19.62 | K105: 22.56 | L105: 5.57 | M105: 6.41
A106: Ruraflex | B106: Ru | C106: 0 | D106: 1 | E106: Ru01N | H106: > 100 kVA/kW & ≤ 500 kVA/kW | J106: 66.9 | K106: 76.94 | L106: 31.02 | M106: 35.67
A107: Ruraflex | B107: Ru | C107: 0 | D107: 1 | E107: Ru01N | H107: > 500 kVA/kW & ≤ 1 MVA/MW | J107: 205.82 | K107: 236.69 | L107: 47.61 | M107: 54.75
A108: Ruraflex | B108: Ru | C108: 0 | D108: 1 | E108: Ru01N | H108: > 1 MVA/MW | J108: 205.82 | K108: 236.69 | L108: 88.34 | M108: 101.59
A109: Ruraflex | B109: Ru | C109: 0 | D109: 1 | E109: Ru01N | H109: Key customers | J109: 4033.88 | K109: 4638.96 | L109: 88.34 | M109: 101.59
H111: Distribution loss factors | L111: Transmission loss factors for loads
A112: Tariff | B112: Tariff nameBillcode | C112: Tx zone | D112: Voltage | E112: Billcode | H112: Voltage | I112: Urbanp loss factor | J112: Ruralp loss factor | L112: Distance from Johannesburg | M112: Zone | N112: Loss factor
A113: Distribution loss factor - Urban | B113: DxLossUrb | C113: 0 | D113: 1 | E113: DxLossUrb01N | H113: < 500V | I113: 1.1111 | J113: 1.1527 | L113: ≤ 300km | M113: 0 | N113: 1.0107
A114: Distribution loss factor - Urban | B114: DxLossUrb | C114: 0 | D114: 2 | E114: DxLossUrb02N | H114: ≥ 500V & < 66kV | I114: 1.0957 | J114: 1.1412 | L114: > 300km & ≤ 600km | M114: 1 | N114: 1.0208
A115: Distribution loss factor - Urban | B115: DxLossUrb | C115: 0 | D115: 3 | E115: DxLossUrb03N | H115: ≥ 66kV & ≤ 132kV | I115: 1.0611 | L115: > 600km & ≤ 900km | M115: 2 | N115: 1.031
A116: Distribution loss factor - Urban | B116: DxLossUrb | C116: 0 | D116: 4 | E116: DxLossUrb04N | H116: > 132kV | I116: 1 | L116: > 900km | M116: 3 | N116: 1.0413
A118: Distribution loss factor - Rural | B118: DxLossRur | C118: 0 | D118: 1 | E118: DxLossRur01N
A119: Distribution loss factor - Rural | B119: DxLossRur | C119: 0 | D119: 2 | E119: DxLossRur02N
A122: Transmission loss factor | B122: TxLoss | C122: 0 | D122: 4 | E122: TxLoss04N
A123: Transmission loss factor | B123: TxLoss | C123: 1 | D123: 4 | E123: TxLoss14N
A124: Transmission loss factor | B124: TxLoss | C124: 2 | D124: 4 | E124: TxLoss24N
A125: Transmission loss factor | B125: TxLoss | C125: 3 | D125: 4 | E125: TxLoss34N

Sheet Loss Factors
N1: Back to menu | AL1: 0.15
N2: Loss factors
A3: Non-municipal
N4: Distribution loss factors | R4: Transmission loss factors for loads
A5: Tariff | B5: Tariff nameBillcode | C5: Tx zone | D5: Voltage | E5: Billcode | G5: Tariff | H5: Tariff nameBillcode | I5: Tx zone | J5: Voltage | K5: Billcode | N5: Voltage | O5: Urban loss factor | P5: Rural loss factor | R5: Distance from Johannesburg | S5: Zone | T5: Loss factor
A6: Distribution loss factor - Urban | B6: DxLossUrb | C6: 0 | D6: 1 | E6: DxLossUrb01N | G6: Transmission loss factor | H6: TxLoss | I6: 0 | J6: 4 | K6: TxLoss04N | N6: < 500V | O6: 1.1111 | P6: 1.1527 | R6: ≤ 300km | S6: 0 | T6: 1.0107
A7: Distribution loss factor - Urban | B7: DxLossUrb | C7: 0 | D7: 2 | E7: DxLossUrb02N | G7: Transmission loss factor | H7: TxLoss | I7: 1 | J7: 4 | K7: TxLoss14N | N7: ≥ 500V & < 66kV | O7: 1.0957 | P7: 1.1412 | R7: > 300km & ≤ 600km | S7: 1 | T7: 1.0208
A8: Distribution loss factor - Urban | B8: DxLossUrb | C8: 0 | D8: 3 | E8: DxLossUrb03N | G8: Transmission loss factor | H8: TxLoss | I8: 2 | J8: 4 | K8: TxLoss24N | N8: ≥ 66kV & ≤ 132kV | O8: 1.0611 | R8: > 600km & ≤ 900km | S8: 2 | T8: 1.031
A9: Distribution loss factor - Urban | B9: DxLossUrb | C9: 0 | D9: 4 | E9: DxLossUrb04N | G9: Transmission loss factor | H9: TxLoss | I9: 3 | J9: 4 | K9: TxLoss34N | N9: > 132kV/Transmission connected | O9: 1 | R9: > 900km | S9: 3 | T9: 1.0413
A11: Distribution loss factor - Rural | B11: DxLossRur | C11: 0 | D11: 1 | E11: DxLossRur01N
A12: Distribution loss factor - Rural | B12: DxLossRur | C12: 0 | D12: 2 | E12: DxLossRur02N | N12: Loss factors for Transmission connected generators | P12: Loss factor
A13: Tariff | B13: Tariff nameBillcode | C13: Tx zone | D13: Voltage | E13: Billcode
A14: TUoS network charges for Transmission connected generators | B14: GenTUOS | C14: Cape | D14: 4 | E14: GenTUOSCape4N | O14: Cape | P14: 0.971
A15: TUoS network charges for Transmission connected generators | B15: GenTUOS | C15: Karoo | D15: 4 | E15: GenTUOSKaroo4N | O15: Karoo | P15: 0.995
A16: TUoS network charges for Transmission connected generators | B16: GenTUOS | C16: Kwazulu-Natal | D16: 4 | E16: GenTUOSKwazulu-Natal4N | O16: Kwazulu-Natal | P16: 1.004
A17: TUoS network charges for Transmission connected generators | B17: GenTUOS | C17: Vaal | D17: 4 | E17: GenTUOSVaal4N | O17: Vaal | P17: 1.02
A18: TUoS network charges for Transmission connected generators | B18: GenTUOS | C18: Waterburg | D18: 4 | E18: GenTUOSWaterburg4N | O18: Waterburg | P18: 1.023
A19: TUoS network charges for Transmission connected generators | B19: GenTUOS | C19: Mpumalanga | D19: 4 | E19: GenTUOSMpumalanga4N | O19: Mpumalanga | P19: 1.021

Sheet Gen Reconciliatons
B2: Generator reconciliations
C4: Gen-wheeling tariff | G4: Gen-purchase tariff
C5: Tariff name | D5: Tariff rate | E5: Source | G5: Tariff name | H5: Tariff rate | I5: Source
C6: Gen-wheeling non Munic urban | D6: Energy: | E6: WEPS energy rate excluding losses | G6: Gen-purchase- urban | H6: Energy: | I6: WEPS energy rate excluding losses
D7: Affordability subsidy: | E7: same as WEPS | H7: Affordability subsidy: | I7: same as WEPS
D8: Admin charge: | E8: same as WEPS | H8: Admin charge: | I8: same as WEPS
D9: Other components: | E9: not applicable | H9: Other components: | I9: not applicable
C10: Gen-wheeling non Munic rural | D10: Energy: | E10: WEPS energy rate excluding losses | G10: Gen-purchase-rural | H10: Energy: | I10: WEPS energy rate excluding losses
D11: Admin charge: | E11: same as Ruraflex | H11: Admin charge: | I11: same as Ruraflex
D12: Other components: | E12: not applicable | H12: Other components: | I12: not applicable
C13: Gen-wheeling Munic urban | D13: Energy (Local): | E13: WEPS energy rate excluding losses (Local) | G13: Gen-purchase Munic urban | H13: Energy: | I13: WEPS energy rate excluding losses(Local)
D14: Admin charge: | E14: same as WEPS (local) | H14: Admin charge: | I14: same as WEPS (Local)
D15: Other components: | E15: not applicable | H15: Other components: | I15: not applicable
C16: Gen-wheeling Munic rural | D16: Energy (Local): | E16: WEPS energy rate excluding losses (Local) | G16: Gen-purchase Munic rural | H16: Energy: | I16: WEPS energy rate excluding losses(Local)
D17: Admin charge: | E17: same as same as Ruraflex (local) | H17: Admin charge: | I17: same as Ruraflex (Local)
D18: Other components: | E18: not applicable | H18: Other components: | I18: not applicable
C21: Gen-offset tariff
C22: Tariff name | D22: Tariff rate | E22: Source
C23: Gen-offset urban | D23: Energy: | E23: WEPS energy rate including losses (per Tx and voltage zone)
D24: Affordability subsidy: | E24: same as WEPS
D25: Admin charge: | E25: same as WEPS
D26: Other components: | E26: not applicable
C27: Gen-offset rural | D27: Energy: | E27: Ruraflex energy rate (per Tx and voltage zone)
D28: Affordability subsidy: | E28: same as WEPS
D29: Admin charge: | E29: same as WEPS
D30: Other components: | E30: not applicable

Sheet Env levy (hidden)
B2: Urban
B3: Ave c/kWh | C3: Column Labels
B4: Row Labels | C4: 0 | D4: 1 | E4: 2 | F4: 3 | G4: Grand Total
B5: 1 | C5: 4.244173496 | D5: 3.922922112 | E5: 3.952738211 | F5: 3.99518266 | G5: 4.230325642
B6: 2 | C6: 3.818605965 | D6: 3.856792025 | E6: 3.895359945 | F6: 3.934313544 | G6: 3.830031886
B7: 3 | C7: 3.6978496 | D7: 3.734828096 | E7: 3.772176377 | F7: 3.809898141 | G7: 3.749584404
B8: 4 | C8: 3.485023597 | D8: 3.519873833 | E8: 3.555072571 | F8: 0 | G8: 3.497836202
B9: Grand Total | C9: 3.768693197 | D9: 3.666474757 | E9: 3.798966039 | F9: 3.84820921 | G9: 3.760612171
B11: Rural pivot(excluding landrate)
B12: Ave c/kWh | C12: Column Labels
B13: Row Labels | C13: 0 | D13: 1 | E13: 2 | F13: 3 | G13: Grand Total
B14: 1 | C14: 4.017125899 | D14: 4.057297158 | E14: 4.097870129 | F14: 4.138848829 | G14: 4.064771786
B15: 2 | C15: 3.977159862 | D15: 4.01693146 | E15: 4.057100775 | F15: 4.097671783 | G15: 4.019422117
B16: Grand Total | C16: 3.992398248 | D16: 4.037020529 | E16: 4.075975827 | F16: 4.117029851 | G16: 4.039902702
B18: Landrate
B19: Ave c/kWh | C19: Column Labels
B20: Row Labels | C20: 0 | D20: Grand Total
B21: 1 | C21: 4.654296484 | D21: 4.654296484
B22: Grand Total | C22: 4.654296484 | D22: 4.654296484

Sheet Sheet2 (hidden)
B2: GENERATOR TARIFF REFERENCE TABLE
B4: Applicability of tariff rates (key)
B5: Code | C5: Description
B6: n/a | C6: Not applicable
B7: Applicable | C7: Rate is applicable
AZ8: WEPS
B9: Bill rate matrix (BRM) code | C9: CC&B reference code to BRM (showing the first voltage code) | D9: Tariff name | E9: Municipal / non-municipal | F9: Applicability (customers or transaction) | G9: Reference tariff (rates are the same) | H9: AdminS | I9: AdminM | J9: AdminL | K9: AdminVL | L9: AdminK | M9: ServiceS | N9: ServiceM | O9: ServiceL | P9: ServiceVL | Q9: ServiceK | R9: kWhHP | S9: kWhHS | T9: kWhHO | U9: kWhLP | V9: kWhLS | W9: kWhLO | X9: DxNDC Energy | Y9: Reliability | Z9: Service Energy | AA9: kvarh | AB9: Enviro Levy | AC9: Tx NAC | AD9: Dx NAC | AE9: Dx NDC | AF9: NAC POD | AG9: EDC H | AH9: EDC L | AI9: Days | AJ9: kWhRBlock1 | AK9: kWhRBlock2 | AL9: kWhRBlock3 | AM9: kWhRBlock4 | AN9: SubRuralNetwork | AO9: SubUrbLowVolt | AP9: SubElecNetwork | AQ9: SubAfford | AR9: NAC | AS9: ERS | AT9: Maint charge | AU9: Energy charge R/100W/mth | AV9: Dx NAC for Generators | AW9: Gen Tx Reliab | AX9: Tx NAC for Generators | AY9: Gen Dx Reliability | AZ9: kWhHP | BA9: kWhHS | BB9: kWhHO | BC9: kWhLP | BD9: kWhLS | BE9: kWhLO
B10: GU01 | C10: GU01N | D10: Megaflex Gen | E10: Non-municipal | F10: Eskom urban HV & MV customers consuming and exporting energy | G10: Megaflex, WEPS excluding losses and Gen-TUOS and Gen-DUOS urban | H10: Applicable | I10: Applicable | J10: Applicable | K10: Applicable | L10: Applicable | M10: Applicable | N10: Applicable | O10: Applicable | P10: Applicable | Q10: Applicable | R10: Applicable | S10: Applicable | T10: Applicable | U10: Applicable | V10: Applicable | W10: Applicable | X10: n/a | Y10: Applicable | Z10: n/a | AA10: Applicable | AB10: n/a | AC10: Applicable | AD10: Applicable | AE10: Applicable | AF10: n/a | AG10: n/a | AH10: n/a | AI10: Applicable | AJ10: n/a | AK10: n/a | AL10: n/a | AM10: n/a | AN10: n/a | AO10: n/a | AP10: n/a | AQ10: Applicable | AR10: n/a | AS10: Applicable | AT10: n/a | AU10: n/a | AV10: Applicable | AW10: Applicable | AX10: Applicable | AY10: Applicable | AZ10: Applicable | BA10: Applicable | BB10: Applicable | BC10: Applicable | BD10: Applicable | BE10: Applicable
B11: GR01 | C11: GR01N | D11: Ruraflex Gen | E11: Non-municipal | F11: Eskom rural HV & MV customers consuming and exporting energy | G11: Ruraflex and Gen DUOS rural | H11: Applicable | I11: Applicable | J11: Applicable | K11: Applicable | L11: Applicable | M11: Applicable | N11: Applicable | O11: Applicable | P11: Applicable | Q11: Applicable | R11: Applicable | S11: Applicable | T11: Applicable | U11: Applicable | V11: Applicable | W11: Applicable | X11: Applicable | Y11: Applicable | Z11: n/a | AA11: Applicable | AB11: n/a | AC11: n/a | AD11: Applicable | AE11: n/a | AF11: n/a | AG11: n/a | AH11: n/a | AI11: Applicable | AJ11: n/a | AK11: n/a | AL11: n/a | AM11: n/a | AN11: n/a | AO11: n/a | AP11: n/a | AQ11: n/a | AR11: n/a | AS11: n/a | AT11: n/a | AU11: n/a | AV11: Applicable | AW11: n/a | AX11: n/a | AY11: Applicable | AZ11: n/a | BA11: n/a | BB11: n/a | BC11: n/a | BD11: n/a | BE11: n/a
B12: NLWheelAdj04 | C12: NLWheelAdj04N | D12: Gen-wheeling | E12: Non-municipal | F12: Customers receiving energy from a non-Eskom generator located at a different area from customer's plant | G12: WEPS non-Munic | H12: Applicable | I12: Applicable | J12: Applicable | K12: Applicable | L12: Applicable | M12: Applicable | N12: Applicable | O12: Applicable | P12: Applicable | Q12: Applicable | R12: Applicable | S12: Applicable | T12: Applicable | U12: Applicable | V12: Applicable | W12: Applicable | X12: n/a | Y12: n/a | Z12: n/a | AA12: n/a | AB12: n/a | AC12: n/a | AD12: n/a | AE12: n/a | AF12: n/a | AG12: n/a | AH12: n/a | AI12: Applicable | AJ12: n/a | AK12: n/a | AL12: n/a | AM12: n/a | AN12: n/a | AO12: n/a | AP12: n/a | AQ12: Applicable | AR12: n/a | AS12: n/a | AT12: n/a | AU12: n/a | AV12: n/a | AW12: n/a | AX12: n/a
B13: NLPurchAdj04 | C13: NLPurchAdj04N | D13: Gen-purchase | E13: Non-municipal | F13: Generator selling energy to Eskom but energy does not come into Eskom's network but used by customer on site | G13: WEPS non-Munic | H13: Applicable | I13: Applicable | J13: Applicable | K13: Applicable | L13: Applicable | M13: Applicable | N13: Applicable | O13: Applicable | P13: Applicable | Q13: Applicable | R13: Applicable | S13: Applicable | T13: Applicable | U13: Applicable | V13: Applicable | W13: Applicable | X13: n/a | Y13: n/a | Z13: n/a | AA13: n/a | AB13: n/a | AC13: n/a | AD13: n/a | AE13: n/a | AF13: n/a | AG13: n/a | AH13: n/a | AI13: Applicable | AJ13: n/a | AK13: n/a | AL13: n/a | AM13: n/a | AN13: n/a | AO13: n/a | AP13: n/a | AQ13: Applicable | AR13: n/a | AS13: n/a | AT13: n/a | AU13: n/a | AV13: n/a | AW13: n/a | AX13: n/a
B14: NLWheelAdjR04 | C14: NLWheelAdjR04 | D14: Gen-wheeling rural | E14: Non-municipal | F14: Customers receiving energy from a non-Eskom generator located at a different area from customer's plant | G14: WEPS non-Munic | H14: Applicable | I14: Applicable | J14: Applicable | K14: Applicable | L14: Applicable | M14: Applicable | N14: Applicable | O14: Applicable | P14: Applicable | Q14: Applicable | R14: Applicable | S14: Applicable | T14: Applicable | U14: Applicable | V14: Applicable | W14: Applicable | X14: n/a | Y14: n/a | Z14: n/a | AA14: n/a | AB14: n/a | AC14: n/a | AD14: n/a | AE14: n/a | AF14: n/a | AG14: n/a | AH14: n/a | AI14: Applicable | AJ14: n/a | AK14: n/a | AL14: n/a | AM14: n/a | AN14: n/a | AO14: n/a | AP14: n/a | AQ14: n/a | AR14: n/a | AS14: n/a | AT14: n/a | AU14: n/a | AV14: n/a | AW14: n/a | AX14: n/a
B15: NLPurchAdjR04 | C15: NLPurchAdjR04 | D15: Gen-purchase rural | E15: Non-municipal | F15: Generator selling energy to Eskom but energy does not come into Eskom's network but used by customer on site | G15: WEPS non-Munic | H15: Applicable | I15: Applicable | J15: Applicable | K15: Applicable | L15: Applicable | M15: Applicable | N15: Applicable | O15: Applicable | P15: Applicable | Q15: Applicable | R15: Applicable | S15: Applicable | T15: Applicable | U15: Applicable | V15: Applicable | W15: Applicable | X15: n/a | Y15: n/a | Z15: n/a | AA15: n/a | AB15: n/a | AC15: n/a | AD15: n/a | AE15: n/a | AF15: n/a | AG15: n/a | AH15: n/a | AI15: Applicable | AJ15: n/a | AK15: n/a | AL15: n/a | AM15: n/a | AN15: n/a | AO15: n/a | AP15: n/a | AQ15: n/a | AR15: n/a | AS15: n/a | AT15: n/a | AU15: n/a | AV15: n/a | AW15: n/a | AX15: n/a
B16: NLWheelAdj04 | C16: NLWheelAdj04Y | D16: Gen-wheeling | E16: Municipal | F16: Customers receiving energy from a non-Eskom generator located at a different area from customer's plant thorough Municipality network | G16: WEPS munic | H16: Applicable | I16: Applicable | J16: Applicable | K16: Applicable | L16: Applicable | M16: Applicable | N16: Applicable | O16: Applicable | P16: Applicable | Q16: Applicable | R16: Applicable | S16: Applicable | T16: Applicable | U16: Applicable | V16: Applicable | W16: Applicable | X16: n/a | Y16: n/a | Z16: n/a | AA16: n/a | AB16: n/a | AC16: n/a | AD16: n/a | AE16: n/a | AF16: n/a | AG16: n/a | AH16: n/a | AI16: Applicable | AJ16: n/a | AK16: n/a | AL16: n/a | AM16: n/a | AN16: n/a | AO16: n/a | AP16: n/a | AQ16: n/a | AR16: n/a | AS16: n/a | AT16: n/a | AU16: n/a | AV16: n/a | AW16: n/a | AX16: n/a
B17: NLPurchAdj04 | C17: NLPurchAdj04Y | D17: Gen-purchase | E17: Municipal | F17: Generator in Munic area selling energy to Eskom but energy does not come into Eskom's network but used by Municipality | G17: WEPS munic | H17: Applicable | I17: Applicable | J17: Applicable | K17: Applicable | L17: Applicable | M17: Applicable | N17: Applicable | O17: Applicable | P17: Applicable | Q17: Applicable | R17: Applicable | S17: Applicable | T17: Applicable | U17: Applicable | V17: Applicable | W17: Applicable | X17: n/a | Y17: n/a | Z17: n/a | AA17: n/a | AB17: n/a | AC17: n/a | AD17: n/a | AE17: n/a | AF17: n/a | AG17: n/a | AH17: n/a | AI17: Applicable | AJ17: n/a | AK17: n/a | AL17: n/a | AM17: n/a | AN17: n/a | AO17: n/a | AP17: n/a | AQ17: n/a | AR17: n/a | AS17: n/a | AT17: n/a | AU17: n/a | AV17: n/a | AW17: n/a | AX17: n/a
B18: NLWheelAdjR04 | C18: NLWheelAdjR04 | D18: Gen-wheeling rural | E18: Municipal | F18: Customers receiving energy from a non-Eskom generator located at a different area from customer's plant thorough Municipality network | G18: WEPS munic | H18: Applicable | I18: Applicable | J18: Applicable | K18: Applicable | L18: Applicable | M18: Applicable | N18: Applicable | O18: Applicable | P18: Applicable | Q18: Applicable | R18: Applicable | S18: Applicable | T18: Applicable | U18: Applicable | V18: Applicable | W18: Applicable | X18: n/a | Y18: n/a | Z18: n/a | AA18: n/a | AB18: n/a | AC18: n/a | AD18: n/a | AE18: n/a | AF18: n/a | AG18: n/a | AH18: n/a | AI18: Applicable | AJ18: n/a | AK18: n/a | AL18: n/a | AM18: n/a | AN18: n/a | AO18: n/a | AP18: n/a | AQ18: n/a | AR18: n/a | AS18: n/a | AT18: n/a | AU18: n/a | AV18: n/a | AW18: n/a | AX18: n/a
B19: NLPurchAdjR04 | C19: NLPurchAdjR04 | D19: Gen-purchase rural | E19: Municipal | F19: Generator in Munic area selling energy to Eskom but energy does not come into Eskom's network but used by Municipality | G19: WEPS munic | H19: Applicable | I19: Applicable | J19: Applicable | K19: Applicable | L19: Applicable | M19: Applicable | N19: Applicable | O19: Applicable | P19: Applicable | Q19: Applicable | R19: Applicable | S19: Applicable | T19: Applicable | U19: Applicable | V19: Applicable | W19: Applicable | X19: n/a | Y19: n/a | Z19: n/a | AA19: n/a | AB19: n/a | AC19: n/a | AD19: n/a | AE19: n/a | AF19: n/a | AG19: n/a | AH19: n/a | AI19: Applicable | AJ19: n/a | AK19: n/a | AL19: n/a | AM19: n/a | AN19: n/a | AO19: n/a | AP19: n/a | AQ19: n/a | AR19: n/a | AS19: n/a | AT19: n/a | AU19: n/a | AV19: n/a | AW19: n/a | AX19: n/a
B20: NLUrbOffset01 | C20: NLUrbOffset01N | D20: Gen-offset urban | E20: Non-municipal | F20: Customer with own generator on site, but at times exports energy to Eskom network | G20: Megaflex | H20: Applicable | I20: Applicable | J20: Applicable | K20: Applicable | L20: Applicable | M20: Applicable | N20: Applicable | O20: Applicable | P20: Applicable | Q20: Applicable | R20: Applicable | S20: Applicable | T20: Applicable | U20: Applicable | V20: Applicable | W20: Applicable | X20: n/a | Y20: n/a | Z20: n/a | AA20: n/a | AB20: n/a | AC20: n/a | AD20: n/a | AE20: n/a | AF20: n/a | AG20: n/a | AH20: n/a | AI20: Applicable | AJ20: n/a | AK20: n/a | AL20: n/a | AM20: n/a | AN20: n/a | AO20: n/a | AP20: n/a | AQ20: Applicable | AR20: n/a | AS20: n/a | AT20: n/a | AU20: n/a | AV20: n/a | AW20: n/a | AX20: n/a
B21: NLRurOffset01 | C21: NLRurOffset01N | D21: Gen-offset rural | E21: Non-municipal | F21: Customer with own generator on site, but at times exports energy to Eskom network | G21: Ruraflex | H21: Applicable | I21: Applicable | J21: Applicable | K21: Applicable | L21: Applicable | M21: Applicable | N21: Applicable | O21: Applicable | P21: Applicable | Q21: Applicable | R21: Applicable | S21: Applicable | T21: Applicable | U21: Applicable | V21: Applicable | W21: Applicable | X21: n/a | Y21: n/a | Z21: n/a | AA21: n/a | AB21: n/a | AC21: n/a | AD21: n/a | AE21: n/a | AF21: n/a | AG21: n/a | AH21: n/a | AI21: Applicable | AJ21: n/a | AK21: n/a | AL21: n/a | AM21: n/a | AN21: n/a | AO21: n/a | AP21: n/a | AQ21: n/a | AR21: n/a | AS21: n/a | AT21: n/a | AU21: n/a | AV21: n/a | AW21: n/a | AX21: n/a | AY21: n/a
B22: NEGenDUoSU01 | C22: NEGenDUoSU01 | D22: Gen-DUoS urban | E22: Non-municipal | F22: Non-Eskom urban generators for distribution use of system charges | G22: WEPS, UOS urban for Dx | H22: Applicable | I22: Applicable | J22: Applicable | K22: Applicable | L22: Applicable | M22: Applicable | N22: Applicable | O22: Applicable | P22: Applicable | Q22: Applicable | R22: Applicable | S22: Applicable | T22: Applicable | U22: Applicable | V22: Applicable | W22: Applicable | X22: n/a | Y22: n/a | Z22: n/a | AA22: n/a | AB22: n/a | AC22: n/a | AD22: n/a | AE22: n/a | AF22: n/a | AG22: n/a | AH22: n/a | AI22: Applicable | AJ22: n/a | AK22: n/a | AL22: n/a | AM22: n/a | AN22: n/a | AO22: n/a | AP22: n/a | AQ22: n/a | AR22: n/a | AS22: n/a | AT22: n/a | AU22: n/a | AV22: Applicable | AW22: n/a | AX22: n/a | AY22: Applicable
B23: NEGenDUoSR01 | C23: NEGenDUoSR01 | D23: Gen-DUoS rural | E23: Non-municipal | F23: Non-Eskom rural generators for distribution use of system charges | G23: WEPS, UOS rural for Dx | H23: Applicable | I23: Applicable | J23: Applicable | K23: Applicable | L23: Applicable | M23: Applicable | N23: Applicable | O23: Applicable | P23: Applicable | Q23: Applicable | R23: Applicable | S23: Applicable | T23: Applicable | U23: Applicable | V23: Applicable | W23: Applicable | X23: n/a | Y23: n/a | Z23: n/a | AA23: n/a | AB23: n/a | AC23: n/a | AD23: n/a | AE23: n/a | AF23: n/a | AG23: n/a | AH23: n/a | AI23: Applicable | AJ23: n/a | AK23: n/a | AL23: n/a | AM23: n/a | AN23: n/a | AO23: n/a | AP23: n/a | AQ23: n/a | AR23: n/a | AS23: n/a | AT23: n/a | AU23: n/a | AV23: Applicable | AW23: n/a | AX23: n/a | AY23: Applicable
B24: GenTUoSCape4 | C24: GenTUoSCape4 | D24: Gen-TUOS | E24: Non-municipal | F24: Cape, Non-Eskom generators for Transmission use of system charges | G24: WEPS, TUOS | H24: Applicable | I24: Applicable | J24: Applicable | K24: Applicable | L24: Applicable | M24: Applicable | N24: Applicable | O24: Applicable | P24: Applicable | Q24: Applicable | R24: Applicable | S24: Applicable | T24: Applicable | U24: Applicable | V24: Applicable | W24: Applicable | X24: n/a | Y24: n/a | Z24: n/a | AA24: n/a | AB24: n/a | AC24: n/a | AD24: n/a | AE24: n/a | AF24: n/a | AG24: n/a | AH24: n/a | AI24: Applicable | AJ24: n/a | AK24: n/a | AL24: n/a | AM24: n/a | AN24: n/a | AO24: n/a | AP24: n/a | AQ24: n/a | AR24: n/a | AS24: n/a | AT24: n/a | AU24: n/a | AV24: n/a | AW24: Applicable | AX24: n/a
B25: GenTUoSKaroo4 | C25: GenTUoSKaroo4 | D25: Gen-TUOS | E25: Non-municipal | F25: Karoo, Non-Eskom generators for Transmission use of system charges | G25: WEPS, TUOS | H25: Applicable | I25: Applicable | J25: Applicable | K25: Applicable | L25: Applicable | M25: Applicable | N25: Applicable | O25: Applicable | P25: Applicable | Q25: Applicable | R25: Applicable | S25: Applicable | T25: Applicable | U25: Applicable | V25: Applicable | W25: Applicable | X25: n/a | Y25: n/a | Z25: n/a | AA25: n/a | AB25: n/a | AC25: n/a | AD25: n/a | AE25: n/a | AF25: n/a | AG25: n/a | AH25: n/a | AI25: Applicable | AJ25: n/a | AK25: n/a | AL25: n/a | AM25: n/a | AN25: n/a | AO25: n/a | AP25: n/a | AQ25: n/a | AR25: n/a | AS25: n/a | AT25: n/a | AU25: n/a | AV25: n/a | AW25: Applicable | AX25: n/a
B26: GenTUoSKwazulu-Natal4 | C26: GenTUoSKwazulu-Natal4 | D26: Gen-TUOS | E26: Non-municipal | F26: Kwazulu-Natal, Non-Eskom generators for Transmission use of system charges | G26: WEPS, TUOS | H26: Applicable | I26: Applicable | J26: Applicable | K26: Applicable | L26: Applicable | M26: Applicable | N26: Applicable | O26: Applicable | P26: Applicable | Q26: Applicable | R26: Applicable | S26: Applicable | T26: Applicable | U26: Applicable | V26: Applicable | W26: Applicable | X26: n/a | Y26: n/a | Z26: n/a | AA26: n/a | AB26: n/a | AC26: n/a | AD26: n/a | AE26: n/a | AF26: n/a | AG26: n/a | AH26: n/a | AI26: Applicable | AJ26: n/a | AK26: n/a | AL26: n/a | AM26: n/a | AN26: n/a | AO26: n/a | AP26: n/a | AQ26: n/a | AR26: n/a | AS26: n/a | AT26: n/a | AU26: n/a | AV26: n/a | AW26: Applicable | AX26: Applicable
B27: GenTUoSVaal4 | C27: GenTUoSVaal4 | D27: Gen-TUOS | E27: Non-municipal | F27: Vaal, Non-Eskom generators for Transmission use of system charges | G27: WEPS, TUOS | H27: Applicable | I27: Applicable | J27: Applicable | K27: Applicable | L27: Applicable | M27: Applicable | N27: Applicable | O27: Applicable | P27: Applicable | Q27: Applicable | R27: Applicable | S27: Applicable | T27: Applicable | U27: Applicable | V27: Applicable | W27: Applicable | X27: n/a | Y27: n/a | Z27: n/a | AA27: n/a | AB27: n/a | AC27: n/a | AD27: n/a | AE27: n/a | AF27: n/a | AG27: n/a | AH27: n/a | AI27: Applicable | AJ27: n/a | AK27: n/a | AL27: n/a | AM27: n/a | AN27: n/a | AO27: n/a | AP27: n/a | AQ27: n/a | AR27: n/a | AS27: n/a | AT27: n/a | AU27: n/a | AV27: n/a | AW27: Applicable | AX27: Applicable
B28: GenTUoSWaterburg4 | C28: GenTUoSWaterburg4 | D28: Gen-TUOS | E28: Non-municipal | F28: Waterburg, Non-Eskom generators for Transmission use of system charges | G28: WEPS, TUOS | H28: Applicable | I28: Applicable | J28: Applicable | K28: Applicable | L28: Applicable | M28: Applicable | N28: Applicable | O28: Applicable | P28: Applicable | Q28: Applicable | R28: Applicable | S28: Applicable | T28: Applicable | U28: Applicable | V28: Applicable | W28: Applicable | X28: n/a | Y28: n/a | Z28: n/a | AA28: n/a | AB28: n/a | AC28: n/a | AD28: n/a | AE28: n/a | AF28: n/a | AG28: n/a | AH28: n/a | AI28: Applicable | AJ28: n/a | AK28: n/a | AL28: n/a | AM28: n/a | AN28: n/a | AO28: n/a | AP28: n/a | AQ28: n/a | AR28: n/a | AS28: n/a | AT28: n/a | AU28: n/a | AV28: n/a | AW28: Applicable | AX28: Applicable
B29: GenTUoSMpumalanga4 | C29: GenTUoSMpumalanga4 | D29: Gen-TUOS | E29: Non-municipal | F29: Mpumalanga, Non-Eskom generators for Transmission use of system charges | G29: WEPS, TUOS | H29: Applicable | I29: Applicable | J29: Applicable | K29: Applicable | L29: Applicable | M29: Applicable | N29: Applicable | O29: Applicable | P29: Applicable | Q29: Applicable | R29: Applicable | S29: Applicable | T29: Applicable | U29: Applicable | V29: Applicable | W29: Applicable | X29: n/a | Y29: n/a | Z29: n/a | AA29: n/a | AB29: n/a | AC29: n/a | AD29: n/a | AE29: n/a | AF29: n/a | AG29: n/a | AH29: n/a | AI29: Applicable | AJ29: n/a | AK29: n/a | AL29: n/a | AM29: n/a | AN29: n/a | AO29: n/a | AP29: n/a | AQ29: n/a | AR29: n/a | AS29: n/a | AT29: n/a | AU29: n/a | AV29: n/a | AW29: Applicable | AX29: Applicable
B30: TUOS > 132kV04 | C30: TUOS > 132kV04 | D30: TUOS > 132kV | E30: Non-municipal | F30: Eskom loads at >132kV transmission use of system charges | G30: WEPS | H30: n/a | I30: n/a | J30: n/a | K30: n/a | L30: n/a | M30: n/a | N30: n/a | O30: n/a | P30: n/a | Q30: n/a | R30: n/a | S30: n/a | T30: n/a | U30: n/a | V30: n/a | W30: n/a | X30: n/a | Y30: n/a | Z30: n/a | AA30: n/a | AB30: n/a | AC30: Applicable | AD30: n/a | AE30: n/a | AF30: n/a | AG30: n/a | AH30: n/a | AI30: Applicable | AJ30: n/a | AK30: n/a | AL30: n/a | AM30: n/a | AN30: n/a | AO30: n/a | AP30: n/a | AQ30: n/a | AR30: n/a | AS30: n/a | AT30: n/a | AU30: n/a | AV30: n/a | AW30: n/a | AX30: n/a
